date,department/service,beneficiary,amount,summary of purpose,category,transaction number,SAP vendor number
01.05.2020,CHIEF EXECUTIVE,BRESLIN CONSTRUCTION LTD,"7,400.00",CAPITAL PS (REGEN),CONSTRUCTION FEES  - EXTERNAL,2103094832,3000001948
01.05.2020,CHILDREN'S SERVICES,CHILDREN AND FAMILIES ACROSS BORDERS,"1,100.00",CARE SERVICES 0-15,EXTERNAL AGENCIES AND BODIES,5902415888,1176559
01.05.2020,COMMUNITIES,BROWNING EST MGMT ASSN,363.52,BROWNING EMB,M&M ALLOWANCE CO-OPS,5902415713,1000059362
01.05.2020,COMMUNITIES,NORBURY PROPERTY SERVICES (LONDON) LTD,"5,396.00",NO RECOURSE TO PUBLIC FUNDS,ACCOMMODATION CHARGES,5902414035,1000075566
01.05.2020,COMMUNITIES,KENNINGTON PARK ROAD T&RA,"1,300.00",TENANTS FUND,GRANTS,5902415071,1000078006
01.05.2020,CUSTOMER EXPERIENCE HGF,HIAM ALI LTD,"6,168.00",CORONER'S,PROFESSIONAL FEES,5902415132,1000084044
01.05.2020,CUSTOMER EXPERIENCE HGF,JAMES MARTIN MUGWANYA T/A JOHN SMITH REMOVALS,350,HOMELESS PROJECTS,EXTERNAL AGENCIES AND BODIES,5902415717,1000078552
01.05.2020,CUSTOMER EXPERIENCE HGF,JAMES MARTIN MUGWANYA T/A JOHN SMITH REMOVALS,350,HOMELESS PROJECTS,EXTERNAL AGENCIES AND BODIES,5902415819,1000078552
01.05.2020,ENVIRONMENT DIRECTORATE,GREENHAM TRADING LTD,400.4,ESTATE CLEANING-GENERAL,MATERIALS,5902415553,1000006610
01.05.2020,ENVIRONMENT DIRECTORATE,KEYSOFT SOLUTIONS LTD,"1,534.94",PROJECT SUPPORT,SOFTWARE,5902415048,1000025779
01.05.2020,ENVIRONMENT DIRECTORATE,NPOWER LTD,"1,774.22",R & M OVERHEADS,ELECTRICITY,5902415725,1000078994
01.05.2020,FINANCIAL AND INFORMATION GOVERNANCE,GRANT THORNTON UK LLP,"4,000.00",EXTERNAL AUDIT GRANT FEES,PROFESSIONAL FEES,5902415416,1000058344
01.05.2020,FINANCIAL AND INFORMATION GOVERNANCE,GRANT THORNTON UK LLP,"5,000.00",EXTERNAL AUDIT GRANT FEES,PROFESSIONAL FEES,5902415416,1000058344
01.05.2020,FINANCIAL AND INFORMATION GOVERNANCE,GRANT THORNTON UK LLP,"17,700.00",EXTERNAL AUDIT GRANT FEES,PROFESSIONAL FEES,5902415416,1000058344
01.05.2020,FINANCIAL AND INFORMATION GOVERNANCE,CONCERT CONSULTING (UK) LTD,"4,900.00",PENSIONS,CONSULTANTS SERVICES,5902415137,1000084244
01.05.2020,FINANCIAL AND INFORMATION GOVERNANCE,CONCERT CONSULTING (UK) LTD,"6,000.00",PENSIONS,CONSULTANTS SERVICES,5902415143,1000084244
01.05.2020,FINANCIAL AND INFORMATION GOVERNANCE,CONCERT CONSULTING (UK) LTD,"7,800.00",PENSIONS,CONSULTANTS SERVICES,5902415141,1000084244
01.05.2020,FINANCIAL AND INFORMATION GOVERNANCE,CONCERT CONSULTING (UK) LTD,"24,500.00",PENSIONS,CONSULTANTS SERVICES,5902415139,1000084244
01.05.2020,HOUSING HRA,GUILDMORE LTD,"25,569.25",CAPITAL PS (HRA),CONSTRUCTION MAIN CONTRACT -CERTIFICATED,2103094826,3000002150
01.05.2020,MODERNISATION HGF,KIER FACILITIES SERVICES LTD,"10,037.90",PLANNED FM SERVICES BY KIER,BUILDING R&M,5902415708,1000040603
01.05.2020,PUBLIC HEALTH,CENTRAL LONDON COMMUNITY HEALTHCARE,"1,835.75",SEXUAL HEALTH - STI,EXTERNAL AGENCIES AND BODIES,5902415943,1000077767
02.05.2020,ADULT SOCIAL CARE,THAMES HOMECARE SERVICE LTD,"27,300.00",REABLEMENT CONTRACT,HOMECARE - C&V,5902415500,1000079295
02.05.2020,CHIEF EXECUTIVE,STANDAGE & CO LTD,"28,724.76",CAPITAL PS (REGEN),CONSTRUCTION MAIN CONTRACT -CERTIFICATED,5902415373,11223389
02.05.2020,CHILDREN'S SERVICES,CONTACT PROFESSIONALS,304,CARE SERVICES 0-15,OTHER PAYMENTS FOR CLIENTS,5902415930,1000057263
02.05.2020,ENVIRONMENT DIRECTORATE,CASTLETON TECHNOLOGY PLC,"5,100.00",ICT & COMMUNICATIONS,SOFTWARE,5902415733,1000059550
02.05.2020,ENVIRONMENT DIRECTORATE,EE LTD (AIRTIME ACCOUNT),"5,778.29",R & M OVERHEADS,TELEPHONES (MOBILES),5902415731,1000079805
02.05.2020,ENVIRONMENT DIRECTORATE,SOUTHWARK NEWSPAPER LTD,300,STREET WORKS OVERHEADS,MARKETING & PUBLICITY SERVICES,5902415798,1556957
02.05.2020,ENVIRONMENT DIRECTORATE,SOUTHWARK NEWSPAPER LTD,300,STREET WORKS OVERHEADS,MARKETING & PUBLICITY SERVICES,5902415800,1556957
02.05.2020,ENVIRONMENT DIRECTORATE,SOUTHWARK NEWSPAPER LTD,312,STREET WORKS OVERHEADS,MARKETING & PUBLICITY SERVICES,5902415795,1556957
02.05.2020,ENVIRONMENT DIRECTORATE,SOUTHWARK NEWSPAPER LTD,360,STREET WORKS OVERHEADS,MARKETING & PUBLICITY SERVICES,5902415792,1556957
02.05.2020,ENVIRONMENT DIRECTORATE,SOUTHWARK NEWSPAPER LTD,372,STREET WORKS OVERHEADS,MARKETING & PUBLICITY SERVICES,5902415799,1556957
02.05.2020,ENVIRONMENT DIRECTORATE,SOUTHWARK NEWSPAPER LTD,384,STREET WORKS OVERHEADS,MARKETING & PUBLICITY SERVICES,5902415794,1556957
02.05.2020,ENVIRONMENT DIRECTORATE,SOUTHWARK NEWSPAPER LTD,384,STREET WORKS OVERHEADS,MARKETING & PUBLICITY SERVICES,5902415797,1556957
02.05.2020,ENVIRONMENT DIRECTORATE,SOUTHWARK NEWSPAPER LTD,432,STREET WORKS OVERHEADS,MARKETING & PUBLICITY SERVICES,5902415796,1556957
02.05.2020,LEISURE DIRECTORATE,NEWLINE (ESSEX) LTD,"1,463.06",CEMETERIES,OTHER CLEANING,5902415230,1000047169
02.05.2020,SOUTHWARK SCHOOL FOR FUTURE,FAITHFUL & GOULD,"13,625.00",CAPITAL PS (REGEN),CONSTRUCTION FEES,5902415391,1000061390
03.05.2020,CHIEF EXECUTIVE,BRESLIN CONSTRUCTION LTD,"2,645.00",CAPITAL PS (REGEN),CONSTRUCTION FEES  - EXTERNAL,2103094833,3000001948
03.05.2020,CHILDREN AND ADULT,FAITHFUL & GOULD,"22,262.71",CAPITAL PS (EDUCATION),CONSTRUCTION FEES,5902415900,1000061390
03.05.2020,CUSTOMER EXPERIENCE HGF,IMPERIAL COLLEGE PROJECTS LTD,292,CORONER'S,PROFESSIONAL FEES,5902415841,1000080106
03.05.2020,CUSTOMER EXPERIENCE HGF,IMPERIAL COLLEGE PROJECTS LTD,336,CORONER'S,PROFESSIONAL FEES,5902415839,1000080106
03.05.2020,CUSTOMER EXPERIENCE HGF,IMPERIAL COLLEGE PROJECTS LTD,336,CORONER'S,PROFESSIONAL FEES,5902415844,1000080106
03.05.2020,CUSTOMER EXPERIENCE HGF,IMPERIAL COLLEGE PROJECTS LTD,472,CORONER'S,PROFESSIONAL FEES,5902415845,1000080106
03.05.2020,CUSTOMER EXPERIENCE HGF,IMPERIAL COLLEGE PROJECTS LTD,472,CORONER'S,PROFESSIONAL FEES,5902415850,1000080106
03.05.2020,CUSTOMER EXPERIENCE HGF,IMPERIAL COLLEGE PROJECTS LTD,484,CORONER'S,PROFESSIONAL FEES,5902415855,1000080106
03.05.2020,CUSTOMER EXPERIENCE HGF,IMPERIAL COLLEGE PROJECTS LTD,496,CORONER'S,PROFESSIONAL FEES,5902415843,1000080106
03.05.2020,ENVIRONMENT AND LEISURE,WATERMAN INFRASTRUCTURE & ENVIRONMENT LTD,"4,562.00",CAPITAL PS (LEISURE),CONSTR'N SUB CONTRACT - NON CERTIFICATED,5902415506,1000060529
03.05.2020,ENVIRONMENT AND LEISURE,CONWAY AECOM LTD,"114,724.49",CAPITAL PS (LEISURE),CONSTRUCTION,2103093689,3000001595
03.05.2020,ENVIRONMENT AND LEISURE,SAWYER FISHER (EPSOM) LTD,402.5,CAPITAL PS (LEISURE),CONSTRUCTION FEES  - EXTERNAL,5902415793,1000083380
03.05.2020,ENVIRONMENT AND LEISURE,WARWICK LANDSCAPING LTD,"6,877.00",CAPITAL PS (LEISURE),CONSTRUCTION FEES - ARCHITECT,2103094075,3000001705
03.05.2020,ENVIRONMENT DIRECTORATE,BELL BRUSH COMPANY,342.5,MANAGEMENT TEAM,MATERIALS,5902415234,1259776
03.05.2020,ENVIRONMENT DIRECTORATE,F R JONES & SON LTD,440.3,NON HOUSING GROUNDS,EQUIPMENT PURCHASE & REPAIR,5902415525,1000037178
03.05.2020,ENVIRONMENT DIRECTORATE,TRANSPORT FOR LONDON,"94,201.40",TRAFFIC SIGNALS,EXTERNAL AGENCIES AND BODIES,5902415440,1000023986
03.05.2020,EXCHEQUER SERVICES,DSI BILLING SERVICES LTD,"1,662.94",ADMINISTRATIVE SUPPORT,POSTAGES,5902415811,1000058640
03.05.2020,REGENERATION,TREE SHEPHERD LTD,"3,475.00",MASTER PLAN-H/WAY & TRANS INTERCHANGE,EXTERNAL AGENCIES AND BODIES,5902415989,1000076895
04.05.2020,ADULT SOCIAL CARE,NPOWER,359.87, LD MGMT & SUPPORT,ELECTRICITY,5902416067,1000055441
04.05.2020,ADULT SOCIAL CARE,NPOWER,"1,746.36", LD MGMT & SUPPORT,ELECTRICITY,5902416072,1000055441
04.05.2020,ADULT SOCIAL CARE,WINDSOR WALK HOUSING ASSOCIATION,266.8,APPOINTEESHIPS,OTHER PAYMENTS FOR CLIENTS,2103096076,1012653
04.05.2020,ADULT SOCIAL CARE,CHOICE SUPPORT,400,APPOINTEESHIPS,OTHER PAYMENTS FOR CLIENTS,2103096015,1104183
04.05.2020,ADULT SOCIAL CARE,PEABODY TRUST,554.44,APPOINTEESHIPS,OTHER PAYMENTS FOR CLIENTS,2103096049,11275862
04.05.2020,ADULT SOCIAL CARE,PEABODY TRUST,638.84,APPOINTEESHIPS,OTHER PAYMENTS FOR CLIENTS,2103096050,11275862
04.05.2020,ADULT SOCIAL CARE,EQUINOX CARE,600,APPOINTEESHIPS,OTHER PAYMENTS FOR CLIENTS,2103096025,11325422
04.05.2020,ADULT SOCIAL CARE,HYDE HOUSING ASSOCIATION LTD,900.16,APPOINTEESHIPS,OTHER PAYMENTS FOR CLIENTS,2103096072,1000013980
04.05.2020,ADULT SOCIAL CARE,HYDE HOUSING ASSOCIATION LTD,"1,166.68",APPOINTEESHIPS,OTHER PAYMENTS FOR CLIENTS,2103096070,1000013980
04.05.2020,ADULT SOCIAL CARE,PLUS SERVICES,516,APPOINTEESHIPS,OTHER PAYMENTS FOR CLIENTS,2103096053,1000021241
04.05.2020,ADULT SOCIAL CARE,AMBLESIDE LODGE,360,APPOINTEESHIPS,OTHER PAYMENTS FOR CLIENTS,2103096005,1000042535
04.05.2020,ADULT SOCIAL CARE,SOUTH LONDON & MAUDSLEY NHS TRUST,280,APPOINTEESHIPS,OTHER PAYMENTS FOR CLIENTS,2103096055,1000043352
04.05.2020,ADULT SOCIAL CARE,GLEN CARE GROUP,300,APPOINTEESHIPS,OTHER PAYMENTS FOR CLIENTS,2103096026,1000050223
04.05.2020,ADULT SOCIAL CARE,AFFINITY SUTTON HOMES LTD,319.24,APPOINTEESHIPS,OTHER PAYMENTS FOR CLIENTS,2103096003,1000051647
04.05.2020,ADULT SOCIAL CARE,HEXAGON HOUSING ASSOCIATION LTD,604.12,APPOINTEESHIPS,OTHER PAYMENTS FOR CLIENTS,2103096027,1000056905
04.05.2020,ADULT SOCIAL CARE,ST MUNGO'S ASSOCIATION,325.16,APPOINTEESHIPS,OTHER PAYMENTS FOR CLIENTS,2103096059,1000058785
04.05.2020,ADULT SOCIAL CARE,DINARDO SUPPORTS LTD,378.53,APPOINTEESHIPS,OTHER PAYMENTS FOR CLIENTS,2103096021,1000063093
04.05.2020,ADULT SOCIAL CARE,DINARDO SUPPORTS LTD,378.53,APPOINTEESHIPS,OTHER PAYMENTS FOR CLIENTS,2103096022,1000063093
04.05.2020,ADULT SOCIAL CARE,FOUNTAIN CARE LTD,344.4,APPOINTEESHIPS,OTHER PAYMENTS FOR CLIENTS,2103096190,1000066815
04.05.2020,ADULT SOCIAL CARE,METROPOLITAN HOUSING TRUST,464.8,APPOINTEESHIPS,OTHER PAYMENTS FOR CLIENTS,2103096042,1000069880
04.05.2020,ADULT SOCIAL CARE,LOOK AHEAD CARE AND SUPPORT LTD,278.08,APPOINTEESHIPS,OTHER PAYMENTS FOR CLIENTS,2103096040,1000072923
04.05.2020,ADULT SOCIAL CARE,LONDON CYRENIANS HOUSING LTD,600,APPOINTEESHIPS,OTHER PAYMENTS FOR CLIENTS,2103096034,1000078600
04.05.2020,ADULT SOCIAL CARE,ELIZABETH PETERS CARE HOMES LTD,280,APPOINTEESHIPS,OTHER PAYMENTS FOR CLIENTS,2103096023,1000078858
04.05.2020,ADULT SOCIAL CARE,STRADA CARE LTD,560,APPOINTEESHIPS,OTHER PAYMENTS FOR CLIENTS,2103096060,1000082133
04.05.2020,ADULT SOCIAL CARE,SALISBURY SUPPORT 4 AUTISM LTD,400,APPOINTEESHIPS,OTHER PAYMENTS FOR CLIENTS,2103096054,1000082674
04.05.2020,ADULT SOCIAL CARE,HOUSE OF SHAN LTD,460,APPOINTEESHIPS,OTHER PAYMENTS FOR CLIENTS,2103096028,1000083169
04.05.2020,ADULT SOCIAL CARE,CYGNET SURREY LTD,280,APPOINTEESHIPS,OTHER PAYMENTS FOR CLIENTS,2103096017,1000083341
04.05.2020,ADULT SOCIAL CARE,REDACTED PERSONAL DATA,279.85,APPOINTEESHIPS,OTHER PAYMENTS FOR CLIENTS,REDACTED,REDACTED
04.05.2020,ADULT SOCIAL CARE,REDACTED PERSONAL DATA,320,APPOINTEESHIPS,OTHER PAYMENTS FOR CLIENTS,REDACTED,REDACTED
04.05.2020,ADULT SOCIAL CARE,REDACTED PERSONAL DATA,260,APPOINTEESHIPS,OTHER PAYMENTS FOR CLIENTS,REDACTED,REDACTED
04.05.2020,ADULT SOCIAL CARE,REDACTED PERSONAL DATA,623.4,APPOINTEESHIPS,OTHER PAYMENTS FOR CLIENTS,REDACTED,REDACTED
04.05.2020,ADULT SOCIAL CARE,REDACTED PERSONAL DATA,520,APPOINTEESHIPS,OTHER PAYMENTS FOR CLIENTS,REDACTED,REDACTED
04.05.2020,ADULT SOCIAL CARE,REDACTED PERSONAL DATA,400,APPOINTEESHIPS,OTHER PAYMENTS FOR CLIENTS,REDACTED,REDACTED
04.05.2020,ADULT SOCIAL CARE,REDACTED PERSONAL DATA,440,APPOINTEESHIPS,OTHER PAYMENTS FOR CLIENTS,REDACTED,REDACTED
04.05.2020,ADULT SOCIAL CARE,MEDACS HOMECARE,555.12,LD LTS 18-64,SUPPORTED LIVING,2103095915,11287415
04.05.2020,ADULT SOCIAL CARE,MARTIN VITERA LTD,281.62,ORIENT ST � RESPITE,PREMISES CLEANING,5902416122,1560597
04.05.2020,ADULT SOCIAL CARE,PROFAD CARE AGENCY,618.45,PHY LTS 18-64,HOMECARE - SPOT,2103095979,1000079032
04.05.2020,ADULT SOCIAL CARE,PROFAD CARE AGENCY,"2,790.00",PHY LTS 18-64,HOMECARE - SPOT,2103095917,1000079032
04.05.2020,ADULT SOCIAL CARE,PROFAD CARE AGENCY,"1,041.60",PHY LTS 65+,HOMECARE - C&V,2103095916,1000079032
04.05.2020,ADULT SOCIAL CARE,SERVESOUL LTD,262.87,PHY LTS 65+,HOMECARE - SPOT,2103095997,1000081503
04.05.2020,ADULT SOCIAL CARE,SERVESOUL LTD,346.32,PHY LTS 65+,HOMECARE - SPOT,2103095996,1000081503
04.05.2020,ADULT SOCIAL CARE,SERVESOUL LTD,425.6,PHY LTS 65+,HOMECARE - SPOT,2103095985,1000081503
04.05.2020,ADULT SOCIAL CARE,SERVESOUL LTD,517.39,PHY LTS 65+,HOMECARE - SPOT,2103095992,1000081503
04.05.2020,ADULT SOCIAL CARE,SERVESOUL LTD,534.08,PHY LTS 65+,HOMECARE - SPOT,2103095982,1000081503
04.05.2020,ADULT SOCIAL CARE,SERVESOUL LTD,559.12,PHY LTS 65+,HOMECARE - SPOT,2103096001,1000081503
04.05.2020,ADULT SOCIAL CARE,SERVESOUL LTD,671.77,PHY LTS 65+,HOMECARE - SPOT,2103095991,1000081503
04.05.2020,ADULT SOCIAL CARE,TUNSTALL HEALTHCARE (UK) LTD,-550,SOUTHWARK RESOURCE CENTRE,EQUIPMENT PURCHASE & REPAIR,5902414013,1012297
04.05.2020,ADULT SOCIAL CARE,TUNSTALL HEALTHCARE (UK) LTD,-550,SOUTHWARK RESOURCE CENTRE,EQUIPMENT PURCHASE & REPAIR,5902414015,1012297
04.05.2020,ADULT SOCIAL CARE,TUNSTALL HEALTHCARE (UK) LTD,-550,SOUTHWARK RESOURCE CENTRE,EQUIPMENT PURCHASE & REPAIR,5902414016,1012297
04.05.2020,ADULT SOCIAL CARE,CONTACT PROFESSIONALS,285,SPECIALIST CARE,SECTION 17 PAYMENTS TO AGENCIES/CARERS,2103095972,1000057263
04.05.2020,ADULT SOCIAL CARE,CONTACT PROFESSIONALS,304,SPECIALIST CARE,SECTION 17 PAYMENTS TO AGENCIES/CARERS,2103095943,1000057263
04.05.2020,ADULT SOCIAL CARE,CONTACT PROFESSIONALS,323,SPECIALIST CARE,SECTION 17 PAYMENTS TO AGENCIES/CARERS,2103095975,1000057263
04.05.2020,ADULT SOCIAL CARE,CONTACT PROFESSIONALS,380,SPECIALIST CARE,SECTION 17 PAYMENTS TO AGENCIES/CARERS,2103095947,1000057263
04.05.2020,ADULT SOCIAL CARE,SERVESOUL LTD,375.53,SUB LTS 18-64,HOMECARE - SPOT,2103095987,1000081503
04.05.2020,ASSET MANAGEMENT,GAS ADVISORY SERVICES LIMITED,"1,472.75",ENG CONTRACTS (NORTH),HEATING -DISTRICT SERVICE (CONTRACT SUM),5902416061,1000064649
04.05.2020,CHIEF EXECUTIVE,PLAYLE & PARTNERS,693,CAPITAL PS (REGEN),CONSTRUCTION FEES,5902416014,1000043982
04.05.2020,CHIEF EXECUTIVE,PURCELL ARCHITECTURE LTD,"6,814.50",CAPITAL PS (REGEN),CONSTRUCTION FEES  - EXTERNAL,5902415866,1000082955
04.05.2020,CHIEF EXECUTIVE'S OFFICE,DIMA BEAUTIFUL LTD,"5,000.00",SOUTHWARK PIONEER FUND,GRANTS,2103095901,1000084308
04.05.2020,CHIEF EXECUTIVE'S OFFICE,SIX YARD BOX LTD T/A THE TAP IN,"9,653.83",SOUTHWARK PIONEER FUND,GRANTS,2103095902,1000084309
04.05.2020,CHIEF EXECUTIVE'S OFFICE,NEUVILLE GRID DATA MANAGEMENT LTD,"5,000.00",SOUTHWARK PIONEER FUND,GRANTS,2103095903,1000084319
04.05.2020,CHIEF EXECUTIVE'S OFFICE,PARKERS BUILDING SERVICES LTD,"5,000.00",SOUTHWARK PIONEER FUND,GRANTS,2103095905,1000084339
04.05.2020,CHIEF EXECUTIVE'S OFFICE,NIX & KIX LTD,"10,000.00",SOUTHWARK PIONEER FUND,GRANTS,2103095904,1000084344
04.05.2020,CHILDREN AND ADULT,PELLINGS LLP,259.2,CAPITAL PS (EDUCATION),CONSTRUCTION MAIN CONTRACT -CERTIFICATED,5902416107,1009262
04.05.2020,CHILDREN'S SERVICES,REDACTED PERSONAL DATA,480,ADOPTION PLACEMENTS & INTER AGENCY,PAYMENTS TO CARERS,REDACTED,REDACTED
04.05.2020,CHILDREN'S SERVICES,PARENTS AND CHILDREN TOGETHER,"32,063.00",ALS INTER AGENCY,EXTERNAL AGENCIES AND BODIES,5902416108,1000068128
04.05.2020,CHILDREN'S SERVICES,BEORMUND PRIMARY SCHOOL,"12,048.96",BEORMUND PRIMARY SCHOOL,HIGH NEEDS - TOP UP FUNDING,2103096097,5001000008
04.05.2020,CHILDREN'S SERVICES,BLERINA TAHIRAJ-PRITCHARD,364.58,FAMILY GROUP CONFERENCES,PROFESSIONAL FEES,5902415696,1000083304
04.05.2020,CHILDREN'S SERVICES,BLERINA TAHIRAJ-PRITCHARD,405.53,FAMILY GROUP CONFERENCES,PROFESSIONAL FEES,5902415698,1000083304
04.05.2020,CHILDREN'S SERVICES,HAYMERLE SCHOOL,"15,639.40",HAYMERLE PRIMARY SCHOOL,HIGH NEEDS - TOP UP FUNDING,2103096096,5001000045
04.05.2020,CHILDREN'S SERVICES,HIGHSHORE SCHOOL,"126,862.43",HIGHSHORE,HIGH NEEDS - TOP UP FUNDING,2103096095,5001000046
04.05.2020,CHILDREN'S SERVICES,WONDE LTD,795,HOLLYDALE PRIMARY SCHOOL,SCHOOLS CAPITATION,5902416133,1000084215
04.05.2020,CHILDREN'S SERVICES,BRUNSWICK PARK PRIMARY SCHOOL,"8,071.00",IN YEAR STATEMENTS & REORGS,SCHOOLS CAPITATION,2103096094,5001000013
04.05.2020,CHILDREN'S SERVICES,ST JUDES CHURCH OF ENGLAND PRIMARY,"8,076.00",IN YEAR STATEMENTS & REORGS,SCHOOLS CAPITATION,2103096091,5001000019
04.05.2020,CHILDREN'S SERVICES,HEBER PRIMARY SCHOOL,405.72,IN YEAR STATEMENTS & REORGS,SCHOOLS CAPITATION,2103096092,5001000035
04.05.2020,CHILDREN'S SERVICES,SNOWSFIELDS PRIMARY SCHOOL,"9,402.88",IN YEAR STATEMENTS & REORGS,SCHOOLS CAPITATION,2103096093,5001000061
04.05.2020,CHILDREN'S SERVICES,KEYWORTH PRIMARY SCHOOL,"5,000.00",KEYWORTH PRIMARY SCHOOL,SCHOOLS CAPITATION,2103096090,5001000041
04.05.2020,CHILDREN'S SERVICES,GOODRICH PRIMARY SCHOOL,"4,100.00",PUPIL PREMIUM,"SCHOOLS CAPITATION, STANDARDS FUND",2103096210,5001000028
04.05.2020,CHILDREN'S SERVICES,FRIARS PRIMARY SCHOOL,575,PUPIL PREMIUM,"SCHOOLS CAPITATION, STANDARDS FUND",2103096214,5001000033
04.05.2020,CHILDREN'S SERVICES,HOLLYDALE PRIMARY SCHOOL,"1,150.00",PUPIL PREMIUM,"SCHOOLS CAPITATION, STANDARDS FUND",2103096213,5001000036
04.05.2020,CHILDREN'S SERVICES,MICHAEL FARADAY PRIMARY SCHOOL,"1,725.00",PUPIL PREMIUM,"SCHOOLS CAPITATION, STANDARDS FUND",2103096211,5001000048
04.05.2020,CHILDREN'S SERVICES,NOTRE DAME RC GIRLS SCHOOL,"1,225.00",PUPIL PREMIUM,"SCHOOLS CAPITATION, STANDARDS FUND",2103096212,5001000050
04.05.2020,CHILDREN'S SERVICES,ST JOHNS & ST CLEMENTS CE SCHOOL,"4,600.00",PUPIL PREMIUM,"SCHOOLS CAPITATION, STANDARDS FUND",2103096209,5001000073
04.05.2020,CHILDREN'S SERVICES,E A JIGSAW CARE LIMITED,"4,035.65",SEMI INDEPENDENT CARE LEAVERS,EXTERNAL AGENCIES AND BODIES,5902416109,1000084233
04.05.2020,CHILDREN'S SERVICES,SPA EDUCATION TRUST,"150,000.00",SEND CAPITAL FUND PAYMENTS,SCHOOLS CAPITATION,2103096215,1000081600
04.05.2020,CHILDREN'S SERVICES,REDACTED PERSONAL DATA,"1,896.00",STAYING PUT,PAYMENTS TO CARERS,REDACTED,REDACTED
04.05.2020,CHILDREN'S SERVICES,KINGSDALE FOUNDATION SCHOOL,338,TRADE UNIONS,SCHOOLS CAPITATION,2103096089,1000065405
04.05.2020,CHILDREN'S SERVICES,TUKE SCHOOL,"5,755.27",TUKE SCHOOL,HIGH NEEDS - TOP UP FUNDING,2103096098,5001000097
04.05.2020,COMMUNITIES,BRENCHLEY GARDENS MANAGEMENT ASSOCIATION,"-1,500.21",BRENCHLEY GARDENS,M&M ALLOWANCE CO-OPS,5902416402,11324247
04.05.2020,COMMUNITIES,BRENCHLEY GARDENS MANAGEMENT ASSOCIATION,"1,500.21",BRENCHLEY GARDENS,M&M ALLOWANCE CO-OPS,5902413084,11324247
04.05.2020,COMMUNITIES,TEDS VEG,"7,375.00",C19 COMMUNITY HUB,CATERING MATERIALS & SUPPLIES,5902416069,1000084245
04.05.2020,COMMUNITIES,TAAKSVALE HOUSING LTD,"33,998.25",NO RECOURSE TO PUBLIC FUNDS,ACCOMMODATION CHARGES,5902416112,1000073665
04.05.2020,COMMUNITIES,APEX HOUSING SOLUTIONS LTD,"2,449.00",NO RECOURSE TO PUBLIC FUNDS,ACCOMMODATION CHARGES,5902416119,1000079786
04.05.2020,COMMUNITIES,ROADWORKS MEDIA,"5,000.00",SOUTHWARK ANTI VIOLENCE UNIT,GRANTS,5902415789,1000081375
04.05.2020,COMMUNITIES,COSSALL ESTATES T&RA,952.4,TRSIG,GRANTS,5902416089,1999191
04.05.2020,CUSTOMER EXPERIENCE HGF,CIVICA UK LTD,600,CORONER'S,PROFESSIONAL FEES,5902416080,1730625
04.05.2020,CUSTOMER EXPERIENCE HGF,IMPERIAL COLLEGE PROJECTS LTD,512,CORONER'S,PROFESSIONAL FEES,5902415858,1000080106
04.05.2020,CUSTOMER EXPERIENCE HGF,SOUTH LONDON ESTATE LTD,"3,000.00",HOMELESS PROJECTS,GRANTS,5902416131,1000046096
04.05.2020,CUSTOMER EXPERIENCE HGF,PERPETUA NORVILLE,"3,000.00",HOMELESS PROJECTS,GRANTS,5902416120,1000084317
04.05.2020,CUSTOMER EXPERIENCE HGF,HANSEN PALOMARES SOLICITORS,"7,700.00",HOUSING OPTIONS,LEGAL FEES & COURT COSTS,5902416105,11053592
04.05.2020,CUSTOMER EXPERIENCE HGF,VENTURE HOUSING (LONDON) LTD,410,NIGHTLY TA (NSC),EXTERNAL AGENCIES AND BODIES,5902416123,1000056686
04.05.2020,CUSTOMER EXPERIENCE HGF,VENTURE HOUSING (LONDON) LTD,540,NIGHTLY TA (NSC),EXTERNAL AGENCIES AND BODIES,5902416125,1000056686
04.05.2020,CUSTOMER EXPERIENCE HGF,VENTURE HOUSING (LONDON) LTD,674.5,NIGHTLY TA (NSC),EXTERNAL AGENCIES AND BODIES,5902416124,1000056686
04.05.2020,CUSTOMER EXPERIENCE HGF,VENTURE HOUSING (LONDON) LTD,"4,290.00",NIGHTLY TA (NSC),EXTERNAL AGENCIES AND BODIES,5902416126,1000056686
04.05.2020,CUSTOMER EXPERIENCE HGF,FINEFAIR LTD,"21,180.83",PSL PLACEMENTS,EXTERNAL AGENCIES AND BODIES,5902416132,1000075570
04.05.2020,CUSTOMER EXPERIENCE HGF,FINEFAIR LTD,"144,914.99",PSL PLACEMENTS,EXTERNAL AGENCIES AND BODIES,5902416128,1000075570
04.05.2020,CUSTOMER EXPERIENCE HGF,TUNSTALL HEALTHCARE (UK) LTD,"2,750.00",SMART MOBILE RESPONSE TEAM,EQUIPMENT PURCHASE & REPAIR,5902416056,1012297
04.05.2020,ENVIRONMENT AND LEISURE,LEATHERMARKET JMB HOUSING,"6,406.85",CAPITAL PS (LEISURE),CAPITAL GRANTS,5902416088,11182872
04.05.2020,ENVIRONMENT AND LEISURE,CONWAY AECOM LTD,652.16,CAPITAL PS (LEISURE),CONSTR'N SUB CONTRACT - NON CERTIFICATED,5902415706,1000071205
04.05.2020,ENVIRONMENT DIRECTORATE,LONDON BOROUGH OF CAMDEN,"2,500.00",EH & TS MANAGER,PROFESSIONAL FEES,5902416011,11234355
04.05.2020,ENVIRONMENT DIRECTORATE,CONWAY AECOM LTD,"3,567.20",FLOOD RISK MANAGEMENT,HIGHWAYS TERM CONTRACT,5902415741,1000071205
04.05.2020,ENVIRONMENT DIRECTORATE,CONWAY AECOM LTD,"6,074.40",FLOOD RISK MANAGEMENT,HIGHWAYS TERM CONTRACT,5902415742,1000071205
04.05.2020,ENVIRONMENT DIRECTORATE,CONWAY AECOM LTD,12281.5,FLOOD RISK MANAGEMENT,HIGHWAYS TERM CONTRACT,5902415743,1000071205
04.05.2020,ENVIRONMENT DIRECTORATE,FUTURE GARMENTS LTD T/A EUROX,"1,351.80",MANAGEMENT TEAM,"CLOTHING, UNIFORMS & LAUNDRY",5902415681,1000080983
04.05.2020,ENVIRONMENT DIRECTORATE,F R JONES & SON LTD,263.68,NON HOUSING GROUNDS,EQUIPMENT PURCHASE & REPAIR,5902415788,1000037178
04.05.2020,ENVIRONMENT DIRECTORATE,CONWAY AECOM LTD,"4,330.78",PARKING OVERHEADS,OTHER CONTRACTORS,5902416016,1000071205
04.05.2020,EXCHEQUER SERVICES,GAGE PROJECT MANAGEMENT LTD,"2,850.00",PROJECTS,OTHER CONTRACTORS,5902416130,1000083372
04.05.2020,EXCHEQUER SERVICES,MAYOR OF SOUTHWARKS COMMON GOOD TRUST,"2,000.00",SESS,OTHER PAYMENTS FOR CLIENTS,2103096218,1000020633
04.05.2020,EXCHEQUER SERVICES,SOUTHSIDE YOUNG LEADERS ACADEMY,"5,000.00",SESS,OTHER PAYMENTS FOR CLIENTS,2103096216,1000061432
04.05.2020,EXCHEQUER SERVICES,MUSCULAR DYSTROPHY UK,"1,000.00",SESS,OTHER PAYMENTS FOR CLIENTS,2103096217,1000084263
04.05.2020,EXCHEQUER SERVICES,ASSALATURRAHMAN ISLAMIC ASSOCIATION,"1,000.00",SESS,OTHER PAYMENTS FOR CLIENTS,2103096219,1000084274
04.05.2020,FINANCE DIRECTOR,BDO LLP,"4,500.00",INTERNAL AUDIT CONTRACTS,PAYMENTS FOR FINANCIAL SERVICES,5902416117,1000057898
04.05.2020,FINANCE DIRECTOR,BDO LLP,"5,029.00",INTERNAL AUDIT CONTRACTS,PAYMENTS FOR FINANCIAL SERVICES,5902416118,1000057898
04.05.2020,HOUSING HRA,CALFORD SEADEN LLP,"12,640.50",CAPITAL PS (HRA),CONSTRUCTION FEES,5902416044,1061592
04.05.2020,HOUSING HRA,CALFORD SEADEN LLP,"22,341.64",CAPITAL PS (HRA),CONSTRUCTION FEES,5902416048,1061592
04.05.2020,HOUSING HRA,CALFORD SEADEN LLP,"2,194.09",CAPITAL PS (HRA),CONSTRUCTION FEES  - EXTERNAL,5902415806,1061592
04.05.2020,HOUSING HRA,APT SCAFFOLDING LTD,"35,320.00",CAPITAL PS (HRA),CONSTRUCTION SUB CONTRACT -CERTIFICATED,2103096099,3000002155
04.05.2020,LAW & DEMOCRACY,INFORMATION COMMISSIONERS OFFICE,"2,900.00",INFORMATION GOVERNANCE,SUBSCRIPTIONS,5902416104,1000000794
04.05.2020,LEISURE DIRECTORATE,VANESSA WOOLF,340,LIBRARIES DEVELOPMENT,SUBSCRIPTIONS,5902415987,1000065928
04.05.2020,LEISURE DIRECTORATE,C S G (USHERS) LTD,"6,000.00",TREES PRINCIPAL ROADS,OTHER CONTRACTORS,5902416111,1000073203
04.05.2020,MODERNISATION HGF,FOREMOST PRO LTD,672,TSFM CONTINGENCY,INTEGRATED FACILITIES MANAGEMENT CONTRACT,5902415406,1000084218
04.05.2020,PLANNING AND TRANSPORT,LAURA MINGOZZI-MARSH,995,PECKHAM TOWNSCAPE HERITAGE INITIATIVE,PROFESSIONAL FEES,5902416068,1000084305
04.05.2020,PLANNING AND TRANSPORT,VIVACITY LABS LIMITED,"7,500.00",TRANSPORT POLICY AND PROGRAMS,PROFESSIONAL FEES,5902416114,1000083935
04.05.2020,REGENERATION,PURCELL ARCHITECTURE LTD,"4,000.00",MISC INDUSTRIAL PROPERTIES,PROFESSIONAL FEES,5902415865,1000082955
04.05.2020,RESIDENT SERVICES,APCOA PARKING (UK) LTD,"12,781.28",PARKING CONTROL,OTHER CONTRACTORS,5902416103,1718645
04.05.2020,RESIDENT SERVICES HGF,BRITISH GAS TRADING LTD,-549.02,ILDERTON ROAD PERM,GAS,5902416373,1000055977
04.05.2020,RESIDENT SERVICES HGF,BRITISH GAS TRADING LTD,549.02,ILDERTON ROAD PERM,GAS,5902413687,1000055977
05.05.2020,ADULT SOCIAL CARE,AMELIA'S HOUSE LIMITED,"2,800.00",DISABILITIES LAC,OTHER PAYMENTS FOR CLIENTS,2103096296,1000083007
05.05.2020,ADULT SOCIAL CARE,AMELIA'S HOUSE LIMITED,"3,000.00",DISABILITIES LAC,OTHER PAYMENTS FOR CLIENTS,2103096295,1000083007
05.05.2020,ADULT SOCIAL CARE,AMELIA'S HOUSE LIMITED,"4,000.00",DISABILITIES LAC,OTHER PAYMENTS FOR CLIENTS,2103096294,1000083007
05.05.2020,ADULT SOCIAL CARE,RESOURCES FOR AUTISM,"1,390.00",LD LTS 18-64,SUPPORTED LIVING,2103096277,1000062540
05.05.2020,ADULT SOCIAL CARE,ABILITY FOCUS LTD,714,LD LTS 18-64,SUPPORTED LIVING,2103096274,1000084199
05.05.2020,ADULT SOCIAL CARE,ABILITY FOCUS LTD,"2,030.00",LD LTS 18-64,SUPPORTED LIVING,2103096278,1000084199
05.05.2020,ADULT SOCIAL CARE,REDACTED PERSONAL DATA,"3,682.28",LD LTS 18-64,SUPPORTED LIVING,REDACTED,REDACTED
05.05.2020,ADULT SOCIAL CARE,PHOENIX HEALTHCARE & RECRUITMENT,391.36,PHY LTS 18-64,DAYCARE,2103096284,1000065636
05.05.2020,ADULT SOCIAL CARE,PHOENIX HEALTHCARE & RECRUITMENT,444.69,PHY LTS 18-64,DAYCARE,2103096282,1000065636
05.05.2020,ADULT SOCIAL CARE,BUDDI LTD,430,SOCIAL ISOLATION,EQUIPMENT PURCHASE & REPAIR,2103096255,1000067243
05.05.2020,ADULT SOCIAL CARE,CLOUDS END SERVICES LTD,300,SOCIAL ISOLATION,EXTERNAL AGENCIES AND BODIES,2103096283,1000079240
05.05.2020,ADULT SOCIAL CARE,RESOURCES FOR AUTISM,285,SPECIALIST CARE,SECTION 17 PAYMENTS TO AGENCIES/CARERS,2103096293,1000062540
05.05.2020,ADULT SOCIAL CARE,RESOURCES FOR AUTISM,540,SPECIALIST CARE,SECTION 17 PAYMENTS TO AGENCIES/CARERS,2103096287,1000062540
05.05.2020,ADULT SOCIAL CARE,RESOURCES FOR AUTISM,750,SPECIALIST CARE,SECTION 17 PAYMENTS TO AGENCIES/CARERS,2103096289,1000062540
05.05.2020,ADULT SOCIAL CARE,STREETSCENE ADDICTION RECOVERY LTD,"3,180.00",SUB LTS 18-64,PLACEMENTS - REHAB,2103096273,11221787
05.05.2020,ASSET MANAGEMENT,JUDGE AND PRIESTLEY SOLICITORS,"6,500.00",DISREPAIR,PAYMENTS FOR LEGAL SERVICES,2103096222,1472217
05.05.2020,ASSET MANAGEMENT,HODGE JONES & ALLEN,"10,000.00",DISREPAIR,PAYMENTS FOR LEGAL SERVICES,2103096229,11011881
05.05.2020,ASSET MANAGEMENT,HANSEN PALOMARES SOLICITORS,300,DISREPAIR,PAYMENTS FOR LEGAL SERVICES,2103096231,11053592
05.05.2020,ASSET MANAGEMENT,ANTONY HODARI  SOLICITORS,"4,500.00",DISREPAIR,PAYMENTS FOR LEGAL SERVICES,2103096225,1000031040
05.05.2020,ASSET MANAGEMENT,WAINWRIGHT & CUMMINS LLP,"5,750.00",DISREPAIR,PAYMENTS FOR LEGAL SERVICES,2103096227,1000055805
05.05.2020,ASSET MANAGEMENT,ASHFORDS LLP,"1,250.00",DISREPAIR,PAYMENTS FOR LEGAL SERVICES,2103096234,1000055865
05.05.2020,ASSET MANAGEMENT,ASHFORDS LLP,"1,250.00",DISREPAIR,PAYMENTS FOR LEGAL SERVICES,2103096235,1000055865
05.05.2020,ASSET MANAGEMENT,ASHFORDS LLP,"4,725.00",DISREPAIR,PAYMENTS FOR LEGAL SERVICES,2103096233,1000055865
05.05.2020,ASSET MANAGEMENT,GT STEWART LTD,"9,000.00",DISREPAIR,PAYMENTS FOR LEGAL SERVICES,2103096223,1000061213
05.05.2020,ASSET MANAGEMENT,MLA SOLICITORS,"2,000.00",DISREPAIR,PAYMENTS FOR LEGAL SERVICES,2103096228,1000079716
05.05.2020,ASSET MANAGEMENT,CHESHIRE ESTATE AND LEGAL LTD,"1,000.00",DISREPAIR,PAYMENTS FOR LEGAL SERVICES,2103096226,1000081908
05.05.2020,ASSET MANAGEMENT,CHESHIRE ESTATE AND LEGAL LTD,"3,500.00",DISREPAIR,PAYMENTS FOR LEGAL SERVICES,2103096224,1000081908
05.05.2020,ASSET MANAGEMENT,AWH LEGAL LTD,"4,000.00",DISREPAIR,PAYMENTS FOR LEGAL SERVICES,2103096230,1000082134
05.05.2020,ASSET MANAGEMENT,AWH LEGAL LTD,"4,750.00",DISREPAIR,PAYMENTS FOR LEGAL SERVICES,2103096221,1000082134
05.05.2020,ASSET MANAGEMENT,BARNES SOLICITORS LLP,"1,250.00",DISREPAIR,PAYMENTS FOR LEGAL SERVICES,2103096220,1000083820
05.05.2020,ASSET MANAGEMENT,GAS & ENVIRONMENTAL SERVICES LTD,"1,101.00",HEALTH AND SAFETY,PROFESSIONAL FEES,5902416315,1000066947
05.05.2020,ASSET MANAGEMENT,RELIANCE HIGH-TECH LTD,742.17,REPAIRS OPERATIONS,OFFICE EXPENSES,5902416259,1000079374
05.05.2020,CENTRAL FUNCTIONS,CURRIE & BROWN UK LTD,669.3,COMMERCIAL PROPERTIES,PROFESSIONAL FEES,5902416203,1000033455
05.05.2020,CENTRAL FUNCTIONS,LAMBERT SMITH HAMPTON GROUP LTD,"7,941.00",TECHNICAL SUPPORT,PROFESSIONAL FEES,5902416312,1000060045
05.05.2020,CENTRAL FUNCTIONS,LAMBERT SMITH HAMPTON GROUP LTD,"9,366.00",TECHNICAL SUPPORT,PROFESSIONAL FEES,5902416313,1000060045
05.05.2020,CENTRAL FUNCTIONS,LAMBERT SMITH HAMPTON GROUP LTD,"10,666.00",TECHNICAL SUPPORT,PROFESSIONAL FEES,5902416316,1000060045
05.05.2020,CHIEF EXECUTIVE'S OFFICE,TREE SHEPHERD LTD,"10,226.00",BUSINESS SUPPORT,FREELANCE SPECIALISTS,5902416311,1000076895
05.05.2020,CHILDREN'S SERVICES,REDACTED PERSONAL DATA,300,CARE LEAVERS SERVICES 16+,OTHER PAYMENTS FOR CLIENTS,REDACTED,REDACTED
05.05.2020,CHILDREN'S SERVICES,REDACTED PERSONAL DATA,299,CARE LEAVERS SERVICES 16+,OTHER PAYMENTS FOR CLIENTS,REDACTED,REDACTED
05.05.2020,CHILDREN'S SERVICES,REDACTED PERSONAL DATA,300,CARE LEAVERS SERVICES 16+,OTHER PAYMENTS FOR CLIENTS,REDACTED,REDACTED
05.05.2020,CHILDREN'S SERVICES,REDACTED PERSONAL DATA,360,CARE SERVICES 0-15,EXTERNAL AGENCIES AND BODIES,REDACTED,REDACTED
05.05.2020,CHILDREN'S SERVICES,CONTACT PROFESSIONALS,287,CARE SERVICES 0-15,OTHER PAYMENTS FOR CLIENTS,5902416196,1000057263
05.05.2020,CHILDREN'S SERVICES,REDACTED PERSONAL DATA,300,DISABILITY & HIV,OTHER PAYMENTS FOR CLIENTS,REDACTED,REDACTED
05.05.2020,CHILDREN'S SERVICES,REDACTED PERSONAL DATA,430.48,FAMILY GROUP CONFERENCES,EXTERNAL AGENCIES AND BODIES,REDACTED,REDACTED
05.05.2020,CHILDREN'S SERVICES,OKIE ADEBANJO,778.5,FAMILY GROUP CONFERENCES,PROFESSIONAL FEES,5902416320,1000082484
05.05.2020,CHILDREN'S SERVICES,OKIE ADEBANJO,853.35,FAMILY GROUP CONFERENCES,PROFESSIONAL FEES,5902416200,1000082484
05.05.2020,CHILDREN'S SERVICES,BY THE BRIDGE LTD,727.98,FRIENDS & FAMILY FOSTERING,EXTERNAL AGENCIES AND BODIES,2103096297,1000043961
05.05.2020,CHILDREN'S SERVICES,INTEGRATED FOSTERING SERVICES LTD,"6,428.70",FRIENDS & FAMILY FOSTERING,EXTERNAL AGENCIES AND BODIES,2103096298,1000082605
05.05.2020,CHILDREN'S SERVICES,LOGICOUS LTD,324.06,FRIENDS & FAMILY FOSTERING,NURSING PLACEMENTS FEES,5902416285,1000073852
05.05.2020,CHILDREN'S SERVICES,LOGICOUS LTD,"1,296.00",FRIENDS & FAMILY FOSTERING,NURSING PLACEMENTS FEES,5902416284,1000073852
05.05.2020,CHILDREN'S SERVICES,REDACTED PERSONAL DATA,400,FURTHER EDUCATION SUPPORT,OTHER PAYMENTS FOR CLIENTS,REDACTED,REDACTED
05.05.2020,CHILDREN'S SERVICES,REDACTED PERSONAL DATA,650,LEAVING CARE GRANT,OTHER PAYMENTS FOR CLIENTS,REDACTED,REDACTED
05.05.2020,CHILDREN'S SERVICES,SALAIMATU SILLAH,"4,641.00",NURSERY ED GRANT 3 AND 4 YR OLDS,GRANTS,2103093652,1000052660
05.05.2020,CHILDREN'S SERVICES,MIQUILINA JUNIOR,"2,441.40",NURSERY ED GRANT 3 AND 4 YR OLDS,GRANTS,2103096240,1000077630
05.05.2020,CHILDREN'S SERVICES,NAFISATU MUHLEMANN,"2,687.10",NURSERY ED GRANT 3 AND 4 YR OLDS,GRANTS,2103096238,1000079321
05.05.2020,CHILDREN'S SERVICES,TIGERS CHLDCARE LTD,"4,941.30",NURSERY ED GRANT 3 AND 4 YR OLDS,GRANTS,2103096237,1000084290
05.05.2020,CHILDREN'S SERVICES,TRACEY WORSLEY,"3,781.05",NURSERY ED GRANT 3 AND 4 YR OLDS,GRANTS,2103096239,1000084318
05.05.2020,CHILDREN'S SERVICES,LITTLE RABBIT DAY NURSERY,"3,898.05",NURSERY ED GRANT 3 AND 4 YR OLDS,GRANTS,2103096236,1000084320
05.05.2020,CHILDREN'S SERVICES,SUPPORTING POSITIVE OUTCOMES LTD,"15,431.60",RESIDENTIAL,RESIDENTIAL CARE,5902416319,1000083918
05.05.2020,CHILDREN'S SERVICES,YOUNG FUTURES,445.2,S & FAM SUPP - PRAC GRP F SET 29-31,OTHER PAYMENTS FOR CLIENTS,2103096317,1000059563
05.05.2020,CHILDREN'S SERVICES,REMARK LIVING,"1,152.00",SCH TRANS - CONTRACT COST,AGENCY STAFF,5902416158,1000081741
05.05.2020,CHILDREN'S SERVICES,NETPEX LTD CORPORATE SERVICES,"1,021.41",SEMI INDEPENDENT CARE LEAVERS,EXTERNAL AGENCIES AND BODIES,2103096304,1000076073
05.05.2020,CHILDREN'S SERVICES,NETPEX LTD CORPORATE SERVICES,426.45,SEMI INDEPENDENT LAC,EXTERNAL AGENCIES AND BODIES,2103096313,1000076073
05.05.2020,CHILDREN'S SERVICES,NETPEX LTD CORPORATE SERVICES,"3,553.75",SEMI INDEPENDENT LAC,EXTERNAL AGENCIES AND BODIES,2103096309,1000076073
05.05.2020,CHILDREN'S SERVICES,NETPEX LTD CORPORATE SERVICES,"4,122.35",SEMI INDEPENDENT LAC,EXTERNAL AGENCIES AND BODIES,2103096305,1000076073
05.05.2020,CHILDREN'S SERVICES,NEXT STEP CARE MANAGEMENT LTD,257.14,SEMI INDEPENDENT LAC,OTHER PAYMENTS FOR CLIENTS,2103096306,1825556
05.05.2020,CHILDREN'S SERVICES,REDACTED PERSONAL DATA,257.14,SEMI INDEPENDENT LAC,OTHER PAYMENTS FOR CLIENTS,REDACTED,REDACTED
05.05.2020,CHILDREN'S SERVICES,ARC COMMUNITY TRUSTEES,650,SPECIAL GUARDIANSHIP,EXTERNAL AGENCIES AND BODIES,5902416213,1000046206
05.05.2020,CHILDREN'S SERVICES,ARC COMMUNITY TRUSTEES,650,SPECIAL GUARDIANSHIP,EXTERNAL AGENCIES AND BODIES,5902416217,1000046206
05.05.2020,CHILDREN'S SERVICES,ARC COMMUNITY TRUSTEES,650,SPECIAL GUARDIANSHIP,EXTERNAL AGENCIES AND BODIES,5902416218,1000046206
05.05.2020,CHILDREN'S SERVICES,ARC COMMUNITY TRUSTEES,650,SPECIAL GUARDIANSHIP,EXTERNAL AGENCIES AND BODIES,5902416220,1000046206
05.05.2020,CHILDREN'S SERVICES,ARC COMMUNITY TRUSTEES,650,SPECIAL GUARDIANSHIP,EXTERNAL AGENCIES AND BODIES,5902416222,1000046206
05.05.2020,CHILDREN'S SERVICES,YOUNG LONDON TODAY,"3,593.80",UASC CARE LEAVERS,EXTERNAL AGENCIES AND BODIES,2103096300,1000071232
05.05.2020,COMMUNITIES,THE PARTICIPATION PEOPLE,"6,849.50",COMMUNITY SAFETY FUND,EXTERNAL AGENCIES AND BODIES,5902416317,1000074059
05.05.2020,COMMUNITIES,SOVEREIGN INSIGNIA LTD T/A IMPAMARK PRESTIGE BRANDED MERCHANDISE,290.25,MAYORAL SUPPORT,MATERIALS,5902416214,1000049053
05.05.2020,COMMUNITIES,SOVEREIGN INSIGNIA LTD T/A IMPAMARK PRESTIGE BRANDED MERCHANDISE,760,MAYORAL SUPPORT,MATERIALS,5902416177,1000049053
05.05.2020,COMMUNITIES,REHAN JAMIL PHOTOGRAPHY,318.4,MAYORAL SUPPORT,PROFESSIONAL FEES,5902416211,1000057529
05.05.2020,COMMUNITIES,REHAN JAMIL PHOTOGRAPHY,"1,100.00",MAYORAL SUPPORT,PROFESSIONAL FEES,5902416166,1000057529
05.05.2020,CUSTOMER EXPERIENCE HGF,SG PATH LTD,595.9,CORONER'S,PROFESSIONAL FEES,5902416237,1000077883
05.05.2020,CUSTOMER EXPERIENCE HGF,VENTURE HOUSING (LONDON) LTD,"6,624.00",NIGHTLY TA (NSC),EXTERNAL AGENCIES AND BODIES,5902416142,1000056686
05.05.2020,CUSTOMER EXPERIENCE HGF,VENTURE HOUSING (LONDON) LTD,"10,080.00",NIGHTLY TA (NSC),EXTERNAL AGENCIES AND BODIES,5902416141,1000056686
05.05.2020,CUSTOMER EXPERIENCE HGF,SOLACE WOMEN'S AID,"11,877.50",NIGHTLY TA (NSC),EXTERNAL AGENCIES AND BODIES,5902416143,1000057231
05.05.2020,CUSTOMER EXPERIENCE HGF,NATIONWIDE ACCOMMODATION,319.5,NIGHTLY TA (NSC),EXTERNAL AGENCIES AND BODIES,5902416170,1000076112
05.05.2020,CUSTOMER EXPERIENCE HGF,NATIONWIDE ACCOMMODATION,385,NIGHTLY TA (NSC),EXTERNAL AGENCIES AND BODIES,5902416161,1000076112
05.05.2020,CUSTOMER EXPERIENCE HGF,NATIONWIDE ACCOMMODATION,"11,762.95",NIGHTLY TA (NSC),EXTERNAL AGENCIES AND BODIES,5902416139,1000076112
05.05.2020,DEPT DORMANT AND DEAD CODES,BRESLIN CONSTRUCTION LTD,"3,450.00",PLAY NORTH,OTHER R&M,2103096254,3000001948
05.05.2020,ENVIRONMENT AND LEISURE,CJS PLANTS,253.5,CAPITAL PS (LEISURE),CONST'N MAIN CONTRACT - NON CERTIFICATED,5902416268,1000025370
05.05.2020,ENVIRONMENT DIRECTORATE,ANGLESEY BOLLARD LTD,359.7,ENGINEERING CRAFTS,MATERIALS,5902416202,1000068368
05.05.2020,ENVIRONMENT DIRECTORATE,SPALDINGS (UK) LTD,500,GROUNDS MAINTENANCE - GENERAL,MATERIALS,5902416154,1907384
05.05.2020,ENVIRONMENT DIRECTORATE,STARK SOFTWARE INTERNATIONAL LTD,"1,361.57",MANAGEMENT TEAM,SOFTWARE,5902416226,1000064347
05.05.2020,ENVIRONMENT DIRECTORATE,EDMUNDSON ELECTRICAL LTD,940,PUBLIC LIGHTING,MATERIALS,5902416289,1000066568
05.05.2020,ENVIRONMENT DIRECTORATE,LONDON TOOLS LIMITED,365,R & M OVERHEADS,EQUIPMENT PURCHASE & REPAIR,5902416255,1000003017
05.05.2020,ENVIRONMENT DIRECTORATE,N & C BUILDING MATERIALS,308.71,SBS AIDS AND ADAPTATIONS,MATERIALS,5902416300,1005586
05.05.2020,ENVIRONMENT DIRECTORATE,NPOWER LTD,393.21,STREET TRADING A/C,ELECTRICITY,5902416155,1000078994
05.05.2020,ENVIRONMENT DIRECTORATE,NPOWER LTD,512.93,STREET TRADING A/C,ELECTRICITY,5902416167,1000078994
05.05.2020,ENVIRONMENT DIRECTORATE,NPOWER LTD,667.17,STREET TRADING A/C,ELECTRICITY,5902416148,1000078994
05.05.2020,ENVIRONMENT DIRECTORATE,NPOWER LTD,"1,312.04",STREET TRADING A/C,ELECTRICITY,5902416287,1000078994
05.05.2020,ENVIRONMENT DIRECTORATE,LONDON TOOLS LIMITED,262.8,VOIDS OVERHEADS,EQUIPMENT PURCHASE & REPAIR,5902416254,1000003017
05.05.2020,ENVIRONMENT DIRECTORATE,LONDON TOOLS LIMITED,342,VOIDS OVERHEADS,EQUIPMENT PURCHASE & REPAIR,5902416254,1000003017
05.05.2020,ENVIRONMENT DIRECTORATE,VEOLIA ES SOUTHWARK LTD,"1,977,906.01",WASTE PFI,PFI/PPP PAYMENTS,5902416236,1000056979
05.05.2020,EXCHEQUER SERVICES,MRO PEOPLE LTD,850,ADMINISTRATIVE SUPPORT,TRAINING,5902416221,1000083017
05.05.2020,EXCHEQUER SERVICES,ARC COMMUNITY TRUSTEES,"1,000.00",SESS,OTHER PAYMENTS FOR CLIENTS,5902416298,1000046206
05.05.2020,HOUSING GENERAL FUND,SOUTH EAST BUILDING CONTRACTORS LTD,"5,472.28",CAPITAL PS (HOUSING GF),CAPITAL GRANTS,5902416228,1000049893
05.05.2020,HOUSING HRA,FRANKHAM CONSULTANCY GROUP LTD,622.48,CAPITAL PS (HRA),CONST'N MAIN CONTRACT - NON CERTIFICATED,5902416229,1000043952
05.05.2020,HOUSING HRA,SILK & MACKMAN SERVICES LTD,700,CAPITAL PS (HRA),CONSTRUCTION,5902416160,1000035282
05.05.2020,HOUSING HRA,SILK & MACKMAN SERVICES LTD,"1,700.00",CAPITAL PS (HRA),CONSTRUCTION,5902416160,1000035282
05.05.2020,HOUSING HRA,MARTIN ARNOLD LTD,"5,735.08",CAPITAL PS (HRA),CONSTRUCTION FEES  - EXTERNAL,5902416156,1000076993
05.05.2020,HOUSING HRA,NICHOLLS COLTON GROUP LTD,"1,590.00",CAPITAL PS (HRA),CONSTRUCTION FEES  - EXTERNAL,5902416150,1000083585
05.05.2020,HOUSING HRA,NDM HEATH LTD,"10,550.00",CAPITAL PS (HRA),CONSTRUCTION FEES  - EXTERNAL,5902416239,1000084345
05.05.2020,HOUSING HRA,MACCREANOR LAVINGTON LTD,"15,112.50",CAPITAL PS (REGEN),CONSTRUCTION FEES - ARCHITECT,5902416321,1000075874
05.05.2020,HOUSING HRA,HTA DESIGN LLP,472,CAPITAL PS (REGEN),CONSTRUCTION FEES - INTERNAL,5902416249,1000074662
05.05.2020,LEISURE DIRECTORATE,FRONTIER-PITTS LTD,316.73,DULWICH AREA TEAM,OTHER R&M,5902416135,1548679
05.05.2020,LEISURE DIRECTORATE,BOLINDA UK LTD,"20,000.00",STOCK SERVICES,BOOKS & PUBLICATIONS,5902416153,1000075655
05.05.2020,MODERNISATION HGF,SHARPE PRITCHARD LLP,"5,401.00",CFM OPERATIONAL BUDGET,SOLICITORS FRAMEWORK LEGAL SERVICES,5902416151,1790085
05.05.2020,NEW BUILD,BAILY  GARNER LLP,"1,730.07",DEVELOPMENT DELIVERY,PROFESSIONAL FEES,5902416274,1000663
05.05.2020,PLANNING AND TRANSPORT,CANON UK LTD,"2,976.00",CHARGEABLE BUILDING CONTROL,COMPUTER MAINTENANCE,5902416199,1000013896
05.05.2020,PLANNING AND TRANSPORT,CANON UK LTD,"2,976.00",DEVELOPMENT CONTROL ADMINSTRATION,COMPUTER MAINTENANCE,5902416199,1000013896
05.05.2020,PUBLIC HEALTH,EVERYONE HEALTH LTD,"4,320.00",BEHAVIOURAL AND DIGITAL HEALTH TEAM,EXTERNAL AGENCIES AND BODIES,5902416157,1000084159
05.05.2020,PUBLIC HEALTH,EVERYONE HEALTH LTD,"25,295.33",BEHAVIOURAL AND DIGITAL HEALTH TEAM,EXTERNAL AGENCIES AND BODIES,5902416152,1000084159
05.05.2020,REGENERATION,CROWN OIL LTD T/A CROWN GAS & POWER,710.26,CPHA  MANAGED PROPERTIES,GAS,5902416115,1000081612
05.05.2020,REGENERATION,CREATION SOUTHWARK CIC,"25,000.00",NDC MATTERS (APRIL 10 +),GRANTS,5902415682,1000084232
05.05.2020,REGENERATION,CANON UK LTD,"2,976.00",PROPERTY SERVICES,COMPUTER MAINTENANCE,5902416199,1000013896
05.05.2020,REGENERATION,STANBURY BUILDING SERVICES LTD,295,TOWER WORKSHOPS,BUILDING R&M,2103096252,3000001967
05.05.2020,REGENERATION,STANBURY BUILDING SERVICES LTD,295,TOWER WORKSHOPS,BUILDING R&M,2103096325,3000001967
05.05.2020,REGENERATION,STANBURY BUILDING SERVICES LTD,595,TOWER WORKSHOPS,BUILDING R&M,2103096318,3000001967
05.05.2020,REGENERATION,STANBURY BUILDING SERVICES LTD,595,TOWER WORKSHOPS,BUILDING R&M,2103096319,3000001967
05.05.2020,REGENERATION,STANBURY BUILDING SERVICES LTD,"1,295.00",TOWER WORKSHOPS,BUILDING R&M,2103096251,3000001967
05.05.2020,RESIDENT SERVICES,LONDON TOOLS LIMITED,254.4,NORTHCOTT HOUSE,MATERIALS,5902416258,1000003017
05.05.2020,RESIDENT SERVICES,LONDON TOOLS LIMITED,402,NORTHCOTT HOUSE,MATERIALS,5902416258,1000003017
05.05.2020,RESIDENT SERVICES,RELIANCE HIGH-TECH LTD,"1,781.89",OPERATIONS/OFFICES ACCOMMODATION,OFFICE EXPENSES,5902416259,1000079374
05.05.2020,RESIDENT SERVICES,ONSITE SUPPORT LTD,312.5,TA HOSTELS,MATERIALS,5902416271,1000043198
05.05.2020,RESIDENT SERVICES,THAMES WATER UTILITIES LTD,"6,200.53",TA HOSTELS,WATER,5902415542,1630755
05.05.2020,SOUTHWARK BUILDING SERVICES,"BROWNING, JONES & MORRIS LTD",508.98,STORES/LOGISTICS,CREDITORS -GR/IR CLEARING ACCOUNT,5902416257,1027429
05.05.2020,SOUTHWARK BUILDING SERVICES,LONDON TOOLS LIMITED,357,STORES/LOGISTICS,CREDITORS -GR/IR CLEARING ACCOUNT,5902416252,1000003017
05.05.2020,SOUTHWARK BUILDING SERVICES,LONDON TOOLS LIMITED,945,STORES/LOGISTICS,CREDITORS -GR/IR CLEARING ACCOUNT,5902416215,1000003017
05.05.2020,SOUTHWARK BUILDING SERVICES,LONDON TOOLS LIMITED,"1,260.00",STORES/LOGISTICS,CREDITORS -GR/IR CLEARING ACCOUNT,5902416252,1000003017
05.05.2020,SOUTHWARK BUILDING SERVICES,LONDON TOOLS LIMITED,"1,375.00",STORES/LOGISTICS,CREDITORS -GR/IR CLEARING ACCOUNT,5902416215,1000003017
05.05.2020,SOUTHWARK BUILDING SERVICES,LONDON TOOLS LIMITED,"3,775.00",STORES/LOGISTICS,CREDITORS -GR/IR CLEARING ACCOUNT,5902416241,1000003017
05.05.2020,SOUTHWARK BUILDING SERVICES,LONDON TOOLS LIMITED,"4,200.00",STORES/LOGISTICS,CREDITORS -GR/IR CLEARING ACCOUNT,5902416290,1000003017
05.05.2020,SOUTHWARK BUILDING SERVICES,LONDON TOOLS LIMITED,"6,600.00",STORES/LOGISTICS,CREDITORS -GR/IR CLEARING ACCOUNT,5902416225,1000003017
05.05.2020,SOUTHWARK BUILDING SERVICES,LONDON TOOLS LIMITED,"8,000.00",STORES/LOGISTICS,CREDITORS -GR/IR CLEARING ACCOUNT,5902416208,1000003017
05.05.2020,SOUTHWARK BUILDING SERVICES,LONDON TOOLS LIMITED,"9,880.00",STORES/LOGISTICS,CREDITORS -GR/IR CLEARING ACCOUNT,5902416224,1000003017
05.05.2020,SOUTHWARK BUILDING SERVICES,LONDON TOOLS LIMITED,"11,000.00",STORES/LOGISTICS,CREDITORS -GR/IR CLEARING ACCOUNT,5902416204,1000003017
05.05.2020,SOUTHWARK BUILDING SERVICES,LONDON TOOLS LIMITED,"12,150.00",STORES/LOGISTICS,CREDITORS -GR/IR CLEARING ACCOUNT,5902416206,1000003017
05.05.2020,SOUTHWARK BUILDING SERVICES,LONDON TOOLS LIMITED,"13,051.00",STORES/LOGISTICS,CREDITORS -GR/IR CLEARING ACCOUNT,5902416212,1000003017
05.05.2020,SOUTHWARK BUILDING SERVICES,LONDON TOOLS LIMITED,"13,500.00",STORES/LOGISTICS,CREDITORS -GR/IR CLEARING ACCOUNT,5902416207,1000003017
05.05.2020,SOUTHWARK BUILDING SERVICES,LONDON TOOLS LIMITED,"13,750.00",STORES/LOGISTICS,CREDITORS -GR/IR CLEARING ACCOUNT,5902416209,1000003017
05.05.2020,SOUTHWARK BUILDING SERVICES,LONDON TOOLS LIMITED,"14,850.00",STORES/LOGISTICS,CREDITORS -GR/IR CLEARING ACCOUNT,5902416205,1000003017
05.05.2020,SOUTHWARK BUILDING SERVICES,KEMICO LIMITED,"3,835.20",STORES/LOGISTICS,CREDITORS -GR/IR CLEARING ACCOUNT,5902416260,1000030226
05.05.2020,SOUTHWARK BUILDING SERVICES,KEMICO LIMITED,"7,080.00",STORES/LOGISTICS,CREDITORS -GR/IR CLEARING ACCOUNT,5902416260,1000030226
05.05.2020,SOUTHWARK BUILDING SERVICES,A T & T (GB LTD ),467.5,STORES/LOGISTICS,CREDITORS -GR/IR CLEARING ACCOUNT,5902416288,1000078342
05.05.2020,SOUTHWARK BUILDING SERVICES,A T & T (GB LTD ),539.5,STORES/LOGISTICS,CREDITORS -GR/IR CLEARING ACCOUNT,5902416288,1000078342
05.05.2020,SOUTHWARK BUILDING SERVICES,A T & T (GB LTD ),697,STORES/LOGISTICS,CREDITORS -GR/IR CLEARING ACCOUNT,5902416288,1000078342
05.05.2020,SOUTHWARK BUILDING SERVICES,A T & T (GB LTD ),820,STORES/LOGISTICS,CREDITORS -GR/IR CLEARING ACCOUNT,5902416286,1000078342
05.05.2020,SOUTHWARK BUILDING SERVICES,A T & T (GB LTD ),943,STORES/LOGISTICS,CREDITORS -GR/IR CLEARING ACCOUNT,5902416277,1000078342
05.05.2020,SOUTHWARK BUILDING SERVICES,A T & T (GB LTD ),"1,950.50",STORES/LOGISTICS,CREDITORS -GR/IR CLEARING ACCOUNT,5902416286,1000078342
05.05.2020,SOUTHWARK BUILDING SERVICES,A T & T (GB LTD ),"2,082.50",STORES/LOGISTICS,CREDITORS -GR/IR CLEARING ACCOUNT,5902416286,1000078342
05.05.2020,SOUTHWARK BUILDING SERVICES,A T & T (GB LTD ),"2,492.00",STORES/LOGISTICS,CREDITORS -GR/IR CLEARING ACCOUNT,5902416286,1000078342
05.05.2020,SUSTAINABILITY & BUSINESS DEVELOPMENT,RELIANCE HIGH-TECH LTD,"1,731.95",SERVICE DEVELOPMENT TEAM,OFFICE EXPENSES,5902416233,1000079374
06.05.2020,ADULT SOCIAL CARE,ITL NORTH EAST LTD,263, LD MGMT & SUPPORT,INTERPRETING SERVICES,5902416461,1000082415
06.05.2020,ADULT SOCIAL CARE,ITL NORTH EAST LTD,344.03,SPECIALIST CARE,INTERPRETING SERVICES,5902416461,1000082415
06.05.2020,ASSET MANAGEMENT,RELIANCE HIGH-TECH LTD,742.17,REPAIRS OPERATIONS,OFFICE EXPENSES,5902416351,1000079374
06.05.2020,CENTRAL FUNCTIONS,PURCELL ARCHITECTURE LTD,318.75,COMMERCIAL PROPERTIES,PROFESSIONAL FEES,5902416324,1000082955
06.05.2020,CENTRAL FUNCTIONS,KENT COUNTY COUNCIL - LASER,-338.16,HEATING ACCOUNT,ELECTRICITY,2103097253,1000012926
06.05.2020,CENTRAL FUNCTIONS,KENT COUNTY COUNCIL - LASER,343.01,HEATING ACCOUNT,ELECTRICITY,2103097244,1000012926
06.05.2020,CENTRAL FUNCTIONS,KENT COUNTY COUNCIL - LASER,"1,009.37",HEATING ACCOUNT,ELECTRICITY,2103097243,1000012926
06.05.2020,CENTRAL FUNCTIONS,KENT COUNTY COUNCIL - LASER,"1,221.48",HEATING ACCOUNT,ELECTRICITY,2103097246,1000012926
06.05.2020,CENTRAL FUNCTIONS,KENT COUNTY COUNCIL - LASER,-332.36,HEATING ACCOUNT,GAS,2103097251,1000012926
06.05.2020,CENTRAL FUNCTIONS,KENT COUNTY COUNCIL - LASER,"1,601.32",HEATING ACCOUNT,GAS,2103097247,1000012926
06.05.2020,CHILDREN AND ADULT,COTTRELL AND VERMEULEN ARCH LTD,"1,300.00",CAPITAL PS (SOC SERV),CONSTRUCTION FEES - ARCHITECT,5902416449,1000012119
06.05.2020,CHILDREN'S SERVICES,REDACTED PERSONAL DATA,465.52,ADOPTION PLACEMENTS & INTER AGENCY,PAYMENTS TO CARERS,REDACTED,REDACTED
06.05.2020,CHILDREN'S SERVICES,REDACTED PERSONAL DATA,304.64,ADOPTION PLACEMENTS & INTER AGENCY,PAYMENTS TO CARERS,REDACTED,REDACTED
06.05.2020,CHILDREN'S SERVICES,REDACTED PERSONAL DATA,559.06,ADOPTION PLACEMENTS & INTER AGENCY,PAYMENTS TO CARERS,REDACTED,REDACTED
06.05.2020,CHILDREN'S SERVICES,REDACTED PERSONAL DATA,695.04,ADOPTION PLACEMENTS & INTER AGENCY,PAYMENTS TO CARERS,REDACTED,REDACTED
06.05.2020,CHILDREN'S SERVICES,REDACTED PERSONAL DATA,375.54,ADOPTION PLACEMENTS & INTER AGENCY,PAYMENTS TO CARERS,REDACTED,REDACTED
06.05.2020,CHILDREN'S SERVICES,REDACTED PERSONAL DATA,375.54,ADOPTION PLACEMENTS & INTER AGENCY,PAYMENTS TO CARERS,REDACTED,REDACTED
06.05.2020,CHILDREN'S SERVICES,REDACTED PERSONAL DATA,500,ADOPTION PLACEMENTS & INTER AGENCY,PAYMENTS TO CARERS,REDACTED,REDACTED
06.05.2020,CHILDREN'S SERVICES,REDACTED PERSONAL DATA,404.46,ADOPTION PLACEMENTS & INTER AGENCY,PAYMENTS TO CARERS,REDACTED,REDACTED
06.05.2020,CHILDREN'S SERVICES,REDACTED PERSONAL DATA,400.84,ADOPTION PLACEMENTS & INTER AGENCY,PAYMENTS TO CARERS,REDACTED,REDACTED
06.05.2020,CHILDREN'S SERVICES,REDACTED PERSONAL DATA,635.34,ADOPTION PLACEMENTS & INTER AGENCY,PAYMENTS TO CARERS,REDACTED,REDACTED
06.05.2020,CHILDREN'S SERVICES,REDACTED PERSONAL DATA,375.54,ADOPTION PLACEMENTS & INTER AGENCY,PAYMENTS TO CARERS,REDACTED,REDACTED
06.05.2020,CHILDREN'S SERVICES,REDACTED PERSONAL DATA,653.06,ADOPTION PLACEMENTS & INTER AGENCY,PAYMENTS TO CARERS,REDACTED,REDACTED
06.05.2020,CHILDREN'S SERVICES,REDACTED PERSONAL DATA,465.54,ADOPTION PLACEMENTS & INTER AGENCY,PAYMENTS TO CARERS,REDACTED,REDACTED
06.05.2020,CHILDREN'S SERVICES,REDACTED PERSONAL DATA,465.54,ADOPTION PLACEMENTS & INTER AGENCY,PAYMENTS TO CARERS,REDACTED,REDACTED
06.05.2020,CHILDREN'S SERVICES,REDACTED PERSONAL DATA,400.84,ADOPTION PLACEMENTS & INTER AGENCY,PAYMENTS TO CARERS,REDACTED,REDACTED
06.05.2020,CHILDREN'S SERVICES,REDACTED PERSONAL DATA,255.22,ADOPTION PLACEMENTS & INTER AGENCY,PAYMENTS TO CARERS,REDACTED,REDACTED
06.05.2020,CHILDREN'S SERVICES,REDACTED PERSONAL DATA,359.44,ADOPTION PLACEMENTS & INTER AGENCY,PAYMENTS TO CARERS,REDACTED,REDACTED
06.05.2020,CHILDREN'S SERVICES,REDACTED PERSONAL DATA,375.54,ADOPTION PLACEMENTS & INTER AGENCY,PAYMENTS TO CARERS,REDACTED,REDACTED
06.05.2020,CHILDREN'S SERVICES,REDACTED PERSONAL DATA,451.8,ADOPTION PLACEMENTS & INTER AGENCY,PAYMENTS TO CARERS,REDACTED,REDACTED
06.05.2020,CHILDREN'S SERVICES,REDACTED PERSONAL DATA,359.44,ADOPTION PLACEMENTS & INTER AGENCY,PAYMENTS TO CARERS,REDACTED,REDACTED
06.05.2020,CHILDREN'S SERVICES,REDACTED PERSONAL DATA,319.36,ADOPTION PLACEMENTS & INTER AGENCY,PAYMENTS TO CARERS,REDACTED,REDACTED
06.05.2020,CHILDREN'S SERVICES,REDACTED PERSONAL DATA,465.48,ADOPTION PLACEMENTS & INTER AGENCY,PAYMENTS TO CARERS,REDACTED,REDACTED
06.05.2020,CHILDREN'S SERVICES,REDACTED PERSONAL DATA,386,ADOPTION PLACEMENTS & INTER AGENCY,PAYMENTS TO CARERS,REDACTED,REDACTED
06.05.2020,CHILDREN'S SERVICES,REDACTED PERSONAL DATA,465.54,ADOPTION PLACEMENTS & INTER AGENCY,PAYMENTS TO CARERS,REDACTED,REDACTED
06.05.2020,CHILDREN'S SERVICES,REDACTED PERSONAL DATA,465.54,ADOPTION PLACEMENTS & INTER AGENCY,PAYMENTS TO CARERS,REDACTED,REDACTED
06.05.2020,CHILDREN'S SERVICES,REDACTED PERSONAL DATA,255.22,ADOPTION PLACEMENTS & INTER AGENCY,PAYMENTS TO CARERS,REDACTED,REDACTED
06.05.2020,CHILDREN'S SERVICES,REDACTED PERSONAL DATA,269.22,ADOPTION PLACEMENTS & INTER AGENCY,PAYMENTS TO CARERS,REDACTED,REDACTED
06.05.2020,CHILDREN'S SERVICES,REDACTED PERSONAL DATA,705.24,ADOPTION PLACEMENTS & INTER AGENCY,PAYMENTS TO CARERS,REDACTED,REDACTED
06.05.2020,CHILDREN'S SERVICES,REDACTED PERSONAL DATA,777.36,ADOPTION PLACEMENTS & INTER AGENCY,PAYMENTS TO CARERS,REDACTED,REDACTED
06.05.2020,CHILDREN'S SERVICES,REDACTED PERSONAL DATA,512.02,ADOPTION PLACEMENTS & INTER AGENCY,PAYMENTS TO CARERS,REDACTED,REDACTED
06.05.2020,CHILDREN'S SERVICES,REDACTED PERSONAL DATA,717.14,ADOPTION PLACEMENTS & INTER AGENCY,PAYMENTS TO CARERS,REDACTED,REDACTED
06.05.2020,CHILDREN'S SERVICES,REDACTED PERSONAL DATA,251.12,ADOPTION PLACEMENTS & INTER AGENCY,PAYMENTS TO CARERS,REDACTED,REDACTED
06.05.2020,CHILDREN'S SERVICES,REDACTED PERSONAL DATA,375.54,ADOPTION PLACEMENTS & INTER AGENCY,PAYMENTS TO CARERS,REDACTED,REDACTED
06.05.2020,CHILDREN'S SERVICES,REDACTED PERSONAL DATA,375.54,ADOPTION PLACEMENTS & INTER AGENCY,PAYMENTS TO CARERS,REDACTED,REDACTED
06.05.2020,CHILDREN'S SERVICES,REDACTED PERSONAL DATA,457.14,ADOPTION PLACEMENTS & INTER AGENCY,PAYMENTS TO CARERS,REDACTED,REDACTED
06.05.2020,CHILDREN'S SERVICES,REDACTED PERSONAL DATA,502,ADOPTION PLACEMENTS & INTER AGENCY,PAYMENTS TO CARERS,REDACTED,REDACTED
06.05.2020,CHILDREN'S SERVICES,REDACTED PERSONAL DATA,375.54,ADOPTION PLACEMENTS & INTER AGENCY,PAYMENTS TO CARERS,REDACTED,REDACTED
06.05.2020,CHILDREN'S SERVICES,REDACTED PERSONAL DATA,640.9,ADOPTION PLACEMENTS & INTER AGENCY,PAYMENTS TO CARERS,REDACTED,REDACTED
06.05.2020,CHILDREN'S SERVICES,REDACTED PERSONAL DATA,382.3,ADOPTION PLACEMENTS & INTER AGENCY,PAYMENTS TO CARERS,REDACTED,REDACTED
06.05.2020,CHILDREN'S SERVICES,REDACTED PERSONAL DATA,382.3,ADOPTION PLACEMENTS & INTER AGENCY,PAYMENTS TO CARERS,REDACTED,REDACTED
06.05.2020,CHILDREN'S SERVICES,REDACTED PERSONAL DATA,375.54,ADOPTION PLACEMENTS & INTER AGENCY,PAYMENTS TO CARERS,REDACTED,REDACTED
06.05.2020,CHILDREN'S SERVICES,REDACTED PERSONAL DATA,623.94,ADOPTION PLACEMENTS & INTER AGENCY,PAYMENTS TO CARERS,REDACTED,REDACTED
06.05.2020,CHILDREN'S SERVICES,REDACTED PERSONAL DATA,278.54,ADOPTION PLACEMENTS & INTER AGENCY,PAYMENTS TO CARERS,REDACTED,REDACTED
06.05.2020,CHILDREN'S SERVICES,REDACTED PERSONAL DATA,485.22,ADOPTION PLACEMENTS & INTER AGENCY,PAYMENTS TO CARERS,REDACTED,REDACTED
06.05.2020,CHILDREN'S SERVICES,REDACTED PERSONAL DATA,368.52,ADOPTION PLACEMENTS & INTER AGENCY,PAYMENTS TO CARERS,REDACTED,REDACTED
06.05.2020,CHILDREN'S SERVICES,REDACTED PERSONAL DATA,252.9,ADOPTION PLACEMENTS & INTER AGENCY,PAYMENTS TO CARERS,REDACTED,REDACTED
06.05.2020,CHILDREN'S SERVICES,REDACTED PERSONAL DATA,253.56,ADOPTION PLACEMENTS & INTER AGENCY,PAYMENTS TO CARERS,REDACTED,REDACTED
06.05.2020,CHILDREN'S SERVICES,REDACTED PERSONAL DATA,382.3,ADOPTION PLACEMENTS & INTER AGENCY,PAYMENTS TO CARERS,REDACTED,REDACTED
06.05.2020,CHILDREN'S SERVICES,REDACTED PERSONAL DATA,382.3,ADOPTION PLACEMENTS & INTER AGENCY,PAYMENTS TO CARERS,REDACTED,REDACTED
06.05.2020,CHILDREN'S SERVICES,REDACTED PERSONAL DATA,351.42,ADOPTION PLACEMENTS & INTER AGENCY,PAYMENTS TO CARERS,REDACTED,REDACTED
06.05.2020,CHILDREN'S SERVICES,REDACTED PERSONAL DATA,484.92,ADOPTION PLACEMENTS & INTER AGENCY,PAYMENTS TO CARERS,REDACTED,REDACTED
06.05.2020,CHILDREN'S SERVICES,REDACTED PERSONAL DATA,530,ADOPTION PLACEMENTS & INTER AGENCY,PAYMENTS TO CARERS,REDACTED,REDACTED
06.05.2020,CHILDREN'S SERVICES,REDACTED PERSONAL DATA,908,ADOPTION PLACEMENTS & INTER AGENCY,PAYMENTS TO CARERS,REDACTED,REDACTED
06.05.2020,CHILDREN'S SERVICES,REDACTED PERSONAL DATA,738.32,ADOPTION PLACEMENTS & INTER AGENCY,PAYMENTS TO CARERS,REDACTED,REDACTED
06.05.2020,CHILDREN'S SERVICES,REDACTED PERSONAL DATA,695.12,ADOPTION PLACEMENTS & INTER AGENCY,PAYMENTS TO CARERS,REDACTED,REDACTED
06.05.2020,CHILDREN'S SERVICES,REDACTED PERSONAL DATA,293.98,ADOPTION PLACEMENTS & INTER AGENCY,PAYMENTS TO CARERS,REDACTED,REDACTED
06.05.2020,CHILDREN'S SERVICES,REDACTED PERSONAL DATA,251.94,ADOPTION PLACEMENTS & INTER AGENCY,PAYMENTS TO CARERS,REDACTED,REDACTED
06.05.2020,CHILDREN'S SERVICES,REDACTED PERSONAL DATA,652.9,ADOPTION PLACEMENTS & INTER AGENCY,PAYMENTS TO CARERS,REDACTED,REDACTED
06.05.2020,CHILDREN'S SERVICES,REDACTED PERSONAL DATA,652.9,ADOPTION PLACEMENTS & INTER AGENCY,PAYMENTS TO CARERS,REDACTED,REDACTED
06.05.2020,CHILDREN'S SERVICES,REDACTED PERSONAL DATA,712.3,ADOPTION PLACEMENTS & INTER AGENCY,PAYMENTS TO CARERS,REDACTED,REDACTED
06.05.2020,CHILDREN'S SERVICES,REDACTED PERSONAL DATA,767.68,ADOPTION PLACEMENTS & INTER AGENCY,PAYMENTS TO CARERS,REDACTED,REDACTED
06.05.2020,CHILDREN'S SERVICES,REDACTED PERSONAL DATA,400.18,ADOPTION PLACEMENTS & INTER AGENCY,PAYMENTS TO CARERS,REDACTED,REDACTED
06.05.2020,CHILDREN'S SERVICES,REDACTED PERSONAL DATA,682.3,ADOPTION PLACEMENTS & INTER AGENCY,PAYMENTS TO CARERS,REDACTED,REDACTED
06.05.2020,CHILDREN'S SERVICES,REDACTED PERSONAL DATA,682.3,ADOPTION PLACEMENTS & INTER AGENCY,PAYMENTS TO CARERS,REDACTED,REDACTED
06.05.2020,CHILDREN'S SERVICES,REDACTED PERSONAL DATA,588.42,ADOPTION PLACEMENTS & INTER AGENCY,PAYMENTS TO CARERS,REDACTED,REDACTED
06.05.2020,CHILDREN'S SERVICES,REDACTED PERSONAL DATA,"1,053.20",ADOPTION PLACEMENTS & INTER AGENCY,PAYMENTS TO CARERS,REDACTED,REDACTED
06.05.2020,CHILDREN'S SERVICES,REDACTED PERSONAL DATA,386,ADOPTION PLACEMENTS & INTER AGENCY,PAYMENTS TO CARERS,REDACTED,REDACTED
06.05.2020,CHILDREN'S SERVICES,REDACTED PERSONAL DATA,"4,948.80",ADOPTION PLACEMENTS & INTER AGENCY,PAYMENTS TO CARERS,REDACTED,REDACTED
06.05.2020,CHILDREN'S SERVICES,REDACTED PERSONAL DATA,660,ADOPTION PLACEMENTS & INTER AGENCY,PAYMENTS TO CARERS,REDACTED,REDACTED
06.05.2020,CHILDREN'S SERVICES,REDACTED PERSONAL DATA,660,ADOPTION PLACEMENTS & INTER AGENCY,PAYMENTS TO CARERS,REDACTED,REDACTED
06.05.2020,CHILDREN'S SERVICES,ITL NORTH EAST LTD,336.86,AIS - MASH,INTERPRETING SERVICES,5902416461,1000082415
06.05.2020,CHILDREN'S SERVICES,CONTACT PROFESSIONALS,268,CARE SERVICES 0-15,OTHER PAYMENTS FOR CLIENTS,5902416421,1000057263
06.05.2020,CHILDREN'S SERVICES,CONTACT PROFESSIONALS,268,CARE SERVICES 0-15,OTHER PAYMENTS FOR CLIENTS,5902416422,1000057263
06.05.2020,CHILDREN'S SERVICES,CONTACT PROFESSIONALS,283,CARE SERVICES 0-15,OTHER PAYMENTS FOR CLIENTS,5902416416,1000057263
06.05.2020,CHILDREN'S SERVICES,CONTACT PROFESSIONALS,304,CARE SERVICES 0-15,OTHER PAYMENTS FOR CLIENTS,5902416417,1000057263
06.05.2020,CHILDREN'S SERVICES,CONTACT PROFESSIONALS,368.04,CARE SERVICES 0-15,OTHER PAYMENTS FOR CLIENTS,5902416425,1000057263
06.05.2020,CHILDREN'S SERVICES,TEENS CRISIS UK,893,CARE SERVICES 0-15,OTHER PAYMENTS FOR CLIENTS,5902416406,1000078214
06.05.2020,CHILDREN'S SERVICES,REDACTED PERSONAL DATA,300,DISABILITY & HIV,ADDITIONAL PAYMENTS TO AGENCIES/CARERS,REDACTED,REDACTED
06.05.2020,CHILDREN'S SERVICES,REDACTED PERSONAL DATA,300,DISABILITY & HIV,ADDITIONAL PAYMENTS TO AGENCIES/CARERS,REDACTED,REDACTED
06.05.2020,CHILDREN'S SERVICES,REDACTED PERSONAL DATA,400,DISABILITY & HIV,COMPUTER CONSUMABLES,REDACTED,REDACTED
06.05.2020,CHILDREN'S SERVICES,REDACTED PERSONAL DATA,300,DISABILITY & HIV,OTHER PAYMENTS FOR CLIENTS,REDACTED,REDACTED
06.05.2020,CHILDREN'S SERVICES,REDACTED PERSONAL DATA,654,DISABILITY & HIV,PAYMENTS TO CARERS,REDACTED,REDACTED
06.05.2020,CHILDREN'S SERVICES,REDACTED PERSONAL DATA,741.14,DISABILITY & HIV,PAYMENTS TO CARERS,REDACTED,REDACTED
06.05.2020,CHILDREN'S SERVICES,REDACTED PERSONAL DATA,823.15,DISABILITY & HIV,PAYMENTS TO CARERS,REDACTED,REDACTED
06.05.2020,CHILDREN'S SERVICES,REDACTED PERSONAL DATA,864.86,DISABILITY & HIV,PAYMENTS TO CARERS,REDACTED,REDACTED
06.05.2020,CHILDREN'S SERVICES,REDACTED PERSONAL DATA,741.14,DISABILITY & HIV,PAYMENTS TO CARERS,REDACTED,REDACTED
06.05.2020,CHILDREN'S SERVICES,REDACTED PERSONAL DATA,832.86,DISABILITY & HIV,PAYMENTS TO CARERS,REDACTED,REDACTED
06.05.2020,CHILDREN'S SERVICES,REDACTED PERSONAL DATA,864.86,DISABILITY & HIV,PAYMENTS TO CARERS,REDACTED,REDACTED
06.05.2020,CHILDREN'S SERVICES,REDACTED PERSONAL DATA,741.14,DISABILITY & HIV,PAYMENTS TO CARERS,REDACTED,REDACTED
06.05.2020,CHILDREN'S SERVICES,REDACTED PERSONAL DATA,832.58,DISABILITY & HIV,PAYMENTS TO CARERS,REDACTED,REDACTED
06.05.2020,CHILDREN'S SERVICES,REDACTED PERSONAL DATA,864.86,DISABILITY & HIV,PAYMENTS TO CARERS,REDACTED,REDACTED
06.05.2020,CHILDREN'S SERVICES,REDACTED PERSONAL DATA,864.86,DISABILITY & HIV,PAYMENTS TO CARERS,REDACTED,REDACTED
06.05.2020,CHILDREN'S SERVICES,REDACTED PERSONAL DATA,741.14,DISABILITY & HIV,PAYMENTS TO CARERS,REDACTED,REDACTED
06.05.2020,CHILDREN'S SERVICES,REDACTED PERSONAL DATA,864.86,DISABILITY & HIV,PAYMENTS TO CARERS,REDACTED,REDACTED
06.05.2020,CHILDREN'S SERVICES,REDACTED PERSONAL DATA,860.28,DISABILITY & HIV,PAYMENTS TO CARERS,REDACTED,REDACTED
06.05.2020,CHILDREN'S SERVICES,REDACTED PERSONAL DATA,860.28,DISABILITY & HIV,PAYMENTS TO CARERS,REDACTED,REDACTED
06.05.2020,CHILDREN'S SERVICES,REDACTED PERSONAL DATA,860.28,DISABILITY & HIV,PAYMENTS TO CARERS,REDACTED,REDACTED
06.05.2020,CHILDREN'S SERVICES,REDACTED PERSONAL DATA,741.14,DISABILITY & HIV,PAYMENTS TO CARERS,REDACTED,REDACTED
06.05.2020,CHILDREN'S SERVICES,REDACTED PERSONAL DATA,741.14,DISABILITY & HIV,PAYMENTS TO CARERS,REDACTED,REDACTED
06.05.2020,CHILDREN'S SERVICES,REDACTED PERSONAL DATA,768.57,DISABILITY & HIV,PAYMENTS TO CARERS,REDACTED,REDACTED
06.05.2020,CHILDREN'S SERVICES,REDACTED PERSONAL DATA,924.2,DISABILITY & HIV,PAYMENTS TO CARERS,REDACTED,REDACTED
06.05.2020,CHILDREN'S SERVICES,REDACTED PERSONAL DATA,712.3,DISABILITY & HIV,PAYMENTS TO CARERS,REDACTED,REDACTED
06.05.2020,CHILDREN'S SERVICES,REDACTED PERSONAL DATA,715.43,DISABILITY & HIV,PAYMENTS TO CARERS,REDACTED,REDACTED
06.05.2020,CHILDREN'S SERVICES,REDACTED PERSONAL DATA,832.86,DISABILITY & HIV,PAYMENTS TO CARERS,REDACTED,REDACTED
06.05.2020,CHILDREN'S SERVICES,REDACTED PERSONAL DATA,654,DISABILITY & HIV,PAYMENTS TO CARERS,REDACTED,REDACTED
06.05.2020,CHILDREN'S SERVICES,REDACTED PERSONAL DATA,654,DISABILITY & HIV,PAYMENTS TO CARERS,REDACTED,REDACTED
06.05.2020,CHILDREN'S SERVICES,REDACTED PERSONAL DATA,741.14,DISABILITY & HIV,PAYMENTS TO CARERS,REDACTED,REDACTED
06.05.2020,CHILDREN'S SERVICES,REDACTED PERSONAL DATA,823.15,DISABILITY & HIV,PAYMENTS TO CARERS,REDACTED,REDACTED
06.05.2020,CHILDREN'S SERVICES,REDACTED PERSONAL DATA,860.28,DISABILITY & HIV,PAYMENTS TO CARERS,REDACTED,REDACTED
06.05.2020,CHILDREN'S SERVICES,REDACTED PERSONAL DATA,954.86,DISABILITY & HIV,PAYMENTS TO CARERS,REDACTED,REDACTED
06.05.2020,CHILDREN'S SERVICES,REDACTED PERSONAL DATA,741.14,DISABILITY & HIV,PAYMENTS TO CARERS,REDACTED,REDACTED
06.05.2020,CHILDREN'S SERVICES,REDACTED PERSONAL DATA,823.15,DISABILITY & HIV,PAYMENTS TO CARERS,REDACTED,REDACTED
06.05.2020,CHILDREN'S SERVICES,REDACTED PERSONAL DATA,864.86,DISABILITY & HIV,PAYMENTS TO CARERS,REDACTED,REDACTED
06.05.2020,CHILDREN'S SERVICES,REDACTED PERSONAL DATA,823.15,DISABILITY & HIV,PAYMENTS TO CARERS,REDACTED,REDACTED
06.05.2020,CHILDREN'S SERVICES,REDACTED PERSONAL DATA,733.15,DISABILITY & HIV,PAYMENTS TO CARERS,REDACTED,REDACTED
06.05.2020,CHILDREN'S SERVICES,REDACTED PERSONAL DATA,864.86,DISABILITY & HIV,PAYMENTS TO CARERS,REDACTED,REDACTED
06.05.2020,CHILDREN'S SERVICES,REDACTED PERSONAL DATA,860.28,DISABILITY & HIV,PAYMENTS TO CARERS,REDACTED,REDACTED
06.05.2020,CHILDREN'S SERVICES,REDACTED PERSONAL DATA,864.86,DISABILITY & HIV,PAYMENTS TO CARERS,REDACTED,REDACTED
06.05.2020,CHILDREN'S SERVICES,REDACTED PERSONAL DATA,611.15,DISABILITY & HIV,PAYMENTS TO CARERS,REDACTED,REDACTED
06.05.2020,CHILDREN'S SERVICES,REDACTED PERSONAL DATA,823.15,DISABILITY & HIV,PAYMENTS TO CARERS,REDACTED,REDACTED
06.05.2020,CHILDREN'S SERVICES,REDACTED PERSONAL DATA,741.14,DISABILITY & HIV,PAYMENTS TO CARERS,REDACTED,REDACTED
06.05.2020,CHILDREN'S SERVICES,REDACTED PERSONAL DATA,715.43,DISABILITY & HIV,PAYMENTS TO CARERS,REDACTED,REDACTED
06.05.2020,CHILDREN'S SERVICES,REDACTED PERSONAL DATA,954.86,DISABILITY & HIV,PAYMENTS TO CARERS,REDACTED,REDACTED
06.05.2020,CHILDREN'S SERVICES,REDACTED PERSONAL DATA,"1,700.00",DISABILITY & HIV,PAYMENTS TO CARERS,REDACTED,REDACTED
06.05.2020,CHILDREN'S SERVICES,REDACTED PERSONAL DATA,"1,700.00",DISABILITY & HIV,PAYMENTS TO CARERS,REDACTED,REDACTED
06.05.2020,CHILDREN'S SERVICES,REDACTED PERSONAL DATA,759.71,DISABILITY & HIV,PAYMENTS TO CARERS,REDACTED,REDACTED
06.05.2020,CHILDREN'S SERVICES,REDACTED PERSONAL DATA,759.71,DISABILITY & HIV,PAYMENTS TO CARERS,REDACTED,REDACTED
06.05.2020,CHILDREN'S SERVICES,REDACTED PERSONAL DATA,954.86,DISABILITY & HIV,PAYMENTS TO CARERS,REDACTED,REDACTED
06.05.2020,CHILDREN'S SERVICES,REDACTED PERSONAL DATA,660,DISABILITY & HIV,PAYMENTS TO CARERS,REDACTED,REDACTED
06.05.2020,CHILDREN'S SERVICES,REDACTED PERSONAL DATA,741.14,DISABILITY & HIV,PAYMENTS TO CARERS,REDACTED,REDACTED
06.05.2020,CHILDREN'S SERVICES,REDACTED PERSONAL DATA,741.14,DISABILITY & HIV,PAYMENTS TO CARERS,REDACTED,REDACTED
06.05.2020,CHILDREN'S SERVICES,REDACTED PERSONAL DATA,741.14,DISABILITY & HIV,PAYMENTS TO CARERS,REDACTED,REDACTED
06.05.2020,CHILDREN'S SERVICES,REDACTED PERSONAL DATA,823.15,DISABILITY & HIV,PAYMENTS TO CARERS,REDACTED,REDACTED
06.05.2020,CHILDREN'S SERVICES,REDACTED PERSONAL DATA,611.15,DISABILITY & HIV,PAYMENTS TO CARERS,REDACTED,REDACTED
06.05.2020,CHILDREN'S SERVICES,REDACTED PERSONAL DATA,741.14,DISABILITY & HIV,PAYMENTS TO CARERS,REDACTED,REDACTED
06.05.2020,CHILDREN'S SERVICES,REDACTED PERSONAL DATA,741.14,DISABILITY & HIV,PAYMENTS TO CARERS,REDACTED,REDACTED
06.05.2020,CHILDREN'S SERVICES,REDACTED PERSONAL DATA,654,DISABILITY & HIV,PAYMENTS TO CARERS,REDACTED,REDACTED
06.05.2020,CHILDREN'S SERVICES,REDACTED PERSONAL DATA,741.14,DISABILITY & HIV,PAYMENTS TO CARERS,REDACTED,REDACTED
06.05.2020,CHILDREN'S SERVICES,REDACTED PERSONAL DATA,894.85,DISABILITY & HIV,PAYMENTS TO CARERS,REDACTED,REDACTED
06.05.2020,CHILDREN'S SERVICES,REDACTED PERSONAL DATA,894.85,DISABILITY & HIV,PAYMENTS TO CARERS,REDACTED,REDACTED
06.05.2020,CHILDREN'S SERVICES,REDACTED PERSONAL DATA,864.86,DISABILITY & HIV,PAYMENTS TO CARERS,REDACTED,REDACTED
06.05.2020,CHILDREN'S SERVICES,REDACTED PERSONAL DATA,654,DISABILITY & HIV,PAYMENTS TO CARERS,REDACTED,REDACTED
06.05.2020,CHILDREN'S SERVICES,REDACTED PERSONAL DATA,991.42,DISABILITY & HIV,PAYMENTS TO CARERS,REDACTED,REDACTED
06.05.2020,CHILDREN'S SERVICES,REDACTED PERSONAL DATA,"1,094.60",DISABILITY & HIV,PAYMENTS TO CARERS,REDACTED,REDACTED
06.05.2020,CHILDREN'S SERVICES,REDACTED PERSONAL DATA,894.86,DISABILITY & HIV,PAYMENTS TO CARERS,REDACTED,REDACTED
06.05.2020,CHILDREN'S SERVICES,REDACTED PERSONAL DATA,741.14,DISABILITY & HIV,PAYMENTS TO CARERS,REDACTED,REDACTED
06.05.2020,CHILDREN'S SERVICES,REDACTED PERSONAL DATA,741.14,DISABILITY & HIV,PAYMENTS TO CARERS,REDACTED,REDACTED
06.05.2020,CHILDREN'S SERVICES,REDACTED PERSONAL DATA,709.72,DISABILITY & HIV,PAYMENTS TO CARERS,REDACTED,REDACTED
06.05.2020,CHILDREN'S SERVICES,REDACTED PERSONAL DATA,741.14,DISABILITY & HIV,PAYMENTS TO CARERS,REDACTED,REDACTED
06.05.2020,CHILDREN'S SERVICES,REDACTED PERSONAL DATA,759.71,DISABILITY & HIV,PAYMENTS TO CARERS,REDACTED,REDACTED
06.05.2020,CHILDREN'S SERVICES,REDACTED PERSONAL DATA,741.14,DISABILITY & HIV,PAYMENTS TO CARERS,REDACTED,REDACTED
06.05.2020,CHILDREN'S SERVICES,REDACTED PERSONAL DATA,832.42,DISABILITY & HIV,PAYMENTS TO CARERS,REDACTED,REDACTED
06.05.2020,CHILDREN'S SERVICES,REDACTED PERSONAL DATA,611.15,DISABILITY & HIV,PAYMENTS TO CARERS,REDACTED,REDACTED
06.05.2020,CHILDREN'S SERVICES,REDACTED PERSONAL DATA,890.28,DISABILITY & HIV,PAYMENTS TO CARERS,REDACTED,REDACTED
06.05.2020,CHILDREN'S SERVICES,REDACTED PERSONAL DATA,"1,094.60",DISABILITY & HIV,PAYMENTS TO CARERS,REDACTED,REDACTED
06.05.2020,CHILDREN'S SERVICES,REDACTED PERSONAL DATA,741.14,DISABILITY & HIV,PAYMENTS TO CARERS,REDACTED,REDACTED
06.05.2020,CHILDREN'S SERVICES,REDACTED PERSONAL DATA,741.14,DISABILITY & HIV,PAYMENTS TO CARERS,REDACTED,REDACTED
06.05.2020,CHILDREN'S SERVICES,REDACTED PERSONAL DATA,823.15,DISABILITY & HIV,PAYMENTS TO CARERS,REDACTED,REDACTED
06.05.2020,CHILDREN'S SERVICES,REDACTED PERSONAL DATA,860.28,DISABILITY & HIV,PAYMENTS TO CARERS,REDACTED,REDACTED
06.05.2020,CHILDREN'S SERVICES,REDACTED PERSONAL DATA,954.86,DISABILITY & HIV,PAYMENTS TO CARERS,REDACTED,REDACTED
06.05.2020,CHILDREN'S SERVICES,REDACTED PERSONAL DATA,741.14,DISABILITY & HIV,PAYMENTS TO CARERS,REDACTED,REDACTED
06.05.2020,CHILDREN'S SERVICES,REDACTED PERSONAL DATA,864.86,DISABILITY & HIV,PAYMENTS TO CARERS,REDACTED,REDACTED
06.05.2020,CHILDREN'S SERVICES,REDACTED PERSONAL DATA,901.42,DISABILITY & HIV,PAYMENTS TO CARERS,REDACTED,REDACTED
06.05.2020,CHILDREN'S SERVICES,REDACTED PERSONAL DATA,611.15,DISABILITY & HIV,PAYMENTS TO CARERS,REDACTED,REDACTED
06.05.2020,CHILDREN'S SERVICES,REDACTED PERSONAL DATA,741.14,DISABILITY & HIV,PAYMENTS TO CARERS,REDACTED,REDACTED
06.05.2020,CHILDREN'S SERVICES,REDACTED PERSONAL DATA,741.14,DISABILITY & HIV,PAYMENTS TO CARERS,REDACTED,REDACTED
06.05.2020,CHILDREN'S SERVICES,REDACTED PERSONAL DATA,741.14,DISABILITY & HIV,PAYMENTS TO CARERS,REDACTED,REDACTED
06.05.2020,CHILDREN'S SERVICES,REDACTED PERSONAL DATA,611.15,DISABILITY & HIV,PAYMENTS TO CARERS,REDACTED,REDACTED
06.05.2020,CHILDREN'S SERVICES,REDACTED PERSONAL DATA,611.15,DISABILITY & HIV,PAYMENTS TO CARERS,REDACTED,REDACTED
06.05.2020,CHILDREN'S SERVICES,REDACTED PERSONAL DATA,741.14,DISABILITY & HIV,PAYMENTS TO CARERS,REDACTED,REDACTED
06.05.2020,CHILDREN'S SERVICES,REDACTED PERSONAL DATA,860.28,DISABILITY & HIV,PAYMENTS TO CARERS,REDACTED,REDACTED
06.05.2020,CHILDREN'S SERVICES,REDACTED PERSONAL DATA,741.14,DISABILITY & HIV,PAYMENTS TO CARERS,REDACTED,REDACTED
06.05.2020,CHILDREN'S SERVICES,REDACTED PERSONAL DATA,864.86,DISABILITY & HIV,PAYMENTS TO CARERS,REDACTED,REDACTED
06.05.2020,CHILDREN'S SERVICES,REDACTED PERSONAL DATA,741.14,DISABILITY & HIV,PAYMENTS TO CARERS,REDACTED,REDACTED
06.05.2020,CHILDREN'S SERVICES,REDACTED PERSONAL DATA,823.15,DISABILITY & HIV,PAYMENTS TO CARERS,REDACTED,REDACTED
06.05.2020,CHILDREN'S SERVICES,REDACTED PERSONAL DATA,823.15,DISABILITY & HIV,PAYMENTS TO CARERS,REDACTED,REDACTED
06.05.2020,CHILDREN'S SERVICES,REDACTED PERSONAL DATA,-607.14,DISABILITY & HIV,PAYMENTS TO CARERS,REDACTED,REDACTED
06.05.2020,CHILDREN'S SERVICES,REDACTED PERSONAL DATA,823.15,DISABILITY & HIV,PAYMENTS TO CARERS,REDACTED,REDACTED
06.05.2020,CHILDREN'S SERVICES,REDACTED PERSONAL DATA,611.15,DISABILITY & HIV,PAYMENTS TO CARERS,REDACTED,REDACTED
06.05.2020,CHILDREN'S SERVICES,REDACTED PERSONAL DATA,709.72,DISABILITY & HIV,PAYMENTS TO CARERS,REDACTED,REDACTED
06.05.2020,CHILDREN'S SERVICES,REDACTED PERSONAL DATA,709.72,DISABILITY & HIV,PAYMENTS TO CARERS,REDACTED,REDACTED
06.05.2020,CHILDREN'S SERVICES,REDACTED PERSONAL DATA,715.43,DISABILITY & HIV,PAYMENTS TO CARERS,REDACTED,REDACTED
06.05.2020,CHILDREN'S SERVICES,REDACTED PERSONAL DATA,830.29,DISABILITY & HIV,PAYMENTS TO CARERS,REDACTED,REDACTED
06.05.2020,CHILDREN'S SERVICES,REDACTED PERSONAL DATA,823.15,DISABILITY & HIV,PAYMENTS TO CARERS,REDACTED,REDACTED
06.05.2020,CHILDREN'S SERVICES,REDACTED PERSONAL DATA,741.14,DISABILITY & HIV,PAYMENTS TO CARERS,REDACTED,REDACTED
06.05.2020,CHILDREN'S SERVICES,REDACTED PERSONAL DATA,741.14,DISABILITY & HIV,PAYMENTS TO CARERS,REDACTED,REDACTED
06.05.2020,CHILDREN'S SERVICES,REDACTED PERSONAL DATA,585.43,DISABILITY & HIV,PAYMENTS TO CARERS,REDACTED,REDACTED
06.05.2020,CHILDREN'S SERVICES,REDACTED PERSONAL DATA,628.28,DISABILITY & HIV,PAYMENTS TO CARERS,REDACTED,REDACTED
06.05.2020,CHILDREN'S SERVICES,REDACTED PERSONAL DATA,611.15,DISABILITY & HIV,PAYMENTS TO CARERS,REDACTED,REDACTED
06.05.2020,CHILDREN'S SERVICES,REDACTED PERSONAL DATA,741.14,DISABILITY & HIV,PAYMENTS TO CARERS,REDACTED,REDACTED
06.05.2020,CHILDREN'S SERVICES,REDACTED PERSONAL DATA,741.14,DISABILITY & HIV,PAYMENTS TO CARERS,REDACTED,REDACTED
06.05.2020,CHILDREN'S SERVICES,REDACTED PERSONAL DATA,"1,060.28",DISABILITY & HIV,PAYMENTS TO CARERS,REDACTED,REDACTED
06.05.2020,CHILDREN'S SERVICES,REDACTED PERSONAL DATA,832.86,DISABILITY & HIV,PAYMENTS TO CARERS,REDACTED,REDACTED
06.05.2020,CHILDREN'S SERVICES,REDACTED PERSONAL DATA,830.29,DISABILITY & HIV,PAYMENTS TO CARERS,REDACTED,REDACTED
06.05.2020,CHILDREN'S SERVICES,REDACTED PERSONAL DATA,611.15,DISABILITY & HIV,PAYMENTS TO CARERS,REDACTED,REDACTED
06.05.2020,CHILDREN'S SERVICES,REDACTED PERSONAL DATA,864.86,DISABILITY & HIV,PAYMENTS TO CARERS,REDACTED,REDACTED
06.05.2020,CHILDREN'S SERVICES,REDACTED PERSONAL DATA,654,DISABILITY & HIV,PAYMENTS TO CARERS,REDACTED,REDACTED
06.05.2020,CHILDREN'S SERVICES,REDACTED PERSONAL DATA,741.14,DISABILITY & HIV,PAYMENTS TO CARERS,REDACTED,REDACTED
06.05.2020,CHILDREN'S SERVICES,REDACTED PERSONAL DATA,654,DISABILITY & HIV,PAYMENTS TO CARERS,REDACTED,REDACTED
06.05.2020,CHILDREN'S SERVICES,REDACTED PERSONAL DATA,741.14,DISABILITY & HIV,PAYMENTS TO CARERS,REDACTED,REDACTED
06.05.2020,CHILDREN'S SERVICES,REDACTED PERSONAL DATA,715.43,DISABILITY & HIV,PAYMENTS TO CARERS,REDACTED,REDACTED
06.05.2020,CHILDREN'S SERVICES,REDACTED PERSONAL DATA,611.15,DISABILITY & HIV,PAYMENTS TO CARERS,REDACTED,REDACTED
06.05.2020,CHILDREN'S SERVICES,REDACTED PERSONAL DATA,860.28,DISABILITY & HIV,PAYMENTS TO CARERS,REDACTED,REDACTED
06.05.2020,CHILDREN'S SERVICES,REDACTED PERSONAL DATA,741.14,DISABILITY & HIV,PAYMENTS TO CARERS,REDACTED,REDACTED
06.05.2020,CHILDREN'S SERVICES,REDACTED PERSONAL DATA,715.43,DISABILITY & HIV,PAYMENTS TO CARERS,REDACTED,REDACTED
06.05.2020,CHILDREN'S SERVICES,REDACTED PERSONAL DATA,715.43,DISABILITY & HIV,PAYMENTS TO CARERS,REDACTED,REDACTED
06.05.2020,CHILDREN'S SERVICES,REDACTED PERSONAL DATA,"1,668.00",DISABILITY & HIV,PAYMENTS TO CARERS,REDACTED,REDACTED
06.05.2020,CHILDREN'S SERVICES,REDACTED PERSONAL DATA,715.43,DISABILITY & HIV,PAYMENTS TO CARERS,REDACTED,REDACTED
06.05.2020,CHILDREN'S SERVICES,REDACTED PERSONAL DATA,611.15,DISABILITY & HIV,PAYMENTS TO CARERS,REDACTED,REDACTED
06.05.2020,CHILDREN'S SERVICES,REDACTED PERSONAL DATA,628.28,DISABILITY & HIV,PAYMENTS TO CARERS,REDACTED,REDACTED
06.05.2020,CHILDREN'S SERVICES,REDACTED PERSONAL DATA,766.14,DISABILITY & HIV,PAYMENTS TO CARERS,REDACTED,REDACTED
06.05.2020,CHILDREN'S SERVICES,REDACTED PERSONAL DATA,864.86,DISABILITY & HIV,PAYMENTS TO CARERS,REDACTED,REDACTED
06.05.2020,CHILDREN'S SERVICES,REDACTED PERSONAL DATA,628.28,DISABILITY & HIV,PAYMENTS TO CARERS,REDACTED,REDACTED
06.05.2020,CHILDREN'S SERVICES,REDACTED PERSONAL DATA,628.28,DISABILITY & HIV,PAYMENTS TO CARERS,REDACTED,REDACTED
06.05.2020,CHILDREN'S SERVICES,REDACTED PERSONAL DATA,741.14,DISABILITY & HIV,PAYMENTS TO CARERS,REDACTED,REDACTED
06.05.2020,CHILDREN'S SERVICES,REDACTED PERSONAL DATA,452,DISABILITY & HIV,PAYMENTS TO CARERS,REDACTED,REDACTED
06.05.2020,CHILDREN'S SERVICES,REDACTED PERSONAL DATA,776.08,DISABILITY & HIV,PAYMENTS TO CARERS,REDACTED,REDACTED
06.05.2020,CHILDREN'S SERVICES,REDACTED PERSONAL DATA,585.43,DISABILITY & HIV,PAYMENTS TO CARERS,REDACTED,REDACTED
06.05.2020,CHILDREN'S SERVICES,REDACTED PERSONAL DATA,741.14,DISABILITY & HIV,PAYMENTS TO CARERS,REDACTED,REDACTED
06.05.2020,CHILDREN'S SERVICES,REDACTED PERSONAL DATA,864.86,DISABILITY & HIV,PAYMENTS TO CARERS,REDACTED,REDACTED
06.05.2020,CHILDREN'S SERVICES,REDACTED PERSONAL DATA,611.15,DISABILITY & HIV,PAYMENTS TO CARERS,REDACTED,REDACTED
06.05.2020,CHILDREN'S SERVICES,REDACTED PERSONAL DATA,"2,262.00",DISABILITY & HIV,PAYMENTS TO CARERS,REDACTED,REDACTED
06.05.2020,CHILDREN'S SERVICES,REDACTED PERSONAL DATA,611.15,DISABILITY & HIV,PAYMENTS TO CARERS,REDACTED,REDACTED
06.05.2020,CHILDREN'S SERVICES,REDACTED PERSONAL DATA,832.86,DISABILITY & HIV,PAYMENTS TO CARERS,REDACTED,REDACTED
06.05.2020,CHILDREN'S SERVICES,REDACTED PERSONAL DATA,827.14,DISABILITY & HIV,PAYMENTS TO CARERS,REDACTED,REDACTED
06.05.2020,CHILDREN'S SERVICES,REDACTED PERSONAL DATA,795.71,DISABILITY & HIV,PAYMENTS TO CARERS,REDACTED,REDACTED
06.05.2020,CHILDREN'S SERVICES,REDACTED PERSONAL DATA,864.86,DISABILITY & HIV,PAYMENTS TO CARERS,REDACTED,REDACTED
06.05.2020,CHILDREN'S SERVICES,REDACTED PERSONAL DATA,654,DISABILITY & HIV,PAYMENTS TO CARERS,REDACTED,REDACTED
06.05.2020,CHILDREN'S SERVICES,REDACTED PERSONAL DATA,654,DISABILITY & HIV,PAYMENTS TO CARERS,REDACTED,REDACTED
06.05.2020,CHILDREN'S SERVICES,REDACTED PERSONAL DATA,601.43,DISABILITY & HIV,PAYMENTS TO CARERS,REDACTED,REDACTED
06.05.2020,CHILDREN'S SERVICES,REDACTED PERSONAL DATA,708.86,DISABILITY & HIV,PAYMENTS TO CARERS,REDACTED,REDACTED
06.05.2020,CHILDREN'S SERVICES,REDACTED PERSONAL DATA,733.15,DISABILITY & HIV,PAYMENTS TO CARERS,REDACTED,REDACTED
06.05.2020,CHILDREN'S SERVICES,REDACTED PERSONAL DATA,715.43,DISABILITY & HIV,PAYMENTS TO CARERS,REDACTED,REDACTED
06.05.2020,CHILDREN'S SERVICES,REDACTED PERSONAL DATA,715.43,DISABILITY & HIV,PAYMENTS TO CARERS,REDACTED,REDACTED
06.05.2020,CHILDREN'S SERVICES,REDACTED PERSONAL DATA,897.14,DISABILITY & HIV,PAYMENTS TO CARERS,REDACTED,REDACTED
06.05.2020,CHILDREN'S SERVICES,REDACTED PERSONAL DATA,729.71,DISABILITY & HIV,PAYMENTS TO CARERS,REDACTED,REDACTED
06.05.2020,CHILDREN'S SERVICES,REDACTED PERSONAL DATA,715.43,DISABILITY & HIV,PAYMENTS TO CARERS,REDACTED,REDACTED
06.05.2020,CHILDREN'S SERVICES,REDACTED PERSONAL DATA,679.72,DISABILITY & HIV,PAYMENTS TO CARERS,REDACTED,REDACTED
06.05.2020,CHILDREN'S SERVICES,REDACTED PERSONAL DATA,300,FRIENDS & FAMILY FOSTERING,OTHER PAYMENTS FOR CLIENTS,REDACTED,REDACTED
06.05.2020,CHILDREN'S SERVICES,REDACTED PERSONAL DATA,910,FRIENDS & FAMILY FOSTERING,PAYMENTS TO CARERS,REDACTED,REDACTED
06.05.2020,CHILDREN'S SERVICES,REDACTED PERSONAL DATA,304,FRIENDS & FAMILY FOSTERING,PAYMENTS TO CARERS,REDACTED,REDACTED
06.05.2020,CHILDREN'S SERVICES,REDACTED PERSONAL DATA,335.34,FRIENDS & FAMILY FOSTERING,PAYMENTS TO CARERS,REDACTED,REDACTED
06.05.2020,CHILDREN'S SERVICES,REDACTED PERSONAL DATA,386,FRIENDS & FAMILY FOSTERING,PAYMENTS TO CARERS,REDACTED,REDACTED
06.05.2020,CHILDREN'S SERVICES,REDACTED PERSONAL DATA,476.08,FRIENDS & FAMILY FOSTERING,PAYMENTS TO CARERS,REDACTED,REDACTED
06.05.2020,CHILDREN'S SERVICES,REDACTED PERSONAL DATA,890,FRIENDS & FAMILY FOSTERING,PAYMENTS TO CARERS,REDACTED,REDACTED
06.05.2020,CHILDREN'S SERVICES,REDACTED PERSONAL DATA,804,FRIENDS & FAMILY FOSTERING,PAYMENTS TO CARERS,REDACTED,REDACTED
06.05.2020,CHILDREN'S SERVICES,REDACTED PERSONAL DATA,830.29,FRIENDS & FAMILY FOSTERING,PAYMENTS TO CARERS,REDACTED,REDACTED
06.05.2020,CHILDREN'S SERVICES,REDACTED PERSONAL DATA,795.71,FRIENDS & FAMILY FOSTERING,PAYMENTS TO CARERS,REDACTED,REDACTED
06.05.2020,CHILDREN'S SERVICES,REDACTED PERSONAL DATA,710,FRIENDS & FAMILY FOSTERING,PAYMENTS TO CARERS,REDACTED,REDACTED
06.05.2020,CHILDREN'S SERVICES,REDACTED PERSONAL DATA,804,FRIENDS & FAMILY FOSTERING,PAYMENTS TO CARERS,REDACTED,REDACTED
06.05.2020,CHILDREN'S SERVICES,REDACTED PERSONAL DATA,804,FRIENDS & FAMILY FOSTERING,PAYMENTS TO CARERS,REDACTED,REDACTED
06.05.2020,CHILDREN'S SERVICES,REDACTED PERSONAL DATA,715.43,FRIENDS & FAMILY FOSTERING,PAYMENTS TO CARERS,REDACTED,REDACTED
06.05.2020,CHILDREN'S SERVICES,REDACTED PERSONAL DATA,710,FRIENDS & FAMILY FOSTERING,PAYMENTS TO CARERS,REDACTED,REDACTED
06.05.2020,CHILDREN'S SERVICES,REDACTED PERSONAL DATA,804,FRIENDS & FAMILY FOSTERING,PAYMENTS TO CARERS,REDACTED,REDACTED
06.05.2020,CHILDREN'S SERVICES,REDACTED PERSONAL DATA,832.86,FRIENDS & FAMILY FOSTERING,PAYMENTS TO CARERS,REDACTED,REDACTED
06.05.2020,CHILDREN'S SERVICES,REDACTED PERSONAL DATA,741.14,FRIENDS & FAMILY FOSTERING,PAYMENTS TO CARERS,REDACTED,REDACTED
06.05.2020,CHILDREN'S SERVICES,REDACTED PERSONAL DATA,741.14,FRIENDS & FAMILY FOSTERING,PAYMENTS TO CARERS,REDACTED,REDACTED
06.05.2020,CHILDREN'S SERVICES,REDACTED PERSONAL DATA,710,FRIENDS & FAMILY FOSTERING,PAYMENTS TO CARERS,REDACTED,REDACTED
06.05.2020,CHILDREN'S SERVICES,REDACTED PERSONAL DATA,710,FRIENDS & FAMILY FOSTERING,PAYMENTS TO CARERS,REDACTED,REDACTED
06.05.2020,CHILDREN'S SERVICES,REDACTED PERSONAL DATA,386,FRIENDS & FAMILY FOSTERING,PAYMENTS TO CARERS,REDACTED,REDACTED
06.05.2020,CHILDREN'S SERVICES,REDACTED PERSONAL DATA,386,FRIENDS & FAMILY FOSTERING,PAYMENTS TO CARERS,REDACTED,REDACTED
06.05.2020,CHILDREN'S SERVICES,REDACTED PERSONAL DATA,386,FRIENDS & FAMILY FOSTERING,PAYMENTS TO CARERS,REDACTED,REDACTED
06.05.2020,CHILDREN'S SERVICES,REDACTED PERSONAL DATA,452,FRIENDS & FAMILY FOSTERING,PAYMENTS TO CARERS,REDACTED,REDACTED
06.05.2020,CHILDREN'S SERVICES,REDACTED PERSONAL DATA,715.43,FRIENDS & FAMILY FOSTERING,PAYMENTS TO CARERS,REDACTED,REDACTED
06.05.2020,CHILDREN'S SERVICES,REDACTED PERSONAL DATA,628.28,FRIENDS & FAMILY FOSTERING,PAYMENTS TO CARERS,REDACTED,REDACTED
06.05.2020,CHILDREN'S SERVICES,REDACTED PERSONAL DATA,715.43,FRIENDS & FAMILY FOSTERING,PAYMENTS TO CARERS,REDACTED,REDACTED
06.05.2020,CHILDREN'S SERVICES,REDACTED PERSONAL DATA,628.28,FRIENDS & FAMILY FOSTERING,PAYMENTS TO CARERS,REDACTED,REDACTED
06.05.2020,CHILDREN'S SERVICES,REDACTED PERSONAL DATA,628.28,FRIENDS & FAMILY FOSTERING,PAYMENTS TO CARERS,REDACTED,REDACTED
06.05.2020,CHILDREN'S SERVICES,REDACTED PERSONAL DATA,715.43,FRIENDS & FAMILY FOSTERING,PAYMENTS TO CARERS,REDACTED,REDACTED
06.05.2020,CHILDREN'S SERVICES,REDACTED PERSONAL DATA,660,FRIENDS & FAMILY FOSTERING,PAYMENTS TO CARERS,REDACTED,REDACTED
06.05.2020,CHILDREN'S SERVICES,REDACTED PERSONAL DATA,452,FRIENDS & FAMILY FOSTERING,PAYMENTS TO CARERS,REDACTED,REDACTED
06.05.2020,CHILDREN'S SERVICES,REDACTED PERSONAL DATA,386,FRIENDS & FAMILY FOSTERING,PAYMENTS TO CARERS,REDACTED,REDACTED
06.05.2020,CHILDREN'S SERVICES,REDACTED PERSONAL DATA,795.71,FRIENDS & FAMILY FOSTERING,PAYMENTS TO CARERS,REDACTED,REDACTED
06.05.2020,CHILDREN'S SERVICES,REDACTED PERSONAL DATA,804,FRIENDS & FAMILY FOSTERING,PAYMENTS TO CARERS,REDACTED,REDACTED
06.05.2020,CHILDREN'S SERVICES,REDACTED PERSONAL DATA,700,FRIENDS & FAMILY FOSTERING,PAYMENTS TO CARERS,REDACTED,REDACTED
06.05.2020,CHILDREN'S SERVICES,REDACTED PERSONAL DATA,715.43,FRIENDS & FAMILY FOSTERING,PAYMENTS TO CARERS,REDACTED,REDACTED
06.05.2020,CHILDREN'S SERVICES,REDACTED PERSONAL DATA,386,FRIENDS & FAMILY FOSTERING,PAYMENTS TO CARERS,REDACTED,REDACTED
06.05.2020,CHILDREN'S SERVICES,REDACTED PERSONAL DATA,628.28,FRIENDS & FAMILY FOSTERING,PAYMENTS TO CARERS,REDACTED,REDACTED
06.05.2020,CHILDREN'S SERVICES,REDACTED PERSONAL DATA,715.43,FRIENDS & FAMILY FOSTERING,PAYMENTS TO CARERS,REDACTED,REDACTED
06.05.2020,CHILDREN'S SERVICES,REDACTED PERSONAL DATA,304,FRIENDS & FAMILY FOSTERING,PAYMENTS TO CARERS,REDACTED,REDACTED
06.05.2020,CHILDREN'S SERVICES,REDACTED PERSONAL DATA,304,FRIENDS & FAMILY FOSTERING,PAYMENTS TO CARERS,REDACTED,REDACTED
06.05.2020,CHILDREN'S SERVICES,REDACTED PERSONAL DATA,386,FRIENDS & FAMILY FOSTERING,PAYMENTS TO CARERS,REDACTED,REDACTED
06.05.2020,CHILDREN'S SERVICES,REDACTED PERSONAL DATA,"1,104.00",FRIENDS & FAMILY FOSTERING,PAYMENTS TO CARERS,REDACTED,REDACTED
06.05.2020,CHILDREN'S SERVICES,REDACTED PERSONAL DATA,304,FRIENDS & FAMILY FOSTERING,PAYMENTS TO CARERS,REDACTED,REDACTED
06.05.2020,CHILDREN'S SERVICES,REDACTED PERSONAL DATA,304,FRIENDS & FAMILY FOSTERING,PAYMENTS TO CARERS,REDACTED,REDACTED
06.05.2020,CHILDREN'S SERVICES,REDACTED PERSONAL DATA,342,FRIENDS & FAMILY FOSTERING,PAYMENTS TO CARERS,REDACTED,REDACTED
06.05.2020,CHILDREN'S SERVICES,REDACTED PERSONAL DATA,386,FRIENDS & FAMILY FOSTERING,PAYMENTS TO CARERS,REDACTED,REDACTED
06.05.2020,CHILDREN'S SERVICES,REDACTED PERSONAL DATA,386,FRIENDS & FAMILY FOSTERING,PAYMENTS TO CARERS,REDACTED,REDACTED
06.05.2020,CHILDREN'S SERVICES,REDACTED PERSONAL DATA,386,FRIENDS & FAMILY FOSTERING,PAYMENTS TO CARERS,REDACTED,REDACTED
06.05.2020,CHILDREN'S SERVICES,REDACTED PERSONAL DATA,386,FRIENDS & FAMILY FOSTERING,PAYMENTS TO CARERS,REDACTED,REDACTED
06.05.2020,CHILDREN'S SERVICES,REDACTED PERSONAL DATA,304,FRIENDS & FAMILY FOSTERING,PAYMENTS TO CARERS,REDACTED,REDACTED
06.05.2020,CHILDREN'S SERVICES,REDACTED PERSONAL DATA,400,FURTHER EDUCATION SUPPORT,OTHER PAYMENTS FOR CLIENTS,REDACTED,REDACTED
06.05.2020,CHILDREN'S SERVICES,ITL NORTH EAST LTD,338,MGMT & PARENTING PROG TEAM,INTERPRETING SERVICES,5902416461,1000082415
06.05.2020,CHILDREN'S SERVICES,ITL NORTH EAST LTD,598.67,S & FAM SUPP - PRAC GRP D SET 23-25,INTERPRETING SERVICES,5902416461,1000082415
06.05.2020,CHILDREN'S SERVICES,ITL NORTH EAST LTD,"1,681.73",S & FAM SUPP - PRAC GRP D SET 23-25,INTERPRETING SERVICES,5902416461,1000082415
06.05.2020,CHILDREN'S SERVICES,ITL NORTH EAST LTD,269.5,S & FAM SUPP - PRAC GRP F SET 29-31,INTERPRETING SERVICES,5902416461,1000082415
06.05.2020,CHILDREN'S SERVICES,ITL NORTH EAST LTD,506.03,S & FAM SUPP - PRAC GRP F SET 29-31,INTERPRETING SERVICES,5902416461,1000082415
06.05.2020,CHILDREN'S SERVICES,PURPLE PEBBLES(CHILD CARE) SERVICES,"-2,347.21",SEMI INDEPENDENT CARE LEAVERS,EXTERNAL AGENCIES AND BODIES,2103097215,1000070705
06.05.2020,CHILDREN'S SERVICES,PURPLE PEBBLES(CHILD CARE) SERVICES,"-1,733.34",SEMI INDEPENDENT CARE LEAVERS,EXTERNAL AGENCIES AND BODIES,2103097225,1000070705
06.05.2020,CHILDREN'S SERVICES,PURPLE PEBBLES(CHILD CARE) SERVICES,"-1,480.54",SEMI INDEPENDENT CARE LEAVERS,EXTERNAL AGENCIES AND BODIES,2103097230,1000070705
06.05.2020,CHILDREN'S SERVICES,PURPLE PEBBLES(CHILD CARE) SERVICES,-826.14,SEMI INDEPENDENT CARE LEAVERS,EXTERNAL AGENCIES AND BODIES,2103097218,1000070705
06.05.2020,CHILDREN'S SERVICES,PURPLE PEBBLES(CHILD CARE) SERVICES,-740.27,SEMI INDEPENDENT CARE LEAVERS,EXTERNAL AGENCIES AND BODIES,2103097226,1000070705
06.05.2020,CHILDREN'S SERVICES,PURPLE PEBBLES(CHILD CARE) SERVICES,-500,SEMI INDEPENDENT CARE LEAVERS,EXTERNAL AGENCIES AND BODIES,2103097210,1000070705
06.05.2020,CHILDREN'S SERVICES,PURPLE PEBBLES(CHILD CARE) SERVICES,571.43,SEMI INDEPENDENT CARE LEAVERS,EXTERNAL AGENCIES AND BODIES,2103097222,1000070705
06.05.2020,CHILDREN'S SERVICES,PURPLE PEBBLES(CHILD CARE) SERVICES,642.86,SEMI INDEPENDENT CARE LEAVERS,EXTERNAL AGENCIES AND BODIES,2103097213,1000070705
06.05.2020,CHILDREN'S SERVICES,PURPLE PEBBLES(CHILD CARE) SERVICES,"1,650.00",SEMI INDEPENDENT CARE LEAVERS,EXTERNAL AGENCIES AND BODIES,2103097208,1000070705
06.05.2020,CHILDREN'S SERVICES,PURPLE PEBBLES(CHILD CARE) SERVICES,"1,650.00",SEMI INDEPENDENT CARE LEAVERS,EXTERNAL AGENCIES AND BODIES,2103097228,1000070705
06.05.2020,CHILDREN'S SERVICES,PURPLE PEBBLES(CHILD CARE) SERVICES,"1,660.71",SEMI INDEPENDENT CARE LEAVERS,EXTERNAL AGENCIES AND BODIES,2103097214,1000070705
06.05.2020,CHILDREN'S SERVICES,PURPLE PEBBLES(CHILD CARE) SERVICES,"1,928.57",SEMI INDEPENDENT CARE LEAVERS,EXTERNAL AGENCIES AND BODIES,2103097229,1000070705
06.05.2020,CHILDREN'S SERVICES,PURPLE PEBBLES(CHILD CARE) SERVICES,"1,928.57",SEMI INDEPENDENT CARE LEAVERS,EXTERNAL AGENCIES AND BODIES,2103097231,1000070705
06.05.2020,CHILDREN'S SERVICES,PURPLE PEBBLES(CHILD CARE) SERVICES,"1,982.14",SEMI INDEPENDENT CARE LEAVERS,EXTERNAL AGENCIES AND BODIES,2103097211,1000070705
06.05.2020,CHILDREN'S SERVICES,PURPLE PEBBLES(CHILD CARE) SERVICES,"2,400.00",SEMI INDEPENDENT CARE LEAVERS,EXTERNAL AGENCIES AND BODIES,2103097220,1000070705
06.05.2020,CHILDREN'S SERVICES,YOUNG FUTURES,288.94,SEMI INDEPENDENT LAC,EXTERNAL AGENCIES AND BODIES,2103097234,1000059563
06.05.2020,CHILDREN'S SERVICES,PURPLE PEBBLES(CHILD CARE) SERVICES,"1,607.14",SEMI INDEPENDENT LAC,EXTERNAL AGENCIES AND BODIES,2103097205,1000070705
06.05.2020,CHILDREN'S SERVICES,REDACTED PERSONAL DATA,280,SEMI INDEPENDENT LAC,OTHER PAYMENTS FOR CLIENTS,REDACTED,REDACTED
06.05.2020,CHILDREN'S SERVICES,REDACTED PERSONAL DATA,315.71,SEMI INDEPENDENT LAC,OTHER PAYMENTS FOR CLIENTS,REDACTED,REDACTED
06.05.2020,CHILDREN'S SERVICES,REDACTED PERSONAL DATA,269.08,SPECIAL GUARDIANSHIP,PAYMENTS TO CARERS,REDACTED,REDACTED
06.05.2020,CHILDREN'S SERVICES,REDACTED PERSONAL DATA,388.04,SPECIAL GUARDIANSHIP,PAYMENTS TO CARERS,REDACTED,REDACTED
06.05.2020,CHILDREN'S SERVICES,REDACTED PERSONAL DATA,342.45,SPECIAL GUARDIANSHIP,PAYMENTS TO CARERS,REDACTED,REDACTED
06.05.2020,CHILDREN'S SERVICES,REDACTED PERSONAL DATA,389.34,SPECIAL GUARDIANSHIP,PAYMENTS TO CARERS,REDACTED,REDACTED
06.05.2020,CHILDREN'S SERVICES,REDACTED PERSONAL DATA,356.15,SPECIAL GUARDIANSHIP,PAYMENTS TO CARERS,REDACTED,REDACTED
06.05.2020,CHILDREN'S SERVICES,REDACTED PERSONAL DATA,403.04,SPECIAL GUARDIANSHIP,PAYMENTS TO CARERS,REDACTED,REDACTED
06.05.2020,CHILDREN'S SERVICES,REDACTED PERSONAL DATA,343.05,SPECIAL GUARDIANSHIP,PAYMENTS TO CARERS,REDACTED,REDACTED
06.05.2020,CHILDREN'S SERVICES,REDACTED PERSONAL DATA,525,SPECIAL GUARDIANSHIP,PAYMENTS TO CARERS,REDACTED,REDACTED
06.05.2020,CHILDREN'S SERVICES,REDACTED PERSONAL DATA,525,SPECIAL GUARDIANSHIP,PAYMENTS TO CARERS,REDACTED,REDACTED
06.05.2020,CHILDREN'S SERVICES,REDACTED PERSONAL DATA,395,SPECIAL GUARDIANSHIP,PAYMENTS TO CARERS,REDACTED,REDACTED
06.05.2020,CHILDREN'S SERVICES,REDACTED PERSONAL DATA,341.15,SPECIAL GUARDIANSHIP,PAYMENTS TO CARERS,REDACTED,REDACTED
06.05.2020,CHILDREN'S SERVICES,REDACTED PERSONAL DATA,500,STAYING PUT,PAYMENTS TO CARERS,REDACTED,REDACTED
06.05.2020,CHILDREN'S SERVICES,REDACTED PERSONAL DATA,942,STAYING PUT,PAYMENTS TO CARERS,REDACTED,REDACTED
06.05.2020,CHILDREN'S SERVICES,REDACTED PERSONAL DATA,500,STAYING PUT,PAYMENTS TO CARERS,REDACTED,REDACTED
06.05.2020,CHILDREN'S SERVICES,REDACTED PERSONAL DATA,500,STAYING PUT,PAYMENTS TO CARERS,REDACTED,REDACTED
06.05.2020,CHILDREN'S SERVICES,REDACTED PERSONAL DATA,500,STAYING PUT,PAYMENTS TO CARERS,REDACTED,REDACTED
06.05.2020,CHILDREN'S SERVICES,REDACTED PERSONAL DATA,832,STAYING PUT,PAYMENTS TO CARERS,REDACTED,REDACTED
06.05.2020,CHILDREN'S SERVICES,REDACTED PERSONAL DATA,500,STAYING PUT,PAYMENTS TO CARERS,REDACTED,REDACTED
06.05.2020,CHILDREN'S SERVICES,REDACTED PERSONAL DATA,"1,000.00",STAYING PUT,PAYMENTS TO CARERS,REDACTED,REDACTED
06.05.2020,CHILDREN'S SERVICES,REDACTED PERSONAL DATA,500,STAYING PUT,PAYMENTS TO CARERS,REDACTED,REDACTED
06.05.2020,CHILDREN'S SERVICES,REDACTED PERSONAL DATA,500,STAYING PUT,PAYMENTS TO CARERS,REDACTED,REDACTED
06.05.2020,CHILDREN'S SERVICES,REDACTED PERSONAL DATA,942,STAYING PUT,PAYMENTS TO CARERS,REDACTED,REDACTED
06.05.2020,CHILDREN'S SERVICES,REDACTED PERSONAL DATA,500,STAYING PUT,PAYMENTS TO CARERS,REDACTED,REDACTED
06.05.2020,CHILDREN'S SERVICES,REDACTED PERSONAL DATA,500,STAYING PUT,PAYMENTS TO CARERS,REDACTED,REDACTED
06.05.2020,CHILDREN'S SERVICES,REDACTED PERSONAL DATA,"4,813.71",STAYING PUT,PAYMENTS TO CARERS,REDACTED,REDACTED
06.05.2020,CHILDREN'S SERVICES,REDACTED PERSONAL DATA,500,STAYING PUT,PAYMENTS TO CARERS,REDACTED,REDACTED
06.05.2020,CHILDREN'S SERVICES,REDACTED PERSONAL DATA,500,STAYING PUT,PAYMENTS TO CARERS,REDACTED,REDACTED
06.05.2020,CHILDREN'S SERVICES,REDACTED PERSONAL DATA,500,STAYING PUT,PAYMENTS TO CARERS,REDACTED,REDACTED
06.05.2020,CHILDREN'S SERVICES,REDACTED PERSONAL DATA,500,STAYING PUT,PAYMENTS TO CARERS,REDACTED,REDACTED
06.05.2020,CHILDREN'S SERVICES,REDACTED PERSONAL DATA,500,STAYING PUT,PAYMENTS TO CARERS,REDACTED,REDACTED
06.05.2020,CHILDREN'S SERVICES,REDACTED PERSONAL DATA,500,STAYING PUT,PAYMENTS TO CARERS,REDACTED,REDACTED
06.05.2020,CHILDREN'S SERVICES,REDACTED PERSONAL DATA,500,STAYING PUT,PAYMENTS TO CARERS,REDACTED,REDACTED
06.05.2020,CHILDREN'S SERVICES,REDACTED PERSONAL DATA,"2,428.57",STAYING PUT,PAYMENTS TO CARERS,REDACTED,REDACTED
06.05.2020,CHILDREN'S SERVICES,REDACTED PERSONAL DATA,500,STAYING PUT,PAYMENTS TO CARERS,REDACTED,REDACTED
06.05.2020,CHILDREN'S SERVICES,REDACTED PERSONAL DATA,500,STAYING PUT,PAYMENTS TO CARERS,REDACTED,REDACTED
06.05.2020,CHILDREN'S SERVICES,REDACTED PERSONAL DATA,500,STAYING PUT,PAYMENTS TO CARERS,REDACTED,REDACTED
06.05.2020,CHILDREN'S SERVICES,REDACTED PERSONAL DATA,"4,219.43",STAYING PUT,PAYMENTS TO CARERS,REDACTED,REDACTED
06.05.2020,CHILDREN'S SERVICES,REDACTED PERSONAL DATA,784,STAYING PUT,PAYMENTS TO CARERS,REDACTED,REDACTED
06.05.2020,CHILDREN'S SERVICES,REDACTED PERSONAL DATA,430,STAYING PUT,PAYMENTS TO CARERS,REDACTED,REDACTED
06.05.2020,CHILDREN'S SERVICES,REDACTED PERSONAL DATA,500,STAYING PUT,PAYMENTS TO CARERS,REDACTED,REDACTED
06.05.2020,CHILDREN'S SERVICES,REDACTED PERSONAL DATA,700,STAYING PUT,PAYMENTS TO CARERS,REDACTED,REDACTED
06.05.2020,CHILDREN'S SERVICES,REDACTED PERSONAL DATA,464.29,STAYING PUT,PAYMENTS TO CARERS,REDACTED,REDACTED
06.05.2020,CHILDREN'S SERVICES,REDACTED PERSONAL DATA,"1,000.00",STAYING PUT,PAYMENTS TO CARERS,REDACTED,REDACTED
06.05.2020,CHILDREN'S SERVICES,REDACTED PERSONAL DATA,500,STAYING PUT,PAYMENTS TO CARERS,REDACTED,REDACTED
06.05.2020,CHILDREN'S SERVICES,GOLDSMITHS COLLEGE,"1,500.00",STEP UP,GRANTS,5902416404,1000083164
06.05.2020,CHILDREN'S SERVICES,PROPERTYPLACEBOOK LTD,"1,015.00",TEMPORARY ACCOMMODATION,EXTERNAL AGENCIES AND BODIES,5902416428,1000077817
06.05.2020,CHILDREN'S SERVICES,PROPERTYPLACEBOOK LTD,"1,085.00",TEMPORARY ACCOMMODATION,EXTERNAL AGENCIES AND BODIES,5902416429,1000077817
06.05.2020,CHILDREN'S SERVICES,PURPLE PEBBLES(CHILD CARE) SERVICES,-533.09,UASC CARE LEAVERS,EXTERNAL AGENCIES AND BODIES,2103097217,1000070705
06.05.2020,CHILDREN'S SERVICES,PURPLE PEBBLES(CHILD CARE) SERVICES,350,UASC CARE LEAVERS,EXTERNAL AGENCIES AND BODIES,2103097207,1000070705
06.05.2020,CHILDREN'S SERVICES,PURPLE PEBBLES(CHILD CARE) SERVICES,"1,542.86",UASC CARE LEAVERS,EXTERNAL AGENCIES AND BODIES,2103097204,1000070705
06.05.2020,CHILDREN'S SERVICES,PURPLE PEBBLES(CHILD CARE) SERVICES,"1,564.29",UASC CARE LEAVERS,EXTERNAL AGENCIES AND BODIES,2103097219,1000070705
06.05.2020,CHILDREN'S SERVICES,PURPLE PEBBLES(CHILD CARE) SERVICES,"1,607.14",UASC CARE LEAVERS,EXTERNAL AGENCIES AND BODIES,2103097221,1000070705
06.05.2020,CHILDREN'S SERVICES,PURPLE PEBBLES(CHILD CARE) SERVICES,"1,692.86",UASC CARE LEAVERS,EXTERNAL AGENCIES AND BODIES,2103097224,1000070705
06.05.2020,CHILDREN'S SERVICES,PURPLE PEBBLES(CHILD CARE) SERVICES,"1,692.86",UASC CARE LEAVERS,EXTERNAL AGENCIES AND BODIES,2103097227,1000070705
06.05.2020,CHILDREN'S SERVICES,PURPLE PEBBLES(CHILD CARE) SERVICES,"1,714.29",UASC CARE LEAVERS,EXTERNAL AGENCIES AND BODIES,2103097209,1000070705
06.05.2020,CHILDREN'S SERVICES,PURPLE PEBBLES(CHILD CARE) SERVICES,"1,757.14",UASC CARE LEAVERS,EXTERNAL AGENCIES AND BODIES,2103097212,1000070705
06.05.2020,CHILDREN'S SERVICES,PURPLE PEBBLES(CHILD CARE) SERVICES,"1,928.57",UASC CARE LEAVERS,EXTERNAL AGENCIES AND BODIES,2103097216,1000070705
06.05.2020,CHILDREN'S SERVICES,PURPLE PEBBLES(CHILD CARE) SERVICES,"2,025.00",UASC CARE LEAVERS,EXTERNAL AGENCIES AND BODIES,2103097223,1000070705
06.05.2020,CHILDREN'S SERVICES,REDACTED PERSONAL DATA,469.92,UASC CARE LEAVERS,OTHER PAYMENTS FOR CLIENTS,REDACTED,REDACTED
06.05.2020,CHILDREN'S SERVICES,PURPLE PEBBLES(CHILD CARE) SERVICES,"1,917.86",UASC LAC,EXTERNAL AGENCIES AND BODIES,2103097232,1000070705
06.05.2020,CHILDREN'S SERVICES,PURPLE PEBBLES(CHILD CARE) SERVICES,"1,928.57",UASC LAC,EXTERNAL AGENCIES AND BODIES,2103097233,1000070705
06.05.2020,CHILDREN'S SERVICES,PURPLE PEBBLES(CHILD CARE) SERVICES,1928.57,UASC LAC,EXTERNAL AGENCIES AND BODIES,2103097235,1000070705
06.05.2020,COMMUNITIES,COOPER CLOSE CO-OPERATIVE LTD,"29,416.00",COOPERS CLOSE CO-OP,M&M ALLOWANCE CO-OPS,5902416466,1216346
06.05.2020,COMMUNITIES,EKAYA HOUSING ASSOCIATION,974.98,NO RECOURSE TO PUBLIC FUNDS,ACCOMMODATION CHARGES,5902416438,1000003191
06.05.2020,COMMUNITIES,EKAYA HOUSING ASSOCIATION,"1,042.22",NO RECOURSE TO PUBLIC FUNDS,ACCOMMODATION CHARGES,5902416442,1000003191
06.05.2020,COMMUNITIES,SECURENT LTD,320,NO RECOURSE TO PUBLIC FUNDS,ACCOMMODATION CHARGES,5902416464,1000079400
06.05.2020,COMMUNITIES,ITL NORTH EAST LTD,429.87,NO RECOURSE TO PUBLIC FUNDS,INTERPRETING SERVICES,5902416461,1000082415
06.05.2020,COMMUNITIES,ITL NORTH EAST LTD,494,SYRIAN REFUGEE RESETTLEMENT,INTERPRETING SERVICES,5902416461,1000082415
06.05.2020,COMMUNITIES,BROOK,"36,437.50",YOUNG PEOPLES SERVICE,OTHER CONTRACTORS,5902416389,1000076901
06.05.2020,CUSTOMER EXPERIENCE,ARGOS BUSINESS SOLUTIONS LTD,994.45,COMPLAINTS,OFFICE EXPENSES,5902416439,1000001734
06.05.2020,CUSTOMER EXPERIENCE HGF,FRESHVIEW ESTATES LTD,"1,024.98",HOMELESS PROJECTS,GRANTS,5902416325,1000081189
06.05.2020,CUSTOMER EXPERIENCE HGF,VENTURE HOUSING (LONDON) LTD,"1,230.50",NIGHTLY TA (NSC),EXTERNAL AGENCIES AND BODIES,5902416448,1000056686
06.05.2020,CUSTOMER EXPERIENCE HGF,VENTURE HOUSING (LONDON) LTD,"4,876.00",NIGHTLY TA (NSC),EXTERNAL AGENCIES AND BODIES,5902416445,1000056686
06.05.2020,CUSTOMER EXPERIENCE HGF,SOLACE WOMEN'S AID,"12,524.50",NIGHTLY TA (NSC),EXTERNAL AGENCIES AND BODIES,5902416349,1000057231
06.05.2020,CUSTOMER EXPERIENCE HGF,WILLOW ESTATE AGENTS (LONDON) LTD,"102,916.00",NIGHTLY TA (NSC),EXTERNAL AGENCIES AND BODIES,5902416455,1000060607
06.05.2020,CUSTOMER EXPERIENCE HGF,HOMES2LET UK LTD,"40,759.73",PSL PLACEMENTS,EXTERNAL AGENCIES AND BODIES,5902416453,1000079868
06.05.2020,CUSTOMER EXPERIENCE HGF,IDEAL QUARTERS LTD,"20,000.00",PSL PLACEMENTS,GRANTS,5902416459,1000079241
06.05.2020,ENVIRONMENT AND LEISURE,ALLEN ARCHAEOLOGY LTD,"2,225.00",CAPITAL PS (LEISURE),CONSTRUCTION FEES,5902416460,1000082295
06.05.2020,ENVIRONMENT DIRECTORATE,LONDON COUNCILS,"1,500.00",ALG ACCOUNT,PROFESSIONAL FEES,5902416370,11237079
06.05.2020,ENVIRONMENT DIRECTORATE,WICKSTEED LEISURE LTD,"3,240.00",PARKS TECH UNIT (PREMISES),OTHER CONTRACTORS,5902416467,1000014383
06.05.2020,ENVIRONMENT DIRECTORATE,SIEMENS FINANCIAL SERVICES LIMITED,607.59,R & M OVERHEADS,CATERING MATERIALS & SUPPLIES,5902416383,1000053403
06.05.2020,ENVIRONMENT DIRECTORATE,LONDON TOOLS LIMITED,254.4,R & M OVERHEADS,MATERIALS,5902416246,1000003017
06.05.2020,ENVIRONMENT DIRECTORATE,ELLIOT ENVIRONMENTAL LTD,400,STREET CLEANING-GENERAL,OTHER CONTRACTORS,5902416454,1000047392
06.05.2020,EXCHEQUER SERVICES,LEATHERMARKET JMB HOUSING,"2,000.00",SESS,OTHER PAYMENTS FOR CLIENTS,2103097258,11182872
06.05.2020,EXCHEQUER SERVICES,LAMBETH & SOUTHWARK MIND,"3,500.00",SESS,OTHER PAYMENTS FOR CLIENTS,2103097257,1000084259
06.05.2020,EXCHEQUER SERVICES,YOUNG ADVISORS COMPANY LIMITED,"-7,440.00",SESS,OTHER PAYMENTS FOR CLIENTS,2103099183,1000084266
06.05.2020,EXCHEQUER SERVICES,YOUNG ADVISORS COMPANY LIMITED,"7,440.00",SESS,OTHER PAYMENTS FOR CLIENTS,2103093510,1000084266
06.05.2020,EXCHEQUER SERVICES,EAST WALWORTH WOMEN CLUB 46,"2,000.00",SESS,OTHER PAYMENTS FOR CLIENTS,2103097256,1000084323
06.05.2020,HOUSING,BRIDGEWATER ROOFING CONTRACTORS LTD,"136,009.05",BRC,I-WORLD CONTRACTORS HOLDING ACCOUNT,2103097241,3000001482
06.05.2020,HOUSING HRA,CALFORD SEADEN LLP,"9,055.42",CAPITAL PS (HRA),CONSTRUCTION FEES  - EXTERNAL,5902416335,1061592
06.05.2020,HOUSING HRA,RAB CONSULTANTS LTD,"1,750.00",CAPITAL PS (HRA),CONSTRUCTION FEES  - EXTERNAL,5902416443,1000078085
06.05.2020,HOUSING HRA,FIRE DOOR COMPLIANCE CONSULTANTS LTD,"1,950.00",CAPITAL PS (HRA),CONSTRUCTION FEES  - EXTERNAL,5902416338,1000084231
06.05.2020,HOUSING HRA,BAILY  GARNER LLP,"-3,840.00",CAPITAL PS (HRA),CONSTRUCTION FEES - EMPLOYERS AGENT,5902416561,1000663
06.05.2020,HOUSING HRA,BAILY  GARNER LLP,"3,840.00",CAPITAL PS (HRA),CONSTRUCTION FEES - EMPLOYERS AGENT,5902410189,1000663
06.05.2020,HOUSING HRA,NIBLOCK (BUILDERS) LTD,"20,955.75",CAPITAL PS (HRA),CONSTRUCTION MAIN CONTRACT -CERTIFICATED,2103097254,3000000235
06.05.2020,HOUSING HRA,COTTRELL AND VERMEULEN ARCH LTD,690,CAPITAL PS (REGEN),CONSTRUCTION FEES,5902416369,1000012119
06.05.2020,HOUSING HRA,COTTRELL AND VERMEULEN ARCH LTD,"1,050.00",CAPITAL PS (REGEN),CONSTRUCTION FEES,5902416372,1000012119
06.05.2020,HOUSING HRA,COTTRELL AND VERMEULEN ARCH LTD,"1,260.00",CAPITAL PS (REGEN),CONSTRUCTION FEES,5902416371,1000012119
06.05.2020,LEISURE DIRECTORATE,EDF ENERGY PLC,359.02,CEMETERIES,ELECTRICITY,5902416471,1008746
06.05.2020,LEISURE DIRECTORATE,ROYAL HOLLOWAY AND BEDFORD NEW COLLEGE,"5,740.00",PARKS SERVICES DEVELOPMENT,PROFESSIONAL FEES,5902416362,1000083241
06.05.2020,LEISURE DIRECTORATE,REGENT OFFICE CARE LTD,"3,433.27",SDM BUDGET,PREMISES CLEANING,5902416366,1000063340
06.05.2020,MODERNISATION HGF,THE DEXTROUS WEB LTD,"-2,104.62",DIGITAL DELIVERY,INFORMATION MANAGEMENT,5902416359,1000083020
06.05.2020,MODERNISATION HGF,THE DEXTROUS WEB LTD,"24,675.00",DIGITAL DELIVERY,INFORMATION MANAGEMENT,5902416354,1000083020
06.05.2020,MODERNISATION HGF,LEE HECHT HARRISON PENNA LTD,"1,000.00",HR PAYROLL COSTS,PROFESSIONAL FEES,5902416136,1000079813
06.05.2020,MODERNISATION HGF,COMENSURA LTD,"609,631.64",WEEKLY PAYMENTS,AGENCY STAFF,5902415896,1000051261
06.05.2020,REGENERATION,PELLINGS LLP,"10,631.00",BLACKFRIARS ROAD PROJECT,PROFESSIONAL FEES,5902416379,1009262
06.05.2020,RESIDENT SERVICES,RELIANCE HIGH-TECH LTD,"1,791.57",OPERATIONS/OFFICES ACCOMMODATION,OFFICE EXPENSES,5902416351,1000079374
06.05.2020,RESIDENT SERVICES,LONDON TOOLS LIMITED,261.5,TA HOSTELS,MATERIALS,5902416266,1000003017
06.05.2020,RESIDENT SERVICES,LONDON TOOLS LIMITED,645,TA HOSTELS,MATERIALS,5902416247,1000003017
06.05.2020,RESIDENT SERVICES,VENTURE HOUSING (LONDON) LTD,"13,000.50",TA PLACEMENTS,EXTERNAL AGENCIES AND BODIES,5902416361,1000056686
06.05.2020,RESIDENT SERVICES,STENFORD PROPERTY LTD,"3,261.00",TA PLACEMENTS,EXTERNAL AGENCIES AND BODIES,5902416378,1000074759
06.05.2020,RESIDENT SERVICES,NATIONWIDE ACCOMMODATION,"5,722.30",TA PLACEMENTS,EXTERNAL AGENCIES AND BODIES,5902416397,1000076112
06.05.2020,RESIDENT SERVICES,PROPERTYPLACEBOOK LTD,805,TA PLACEMENTS,EXTERNAL AGENCIES AND BODIES,5902416374,1000077817
06.05.2020,RESIDENT SERVICES,PROPERTYPLACEBOOK LTD,"10,130.00",TA PLACEMENTS,EXTERNAL AGENCIES AND BODIES,5902416368,1000077817
06.05.2020,RESIDENT SERVICES,SITTARA LTD,"1,230.00",TA PLACEMENTS,EXTERNAL AGENCIES AND BODIES,5902416398,1000080857
06.05.2020,SOUTHWARK BUILDING SERVICES,C A BALDWIN & CO LTD,732,STORES/LOGISTICS,CREDITORS -GR/IR CLEARING ACCOUNT,5902416339,1000699
06.05.2020,SOUTHWARK BUILDING SERVICES,"BROWNING, JONES & MORRIS LTD","1,134.00",STORES/LOGISTICS,CREDITORS -GR/IR CLEARING ACCOUNT,5902416344,1027429
06.05.2020,SOUTHWARK BUILDING SERVICES,LONDON TOOLS LIMITED,"1,190.00",STORES/LOGISTICS,CREDITORS -GR/IR CLEARING ACCOUNT,5902416292,1000003017
06.05.2020,SOUTHWARK BUILDING SERVICES,LONDON TOOLS LIMITED,"1,680.00",STORES/LOGISTICS,CREDITORS -GR/IR CLEARING ACCOUNT,5902416292,1000003017
06.05.2020,SUSTAINABILITY & BUSINESS DEVELOPMENT,RELIANCE HIGH-TECH LTD,"1,731.95",SERVICE DEVELOPMENT TEAM,OFFICE EXPENSES,5902416450,1000079374
07.05.2020,ADULT SOCIAL CARE,SIAN DAVIES,"4,225.00",DIR OF ASC,LEGAL FEES & COURT COSTS,2103099231,1000042111
07.05.2020,ADULT SOCIAL CARE,THE DRIVE CARE HOMES LTD,"18,412.20",DISABILITIES LAC,EXTERNAL AGENCIES AND BODIES,2103097829,1000003889
07.05.2020,ADULT SOCIAL CARE,BY THE BRIDGE LTD,"5,571.43",DISABILITIES LAC,EXTERNAL AGENCIES AND BODIES,2103097919,1000043961
07.05.2020,ADULT SOCIAL CARE,BY THE BRIDGE LTD,"6,030.00",DISABILITIES LAC,EXTERNAL AGENCIES AND BODIES,2103097929,1000043961
07.05.2020,ADULT SOCIAL CARE,FOSTERING SUPPORT GROUP LTD,"4,799.76",DISABILITIES LAC,EXTERNAL AGENCIES AND BODIES,2103098011,1000065830
07.05.2020,ADULT SOCIAL CARE,CREATING CARE CHOICES LTD,"18,000.00",DISABILITIES LAC,EXTERNAL AGENCIES AND BODIES,2103097847,1000076738
07.05.2020,ADULT SOCIAL CARE,HELP ME GROW FOSTERING SERVICES LTD,"5,571.30",DISABILITIES LAC,EXTERNAL AGENCIES AND BODIES,2103097918,1000079302
07.05.2020,ADULT SOCIAL CARE,AMELIA'S HOUSE LIMITED,"13,500.00",DISABILITIES LAC,EXTERNAL AGENCIES AND BODIES,2103097839,1000083007
07.05.2020,ADULT SOCIAL CARE,THE DRIVE CARE HOMES LTD,935,DISABILITIES LAC,RESIDENTIAL CARE,5902415494,1000003889
07.05.2020,ADULT SOCIAL CARE,THE DRIVE CARE HOMES LTD,"13,670.83",DISABILITIES LAC,RESIDENTIAL CARE,2103097809,1000003889
07.05.2020,ADULT SOCIAL CARE,FOOTSTEPS CARE LTD,"22,283.70",DISABILITIES LAC,RESIDENTIAL CARE,2103097833,1000045464
07.05.2020,ADULT SOCIAL CARE,THE VINE RESIDENTIAL SERVICES LTD,"25,709.10",DISABILITIES LAC,RESIDENTIAL CARE,2103097821,1000082868
07.05.2020,ADULT SOCIAL CARE,AMELIA'S HOUSE LIMITED,"16,438.50",DISABILITIES LAC,RESIDENTIAL CARE,2103097815,1000083007
07.05.2020,ADULT SOCIAL CARE,REDACTED PERSONAL DATA,816.64,DISCHARGE TO ACCESS,PAYMENTS TO CLIENTS (DIRECT PAYMENTS),REDACTED,REDACTED
07.05.2020,ADULT SOCIAL CARE,MEDEQUIP ASSISTIVE TECHNOLOGY LTD,"163,039.97",ICES CONTRACT,EQUIPMENT PURCHASE & REPAIR,5902416506,1000062775
07.05.2020,ADULT SOCIAL CARE,AURORA OPTIONS,408,LD LTS 18-64,DAYCARE,2103098365,1000066695
07.05.2020,ADULT SOCIAL CARE,SUPREME CARE SERVICES LTD,341,LD LTS 18-64,HOMECARE - C&V,2103097765,1000059416
07.05.2020,ADULT SOCIAL CARE,SUPREME CARE SERVICES LTD,477.4,LD LTS 18-64,HOMECARE - C&V,2103097759,1000059416
07.05.2020,ADULT SOCIAL CARE,THE DRIVE CARE HOMES LTD,-330.2,LD LTS 18-64,"MAND STATUTORY CHARGES, RESIDENTIAL",2103088254,1000003889
07.05.2020,ADULT SOCIAL CARE,THE DRIVE CARE HOMES LTD,269.4,LD LTS 18-64,"MAND STATUTORY CHARGES, RESIDENTIAL",2103088090,1000003889
07.05.2020,ADULT SOCIAL CARE,PEOPLEPLUS ILS,"-1,591.57",LD LTS 18-64,PAYMENTS TO CLIENTS (DIRECT PAYMENTS),2103098945,1000061886
07.05.2020,ADULT SOCIAL CARE,PEOPLEPLUS ILS,-279.87,LD LTS 18-64,PAYMENTS TO CLIENTS (DIRECT PAYMENTS),2103099083,1000061886
07.05.2020,ADULT SOCIAL CARE,PEOPLEPLUS ILS,254.68,LD LTS 18-64,PAYMENTS TO CLIENTS (DIRECT PAYMENTS),2103099047,1000061886
07.05.2020,ADULT SOCIAL CARE,PEOPLEPLUS ILS,260,LD LTS 18-64,PAYMENTS TO CLIENTS (DIRECT PAYMENTS),2103098333,1000061886
07.05.2020,ADULT SOCIAL CARE,PEOPLEPLUS ILS,266,LD LTS 18-64,PAYMENTS TO CLIENTS (DIRECT PAYMENTS),2103099022,1000061886
07.05.2020,ADULT SOCIAL CARE,PEOPLEPLUS ILS,299.6,LD LTS 18-64,PAYMENTS TO CLIENTS (DIRECT PAYMENTS),2103099110,1000061886
07.05.2020,ADULT SOCIAL CARE,PEOPLEPLUS ILS,300,LD LTS 18-64,PAYMENTS TO CLIENTS (DIRECT PAYMENTS),2103098630,1000061886
07.05.2020,ADULT SOCIAL CARE,PEOPLEPLUS ILS,305.88,LD LTS 18-64,PAYMENTS TO CLIENTS (DIRECT PAYMENTS),2103098950,1000061886
07.05.2020,ADULT SOCIAL CARE,PEOPLEPLUS ILS,316.8,LD LTS 18-64,PAYMENTS TO CLIENTS (DIRECT PAYMENTS),2103098944,1000061886
07.05.2020,ADULT SOCIAL CARE,PEOPLEPLUS ILS,329.32,LD LTS 18-64,PAYMENTS TO CLIENTS (DIRECT PAYMENTS),2103098527,1000061886
07.05.2020,ADULT SOCIAL CARE,PEOPLEPLUS ILS,329.8,LD LTS 18-64,PAYMENTS TO CLIENTS (DIRECT PAYMENTS),2103098787,1000061886
07.05.2020,ADULT SOCIAL CARE,PEOPLEPLUS ILS,334,LD LTS 18-64,PAYMENTS TO CLIENTS (DIRECT PAYMENTS),2103098686,1000061886
07.05.2020,ADULT SOCIAL CARE,PEOPLEPLUS ILS,342,LD LTS 18-64,PAYMENTS TO CLIENTS (DIRECT PAYMENTS),2103098391,1000061886
07.05.2020,ADULT SOCIAL CARE,PEOPLEPLUS ILS,349,LD LTS 18-64,PAYMENTS TO CLIENTS (DIRECT PAYMENTS),2103098543,1000061886
07.05.2020,ADULT SOCIAL CARE,PEOPLEPLUS ILS,352,LD LTS 18-64,PAYMENTS TO CLIENTS (DIRECT PAYMENTS),2103098888,1000061886
07.05.2020,ADULT SOCIAL CARE,PEOPLEPLUS ILS,356.92,LD LTS 18-64,PAYMENTS TO CLIENTS (DIRECT PAYMENTS),2103098799,1000061886
07.05.2020,ADULT SOCIAL CARE,PEOPLEPLUS ILS,374,LD LTS 18-64,PAYMENTS TO CLIENTS (DIRECT PAYMENTS),2103099112,1000061886
07.05.2020,ADULT SOCIAL CARE,PEOPLEPLUS ILS,385.6,LD LTS 18-64,PAYMENTS TO CLIENTS (DIRECT PAYMENTS),2103098435,1000061886
07.05.2020,ADULT SOCIAL CARE,PEOPLEPLUS ILS,419.44,LD LTS 18-64,PAYMENTS TO CLIENTS (DIRECT PAYMENTS),2103098957,1000061886
07.05.2020,ADULT SOCIAL CARE,PEOPLEPLUS ILS,437.6,LD LTS 18-64,PAYMENTS TO CLIENTS (DIRECT PAYMENTS),2103098845,1000061886
07.05.2020,ADULT SOCIAL CARE,PEOPLEPLUS ILS,440,LD LTS 18-64,PAYMENTS TO CLIENTS (DIRECT PAYMENTS),2103098860,1000061886
07.05.2020,ADULT SOCIAL CARE,PEOPLEPLUS ILS,452.48,LD LTS 18-64,PAYMENTS TO CLIENTS (DIRECT PAYMENTS),2103098627,1000061886
07.05.2020,ADULT SOCIAL CARE,PEOPLEPLUS ILS,458.08,LD LTS 18-64,PAYMENTS TO CLIENTS (DIRECT PAYMENTS),2103098870,1000061886
07.05.2020,ADULT SOCIAL CARE,PEOPLEPLUS ILS,464.8,LD LTS 18-64,PAYMENTS TO CLIENTS (DIRECT PAYMENTS),2103098933,1000061886
07.05.2020,ADULT SOCIAL CARE,PEOPLEPLUS ILS,480,LD LTS 18-64,PAYMENTS TO CLIENTS (DIRECT PAYMENTS),2103098864,1000061886
07.05.2020,ADULT SOCIAL CARE,PEOPLEPLUS ILS,486.48,LD LTS 18-64,PAYMENTS TO CLIENTS (DIRECT PAYMENTS),2103098450,1000061886
07.05.2020,ADULT SOCIAL CARE,PEOPLEPLUS ILS,493.36,LD LTS 18-64,PAYMENTS TO CLIENTS (DIRECT PAYMENTS),2103099031,1000061886
07.05.2020,ADULT SOCIAL CARE,PEOPLEPLUS ILS,513.36,LD LTS 18-64,PAYMENTS TO CLIENTS (DIRECT PAYMENTS),2103098687,1000061886
07.05.2020,ADULT SOCIAL CARE,PEOPLEPLUS ILS,558.72,LD LTS 18-64,PAYMENTS TO CLIENTS (DIRECT PAYMENTS),2103098786,1000061886
07.05.2020,ADULT SOCIAL CARE,PEOPLEPLUS ILS,577,LD LTS 18-64,PAYMENTS TO CLIENTS (DIRECT PAYMENTS),2103098738,1000061886
07.05.2020,ADULT SOCIAL CARE,PEOPLEPLUS ILS,578,LD LTS 18-64,PAYMENTS TO CLIENTS (DIRECT PAYMENTS),2103098993,1000061886
07.05.2020,ADULT SOCIAL CARE,PEOPLEPLUS ILS,579.12,LD LTS 18-64,PAYMENTS TO CLIENTS (DIRECT PAYMENTS),2103098449,1000061886
07.05.2020,ADULT SOCIAL CARE,PEOPLEPLUS ILS,632.4,LD LTS 18-64,PAYMENTS TO CLIENTS (DIRECT PAYMENTS),2103098847,1000061886
07.05.2020,ADULT SOCIAL CARE,PEOPLEPLUS ILS,633.2,LD LTS 18-64,PAYMENTS TO CLIENTS (DIRECT PAYMENTS),2103098883,1000061886
07.05.2020,ADULT SOCIAL CARE,PEOPLEPLUS ILS,670,LD LTS 18-64,PAYMENTS TO CLIENTS (DIRECT PAYMENTS),2103098524,1000061886
07.05.2020,ADULT SOCIAL CARE,PEOPLEPLUS ILS,670,LD LTS 18-64,PAYMENTS TO CLIENTS (DIRECT PAYMENTS),2103098562,1000061886
07.05.2020,ADULT SOCIAL CARE,PEOPLEPLUS ILS,680,LD LTS 18-64,PAYMENTS TO CLIENTS (DIRECT PAYMENTS),2103098404,1000061886
07.05.2020,ADULT SOCIAL CARE,PEOPLEPLUS ILS,694,LD LTS 18-64,PAYMENTS TO CLIENTS (DIRECT PAYMENTS),2103098376,1000061886
07.05.2020,ADULT SOCIAL CARE,PEOPLEPLUS ILS,718,LD LTS 18-64,PAYMENTS TO CLIENTS (DIRECT PAYMENTS),2103098424,1000061886
07.05.2020,ADULT SOCIAL CARE,PEOPLEPLUS ILS,724.24,LD LTS 18-64,PAYMENTS TO CLIENTS (DIRECT PAYMENTS),2103098377,1000061886
07.05.2020,ADULT SOCIAL CARE,PEOPLEPLUS ILS,732.2,LD LTS 18-64,PAYMENTS TO CLIENTS (DIRECT PAYMENTS),2103099057,1000061886
07.05.2020,ADULT SOCIAL CARE,PEOPLEPLUS ILS,743.04,LD LTS 18-64,PAYMENTS TO CLIENTS (DIRECT PAYMENTS),2103098928,1000061886
07.05.2020,ADULT SOCIAL CARE,PEOPLEPLUS ILS,753.04,LD LTS 18-64,PAYMENTS TO CLIENTS (DIRECT PAYMENTS),2103098363,1000061886
07.05.2020,ADULT SOCIAL CARE,PEOPLEPLUS ILS,753.04,LD LTS 18-64,PAYMENTS TO CLIENTS (DIRECT PAYMENTS),2103098631,1000061886
07.05.2020,ADULT SOCIAL CARE,PEOPLEPLUS ILS,758.72,LD LTS 18-64,PAYMENTS TO CLIENTS (DIRECT PAYMENTS),2103098710,1000061886
07.05.2020,ADULT SOCIAL CARE,PEOPLEPLUS ILS,762.28,LD LTS 18-64,PAYMENTS TO CLIENTS (DIRECT PAYMENTS),2103098474,1000061886
07.05.2020,ADULT SOCIAL CARE,PEOPLEPLUS ILS,766,LD LTS 18-64,PAYMENTS TO CLIENTS (DIRECT PAYMENTS),2103098586,1000061886
07.05.2020,ADULT SOCIAL CARE,PEOPLEPLUS ILS,780,LD LTS 18-64,PAYMENTS TO CLIENTS (DIRECT PAYMENTS),2103098528,1000061886
07.05.2020,ADULT SOCIAL CARE,PEOPLEPLUS ILS,784.08,LD LTS 18-64,PAYMENTS TO CLIENTS (DIRECT PAYMENTS),2103098811,1000061886
07.05.2020,ADULT SOCIAL CARE,PEOPLEPLUS ILS,789.6,LD LTS 18-64,PAYMENTS TO CLIENTS (DIRECT PAYMENTS),2103098670,1000061886
07.05.2020,ADULT SOCIAL CARE,PEOPLEPLUS ILS,794,LD LTS 18-64,PAYMENTS TO CLIENTS (DIRECT PAYMENTS),2103098704,1000061886
07.05.2020,ADULT SOCIAL CARE,PEOPLEPLUS ILS,800,LD LTS 18-64,PAYMENTS TO CLIENTS (DIRECT PAYMENTS),2103098884,1000061886
07.05.2020,ADULT SOCIAL CARE,PEOPLEPLUS ILS,811.84,LD LTS 18-64,PAYMENTS TO CLIENTS (DIRECT PAYMENTS),2103098859,1000061886
07.05.2020,ADULT SOCIAL CARE,PEOPLEPLUS ILS,819.84,LD LTS 18-64,PAYMENTS TO CLIENTS (DIRECT PAYMENTS),2103098390,1000061886
07.05.2020,ADULT SOCIAL CARE,PEOPLEPLUS ILS,852.04,LD LTS 18-64,PAYMENTS TO CLIENTS (DIRECT PAYMENTS),2103098510,1000061886
07.05.2020,ADULT SOCIAL CARE,PEOPLEPLUS ILS,860,LD LTS 18-64,PAYMENTS TO CLIENTS (DIRECT PAYMENTS),2103099091,1000061886
07.05.2020,ADULT SOCIAL CARE,PEOPLEPLUS ILS,875.6,LD LTS 18-64,PAYMENTS TO CLIENTS (DIRECT PAYMENTS),2103098493,1000061886
07.05.2020,ADULT SOCIAL CARE,PEOPLEPLUS ILS,890.84,LD LTS 18-64,PAYMENTS TO CLIENTS (DIRECT PAYMENTS),2103098374,1000061886
07.05.2020,ADULT SOCIAL CARE,PEOPLEPLUS ILS,896.8,LD LTS 18-64,PAYMENTS TO CLIENTS (DIRECT PAYMENTS),2103099011,1000061886
07.05.2020,ADULT SOCIAL CARE,PEOPLEPLUS ILS,900,LD LTS 18-64,PAYMENTS TO CLIENTS (DIRECT PAYMENTS),2103099118,1000061886
07.05.2020,ADULT SOCIAL CARE,PEOPLEPLUS ILS,904.96,LD LTS 18-64,PAYMENTS TO CLIENTS (DIRECT PAYMENTS),2103098693,1000061886
07.05.2020,ADULT SOCIAL CARE,PEOPLEPLUS ILS,918,LD LTS 18-64,PAYMENTS TO CLIENTS (DIRECT PAYMENTS),2103098758,1000061886
07.05.2020,ADULT SOCIAL CARE,PEOPLEPLUS ILS,957.2,LD LTS 18-64,PAYMENTS TO CLIENTS (DIRECT PAYMENTS),2103099079,1000061886
07.05.2020,ADULT SOCIAL CARE,PEOPLEPLUS ILS,970.2,LD LTS 18-64,PAYMENTS TO CLIENTS (DIRECT PAYMENTS),2103098668,1000061886
07.05.2020,ADULT SOCIAL CARE,PEOPLEPLUS ILS,"1,000.00",LD LTS 18-64,PAYMENTS TO CLIENTS (DIRECT PAYMENTS),2103098472,1000061886
07.05.2020,ADULT SOCIAL CARE,PEOPLEPLUS ILS,"1,000.00",LD LTS 18-64,PAYMENTS TO CLIENTS (DIRECT PAYMENTS),2103099010,1000061886
07.05.2020,ADULT SOCIAL CARE,PEOPLEPLUS ILS,"1,013.48",LD LTS 18-64,PAYMENTS TO CLIENTS (DIRECT PAYMENTS),2103098694,1000061886
07.05.2020,ADULT SOCIAL CARE,PEOPLEPLUS ILS,"1,018.08",LD LTS 18-64,PAYMENTS TO CLIENTS (DIRECT PAYMENTS),2103098677,1000061886
07.05.2020,ADULT SOCIAL CARE,PEOPLEPLUS ILS,"1,052.00",LD LTS 18-64,PAYMENTS TO CLIENTS (DIRECT PAYMENTS),2103098711,1000061886
07.05.2020,ADULT SOCIAL CARE,PEOPLEPLUS ILS,"1,054.00",LD LTS 18-64,PAYMENTS TO CLIENTS (DIRECT PAYMENTS),2103098901,1000061886
07.05.2020,ADULT SOCIAL CARE,PEOPLEPLUS ILS,"1,128.96",LD LTS 18-64,PAYMENTS TO CLIENTS (DIRECT PAYMENTS),2103099027,1000061886
07.05.2020,ADULT SOCIAL CARE,PEOPLEPLUS ILS,"1,172.48",LD LTS 18-64,PAYMENTS TO CLIENTS (DIRECT PAYMENTS),2103098697,1000061886
07.05.2020,ADULT SOCIAL CARE,PEOPLEPLUS ILS,"1,192.64",LD LTS 18-64,PAYMENTS TO CLIENTS (DIRECT PAYMENTS),2103098467,1000061886
07.05.2020,ADULT SOCIAL CARE,PEOPLEPLUS ILS,"1,242.40",LD LTS 18-64,PAYMENTS TO CLIENTS (DIRECT PAYMENTS),2103098552,1000061886
07.05.2020,ADULT SOCIAL CARE,PEOPLEPLUS ILS,"1,319.24",LD LTS 18-64,PAYMENTS TO CLIENTS (DIRECT PAYMENTS),2103098973,1000061886
07.05.2020,ADULT SOCIAL CARE,PEOPLEPLUS ILS,"1,324.40",LD LTS 18-64,PAYMENTS TO CLIENTS (DIRECT PAYMENTS),2103098898,1000061886
07.05.2020,ADULT SOCIAL CARE,PEOPLEPLUS ILS,"1,326.40",LD LTS 18-64,PAYMENTS TO CLIENTS (DIRECT PAYMENTS),2103099021,1000061886
07.05.2020,ADULT SOCIAL CARE,PEOPLEPLUS ILS,"1,358.00",LD LTS 18-64,PAYMENTS TO CLIENTS (DIRECT PAYMENTS),2103098766,1000061886
07.05.2020,ADULT SOCIAL CARE,PEOPLEPLUS ILS,"1,359.24",LD LTS 18-64,PAYMENTS TO CLIENTS (DIRECT PAYMENTS),2103098585,1000061886
07.05.2020,ADULT SOCIAL CARE,PEOPLEPLUS ILS,"1,433.20",LD LTS 18-64,PAYMENTS TO CLIENTS (DIRECT PAYMENTS),2103098540,1000061886
07.05.2020,ADULT SOCIAL CARE,PEOPLEPLUS ILS,"1,460.96",LD LTS 18-64,PAYMENTS TO CLIENTS (DIRECT PAYMENTS),2103098673,1000061886
07.05.2020,ADULT SOCIAL CARE,PEOPLEPLUS ILS,"1,471.60",LD LTS 18-64,PAYMENTS TO CLIENTS (DIRECT PAYMENTS),2103098900,1000061886
07.05.2020,ADULT SOCIAL CARE,PEOPLEPLUS ILS,"1,475.84",LD LTS 18-64,PAYMENTS TO CLIENTS (DIRECT PAYMENTS),2103098959,1000061886
07.05.2020,ADULT SOCIAL CARE,PEOPLEPLUS ILS,"1,480.20",LD LTS 18-64,PAYMENTS TO CLIENTS (DIRECT PAYMENTS),2103098495,1000061886
07.05.2020,ADULT SOCIAL CARE,PEOPLEPLUS ILS,"1,529.52",LD LTS 18-64,PAYMENTS TO CLIENTS (DIRECT PAYMENTS),2103098611,1000061886
07.05.2020,ADULT SOCIAL CARE,PEOPLEPLUS ILS,"1,593.92",LD LTS 18-64,PAYMENTS TO CLIENTS (DIRECT PAYMENTS),2103098635,1000061886
07.05.2020,ADULT SOCIAL CARE,PEOPLEPLUS ILS,"1,605.76",LD LTS 18-64,PAYMENTS TO CLIENTS (DIRECT PAYMENTS),2103098919,1000061886
07.05.2020,ADULT SOCIAL CARE,PEOPLEPLUS ILS,"1,617.28",LD LTS 18-64,PAYMENTS TO CLIENTS (DIRECT PAYMENTS),2103098420,1000061886
07.05.2020,ADULT SOCIAL CARE,PEOPLEPLUS ILS,"1,659.04",LD LTS 18-64,PAYMENTS TO CLIENTS (DIRECT PAYMENTS),2103098977,1000061886
07.05.2020,ADULT SOCIAL CARE,PEOPLEPLUS ILS,"1,690.24",LD LTS 18-64,PAYMENTS TO CLIENTS (DIRECT PAYMENTS),2103098561,1000061886
07.05.2020,ADULT SOCIAL CARE,PEOPLEPLUS ILS,"1,693.36",LD LTS 18-64,PAYMENTS TO CLIENTS (DIRECT PAYMENTS),2103098816,1000061886
07.05.2020,ADULT SOCIAL CARE,PEOPLEPLUS ILS,"1,696.32",LD LTS 18-64,PAYMENTS TO CLIENTS (DIRECT PAYMENTS),2103099109,1000061886
07.05.2020,ADULT SOCIAL CARE,PEOPLEPLUS ILS,"1,696.80",LD LTS 18-64,PAYMENTS TO CLIENTS (DIRECT PAYMENTS),2103098529,1000061886
07.05.2020,ADULT SOCIAL CARE,PEOPLEPLUS ILS,"1,730.80",LD LTS 18-64,PAYMENTS TO CLIENTS (DIRECT PAYMENTS),2103099020,1000061886
07.05.2020,ADULT SOCIAL CARE,PEOPLEPLUS ILS,"1,773.96",LD LTS 18-64,PAYMENTS TO CLIENTS (DIRECT PAYMENTS),2103099107,1000061886
07.05.2020,ADULT SOCIAL CARE,PEOPLEPLUS ILS,"1,823.48",LD LTS 18-64,PAYMENTS TO CLIENTS (DIRECT PAYMENTS),2103099106,1000061886
07.05.2020,ADULT SOCIAL CARE,PEOPLEPLUS ILS,"1,829.00",LD LTS 18-64,PAYMENTS TO CLIENTS (DIRECT PAYMENTS),2103098813,1000061886
07.05.2020,ADULT SOCIAL CARE,PEOPLEPLUS ILS,"1,829.60",LD LTS 18-64,PAYMENTS TO CLIENTS (DIRECT PAYMENTS),2103099097,1000061886
07.05.2020,ADULT SOCIAL CARE,PEOPLEPLUS ILS,"1,832.64",LD LTS 18-64,PAYMENTS TO CLIENTS (DIRECT PAYMENTS),2103098504,1000061886
07.05.2020,ADULT SOCIAL CARE,PEOPLEPLUS ILS,"1,862.00",LD LTS 18-64,PAYMENTS TO CLIENTS (DIRECT PAYMENTS),2103098367,1000061886
07.05.2020,ADULT SOCIAL CARE,PEOPLEPLUS ILS,"1,888.28",LD LTS 18-64,PAYMENTS TO CLIENTS (DIRECT PAYMENTS),2103098674,1000061886
07.05.2020,ADULT SOCIAL CARE,PEOPLEPLUS ILS,"1,950.96",LD LTS 18-64,PAYMENTS TO CLIENTS (DIRECT PAYMENTS),2103098664,1000061886
07.05.2020,ADULT SOCIAL CARE,PEOPLEPLUS ILS,"2,044.40",LD LTS 18-64,PAYMENTS TO CLIENTS (DIRECT PAYMENTS),2103098430,1000061886
07.05.2020,ADULT SOCIAL CARE,PEOPLEPLUS ILS,"2,090.00",LD LTS 18-64,PAYMENTS TO CLIENTS (DIRECT PAYMENTS),2103098832,1000061886
07.05.2020,ADULT SOCIAL CARE,PEOPLEPLUS ILS,"2,097.56",LD LTS 18-64,PAYMENTS TO CLIENTS (DIRECT PAYMENTS),2103098601,1000061886
07.05.2020,ADULT SOCIAL CARE,PEOPLEPLUS ILS,"2,131.20",LD LTS 18-64,PAYMENTS TO CLIENTS (DIRECT PAYMENTS),2103098481,1000061886
07.05.2020,ADULT SOCIAL CARE,PEOPLEPLUS ILS,"2,268.84",LD LTS 18-64,PAYMENTS TO CLIENTS (DIRECT PAYMENTS),2103098817,1000061886
07.05.2020,ADULT SOCIAL CARE,PEOPLEPLUS ILS,"2,289.28",LD LTS 18-64,PAYMENTS TO CLIENTS (DIRECT PAYMENTS),2103098644,1000061886
07.05.2020,ADULT SOCIAL CARE,PEOPLEPLUS ILS,"2,354.88",LD LTS 18-64,PAYMENTS TO CLIENTS (DIRECT PAYMENTS),2103098372,1000061886
07.05.2020,ADULT SOCIAL CARE,PEOPLEPLUS ILS,"2,447.76",LD LTS 18-64,PAYMENTS TO CLIENTS (DIRECT PAYMENTS),2103099078,1000061886
07.05.2020,ADULT SOCIAL CARE,PEOPLEPLUS ILS,"2,494.00",LD LTS 18-64,PAYMENTS TO CLIENTS (DIRECT PAYMENTS),2103098737,1000061886
07.05.2020,ADULT SOCIAL CARE,PEOPLEPLUS ILS,"2,668.40",LD LTS 18-64,PAYMENTS TO CLIENTS (DIRECT PAYMENTS),2103098413,1000061886
07.05.2020,ADULT SOCIAL CARE,PEOPLEPLUS ILS,"2,824.18",LD LTS 18-64,PAYMENTS TO CLIENTS (DIRECT PAYMENTS),2103099072,1000061886
07.05.2020,ADULT SOCIAL CARE,PEOPLEPLUS ILS,"2,865.00",LD LTS 18-64,PAYMENTS TO CLIENTS (DIRECT PAYMENTS),2103098559,1000061886
07.05.2020,ADULT SOCIAL CARE,PEOPLEPLUS ILS,"2,906.00",LD LTS 18-64,PAYMENTS TO CLIENTS (DIRECT PAYMENTS),2103098696,1000061886
07.05.2020,ADULT SOCIAL CARE,PEOPLEPLUS ILS,"2,918.00",LD LTS 18-64,PAYMENTS TO CLIENTS (DIRECT PAYMENTS),2103098475,1000061886
07.05.2020,ADULT SOCIAL CARE,PEOPLEPLUS ILS,"2,972.00",LD LTS 18-64,PAYMENTS TO CLIENTS (DIRECT PAYMENTS),2103098720,1000061886
07.05.2020,ADULT SOCIAL CARE,PEOPLEPLUS ILS,"3,106.52",LD LTS 18-64,PAYMENTS TO CLIENTS (DIRECT PAYMENTS),2103098927,1000061886
07.05.2020,ADULT SOCIAL CARE,PEOPLEPLUS ILS,"3,795.20",LD LTS 18-64,PAYMENTS TO CLIENTS (DIRECT PAYMENTS),2103098604,1000061886
07.05.2020,ADULT SOCIAL CARE,PEOPLEPLUS ILS,"3,913.00",LD LTS 18-64,PAYMENTS TO CLIENTS (DIRECT PAYMENTS),2103098736,1000061886
07.05.2020,ADULT SOCIAL CARE,PEOPLEPLUS ILS,"4,242.00",LD LTS 18-64,PAYMENTS TO CLIENTS (DIRECT PAYMENTS),2103099068,1000061886
07.05.2020,ADULT SOCIAL CARE,PEOPLEPLUS ILS,"4,524.80",LD LTS 18-64,PAYMENTS TO CLIENTS (DIRECT PAYMENTS),2103098935,1000061886
07.05.2020,ADULT SOCIAL CARE,PEOPLEPLUS ILS,"4,629.20",LD LTS 18-64,PAYMENTS TO CLIENTS (DIRECT PAYMENTS),2103098982,1000061886
07.05.2020,ADULT SOCIAL CARE,PEOPLEPLUS ILS,"7,997.92",LD LTS 18-64,PAYMENTS TO CLIENTS (DIRECT PAYMENTS),2103098877,1000061886
07.05.2020,ADULT SOCIAL CARE,PEOPLEPLUS ILS,"9,126.80",LD LTS 18-64,PAYMENTS TO CLIENTS (DIRECT PAYMENTS),2103098352,1000061886
07.05.2020,ADULT SOCIAL CARE,PEOPLEPLUS ILS,"11,809.20",LD LTS 18-64,PAYMENTS TO CLIENTS (DIRECT PAYMENTS),2103098659,1000061886
07.05.2020,ADULT SOCIAL CARE,PEOPLEPLUS ILS,"12,619.20",LD LTS 18-64,PAYMENTS TO CLIENTS (DIRECT PAYMENTS),2103098438,1000061886
07.05.2020,ADULT SOCIAL CARE,PEOPLEPLUS ILS,"12,619.20",LD LTS 18-64,PAYMENTS TO CLIENTS (DIRECT PAYMENTS),2103098841,1000061886
07.05.2020,ADULT SOCIAL CARE,FRESH IDEAS & SOLUTIONS SERVICES CIC,-297.81,LD LTS 18-64,PAYMENTS TO CLIENTS (DIRECT PAYMENTS),2103098595,1000070832
07.05.2020,ADULT SOCIAL CARE,FRESH IDEAS & SOLUTIONS SERVICES CIC,465.64,LD LTS 18-64,PAYMENTS TO CLIENTS (DIRECT PAYMENTS),2103098665,1000070832
07.05.2020,ADULT SOCIAL CARE,FRESH IDEAS & SOLUTIONS SERVICES CIC,740,LD LTS 18-64,PAYMENTS TO CLIENTS (DIRECT PAYMENTS),2103098856,1000070832
07.05.2020,ADULT SOCIAL CARE,FRESH IDEAS & SOLUTIONS SERVICES CIC,875.6,LD LTS 18-64,PAYMENTS TO CLIENTS (DIRECT PAYMENTS),2103098835,1000070832
07.05.2020,ADULT SOCIAL CARE,FRESH IDEAS & SOLUTIONS SERVICES CIC,"1,047.52",LD LTS 18-64,PAYMENTS TO CLIENTS (DIRECT PAYMENTS),2103098955,1000070832
07.05.2020,ADULT SOCIAL CARE,FRESH IDEAS & SOLUTIONS SERVICES CIC,"1,848.00",LD LTS 18-64,PAYMENTS TO CLIENTS (DIRECT PAYMENTS),2103098383,1000070832
07.05.2020,ADULT SOCIAL CARE,FRESH IDEAS & SOLUTIONS SERVICES CIC,"2,618.80",LD LTS 18-64,PAYMENTS TO CLIENTS (DIRECT PAYMENTS),2103098642,1000070832
07.05.2020,ADULT SOCIAL CARE,REDACTED PERSONAL DATA,"2,262.40",LD LTS 18-64,PAYMENTS TO CLIENTS (DIRECT PAYMENTS),REDACTED,REDACTED
07.05.2020,ADULT SOCIAL CARE,REDACTED PERSONAL DATA,"3,923.12",LD LTS 18-64,PAYMENTS TO CLIENTS (DIRECT PAYMENTS),REDACTED,REDACTED
07.05.2020,ADULT SOCIAL CARE,REDACTED PERSONAL DATA,981.52,LD LTS 18-64,PAYMENTS TO CLIENTS (DIRECT PAYMENTS),REDACTED,REDACTED
07.05.2020,ADULT SOCIAL CARE,REDACTED PERSONAL DATA,"6,287.92",LD LTS 18-64,PAYMENTS TO CLIENTS (DIRECT PAYMENTS),REDACTED,REDACTED
07.05.2020,ADULT SOCIAL CARE,REDACTED PERSONAL DATA,"2,452.08",LD LTS 18-64,PAYMENTS TO CLIENTS (DIRECT PAYMENTS),REDACTED,REDACTED
07.05.2020,ADULT SOCIAL CARE,REDACTED PERSONAL DATA,"1,979.60",LD LTS 18-64,PAYMENTS TO CLIENTS (DIRECT PAYMENTS),REDACTED,REDACTED
07.05.2020,ADULT SOCIAL CARE,REDACTED PERSONAL DATA,"8,484.60",LD LTS 18-64,PAYMENTS TO CLIENTS (DIRECT PAYMENTS),REDACTED,REDACTED
07.05.2020,ADULT SOCIAL CARE,REDACTED PERSONAL DATA,288.8,LD LTS 18-64,PAYMENTS TO CLIENTS (DIRECT PAYMENTS),REDACTED,REDACTED
07.05.2020,ADULT SOCIAL CARE,REDACTED PERSONAL DATA,"1,534.00",LD LTS 18-64,PAYMENTS TO CLIENTS (DIRECT PAYMENTS),REDACTED,REDACTED
07.05.2020,ADULT SOCIAL CARE,REDACTED PERSONAL DATA,"2,158.60",LD LTS 18-64,PAYMENTS TO CLIENTS (DIRECT PAYMENTS),REDACTED,REDACTED
07.05.2020,ADULT SOCIAL CARE,REDACTED PERSONAL DATA,"3,864.64",LD LTS 18-64,PAYMENTS TO CLIENTS (DIRECT PAYMENTS),REDACTED,REDACTED
07.05.2020,ADULT SOCIAL CARE,REDACTED PERSONAL DATA,"1,420.12",LD LTS 18-64,PAYMENTS TO CLIENTS (DIRECT PAYMENTS),REDACTED,REDACTED
07.05.2020,ADULT SOCIAL CARE,REDACTED PERSONAL DATA,594.4,LD LTS 18-64,PAYMENTS TO CLIENTS (DIRECT PAYMENTS),REDACTED,REDACTED
07.05.2020,ADULT SOCIAL CARE,REDACTED PERSONAL DATA,414.8,LD LTS 18-64,PAYMENTS TO CLIENTS (DIRECT PAYMENTS),REDACTED,REDACTED
07.05.2020,ADULT SOCIAL CARE,REDACTED PERSONAL DATA,300,LD LTS 18-64,PAYMENTS TO CLIENTS (DIRECT PAYMENTS),REDACTED,REDACTED
07.05.2020,ADULT SOCIAL CARE,REDACTED PERSONAL DATA,282.8,LD LTS 18-64,PAYMENTS TO CLIENTS (DIRECT PAYMENTS),REDACTED,REDACTED
07.05.2020,ADULT SOCIAL CARE,REDACTED PERSONAL DATA,"1,368.32",LD LTS 18-64,PAYMENTS TO CLIENTS (DIRECT PAYMENTS),REDACTED,REDACTED
07.05.2020,ADULT SOCIAL CARE,REDACTED PERSONAL DATA,"2,317.60",LD LTS 18-64,PAYMENTS TO CLIENTS (DIRECT PAYMENTS),REDACTED,REDACTED
07.05.2020,ADULT SOCIAL CARE,REDACTED PERSONAL DATA,"2,000.00",LD LTS 18-64,PAYMENTS TO CLIENTS (DIRECT PAYMENTS),REDACTED,REDACTED
07.05.2020,ADULT SOCIAL CARE,REDACTED PERSONAL DATA,522.6,LD LTS 18-64,PAYMENTS TO CLIENTS (DIRECT PAYMENTS),REDACTED,REDACTED
07.05.2020,ADULT SOCIAL CARE,REDACTED PERSONAL DATA,"6,644.40",LD LTS 18-64,PAYMENTS TO CLIENTS (DIRECT PAYMENTS),REDACTED,REDACTED
07.05.2020,ADULT SOCIAL CARE,REDACTED PERSONAL DATA,"1,025.20",LD LTS 18-64,PAYMENTS TO CLIENTS (DIRECT PAYMENTS),REDACTED,REDACTED
07.05.2020,ADULT SOCIAL CARE,REDACTED PERSONAL DATA,327.2,LD LTS 18-64,PAYMENTS TO CLIENTS (DIRECT PAYMENTS),REDACTED,REDACTED
07.05.2020,ADULT SOCIAL CARE,REDACTED PERSONAL DATA,809.8,LD LTS 18-64,PAYMENTS TO CLIENTS (DIRECT PAYMENTS),REDACTED,REDACTED
07.05.2020,ADULT SOCIAL CARE,REDACTED PERSONAL DATA,300,LD LTS 18-64,PAYMENTS TO CLIENTS (DIRECT PAYMENTS),REDACTED,REDACTED
07.05.2020,ADULT SOCIAL CARE,REDACTED PERSONAL DATA,"2,118.00",LD LTS 18-64,PAYMENTS TO CLIENTS (DIRECT PAYMENTS),REDACTED,REDACTED
07.05.2020,ADULT SOCIAL CARE,REDACTED PERSONAL DATA,738,LD LTS 18-64,PAYMENTS TO CLIENTS (DIRECT PAYMENTS),REDACTED,REDACTED
07.05.2020,ADULT SOCIAL CARE,REDACTED PERSONAL DATA,282.8,LD LTS 18-64,PAYMENTS TO CLIENTS (DIRECT PAYMENTS),REDACTED,REDACTED
07.05.2020,ADULT SOCIAL CARE,REDACTED PERSONAL DATA,"1,036.24",LD LTS 18-64,PAYMENTS TO CLIENTS (DIRECT PAYMENTS),REDACTED,REDACTED
07.05.2020,ADULT SOCIAL CARE,REDACTED PERSONAL DATA,320,LD LTS 18-64,PAYMENTS TO CLIENTS (DIRECT PAYMENTS),REDACTED,REDACTED
07.05.2020,ADULT SOCIAL CARE,REDACTED PERSONAL DATA,"2,116.00",LD LTS 18-64,PAYMENTS TO CLIENTS (DIRECT PAYMENTS),REDACTED,REDACTED
07.05.2020,ADULT SOCIAL CARE,REDACTED PERSONAL DATA,639.2,LD LTS 18-64,PAYMENTS TO CLIENTS (DIRECT PAYMENTS),REDACTED,REDACTED
07.05.2020,ADULT SOCIAL CARE,REDACTED PERSONAL DATA,"1,200.00",LD LTS 18-64,PAYMENTS TO CLIENTS (DIRECT PAYMENTS),REDACTED,REDACTED
07.05.2020,ADULT SOCIAL CARE,REDACTED PERSONAL DATA,718,LD LTS 18-64,PAYMENTS TO CLIENTS (DIRECT PAYMENTS),REDACTED,REDACTED
07.05.2020,ADULT SOCIAL CARE,REDACTED PERSONAL DATA,"1,290.16",LD LTS 18-64,PAYMENTS TO CLIENTS (DIRECT PAYMENTS),REDACTED,REDACTED
07.05.2020,ADULT SOCIAL CARE,REDACTED PERSONAL DATA,"1,532.68",LD LTS 18-64,PAYMENTS TO CLIENTS (DIRECT PAYMENTS),REDACTED,REDACTED
07.05.2020,ADULT SOCIAL CARE,REDACTED PERSONAL DATA,"1,532.92",LD LTS 18-64,PAYMENTS TO CLIENTS (DIRECT PAYMENTS),REDACTED,REDACTED
07.05.2020,ADULT SOCIAL CARE,REDACTED PERSONAL DATA,"4,020.80",LD LTS 18-64,PAYMENTS TO CLIENTS (DIRECT PAYMENTS),REDACTED,REDACTED
07.05.2020,ADULT SOCIAL CARE,REDACTED PERSONAL DATA,"6,286.08",LD LTS 18-64,PAYMENTS TO CLIENTS (DIRECT PAYMENTS),REDACTED,REDACTED
07.05.2020,ADULT SOCIAL CARE,REDACTED PERSONAL DATA,"2,347.24",LD LTS 18-64,PAYMENTS TO CLIENTS (DIRECT PAYMENTS),REDACTED,REDACTED
07.05.2020,ADULT SOCIAL CARE,REDACTED PERSONAL DATA,"1,746.16",LD LTS 18-64,PAYMENTS TO CLIENTS (DIRECT PAYMENTS),REDACTED,REDACTED
07.05.2020,ADULT SOCIAL CARE,REDACTED PERSONAL DATA,"2,660.20",LD LTS 18-64,PAYMENTS TO CLIENTS (DIRECT PAYMENTS),REDACTED,REDACTED
07.05.2020,ADULT SOCIAL CARE,REDACTED PERSONAL DATA,676,LD LTS 18-64,PAYMENTS TO CLIENTS (DIRECT PAYMENTS),REDACTED,REDACTED
07.05.2020,ADULT SOCIAL CARE,REDACTED PERSONAL DATA,"1,293.44",LD LTS 18-64,PAYMENTS TO CLIENTS (DIRECT PAYMENTS),REDACTED,REDACTED
07.05.2020,ADULT SOCIAL CARE,REDACTED PERSONAL DATA,"1,493.16",LD LTS 18-64,PAYMENTS TO CLIENTS (DIRECT PAYMENTS),REDACTED,REDACTED
07.05.2020,ADULT SOCIAL CARE,REDACTED PERSONAL DATA,"12,580.00",LD LTS 18-64,PAYMENTS TO CLIENTS (DIRECT PAYMENTS),REDACTED,REDACTED
07.05.2020,ADULT SOCIAL CARE,REDACTED PERSONAL DATA,978,LD LTS 18-64,PAYMENTS TO CLIENTS (DIRECT PAYMENTS),REDACTED,REDACTED
07.05.2020,ADULT SOCIAL CARE,REDACTED PERSONAL DATA,956.16,LD LTS 18-64,PAYMENTS TO CLIENTS (DIRECT PAYMENTS),REDACTED,REDACTED
07.05.2020,ADULT SOCIAL CARE,REDACTED PERSONAL DATA,"1,400.00",LD LTS 18-64,PAYMENTS TO CLIENTS (DIRECT PAYMENTS),REDACTED,REDACTED
07.05.2020,ADULT SOCIAL CARE,REDACTED PERSONAL DATA,"2,736.00",LD LTS 18-64,PAYMENTS TO CLIENTS (DIRECT PAYMENTS),REDACTED,REDACTED
07.05.2020,ADULT SOCIAL CARE,REDACTED PERSONAL DATA,484.32,LD LTS 18-64,PAYMENTS TO CLIENTS (DIRECT PAYMENTS),REDACTED,REDACTED
07.05.2020,ADULT SOCIAL CARE,REDACTED PERSONAL DATA,359.36,LD LTS 18-64,PAYMENTS TO CLIENTS (DIRECT PAYMENTS),REDACTED,REDACTED
07.05.2020,ADULT SOCIAL CARE,REDACTED PERSONAL DATA,787.76,LD LTS 18-64,PAYMENTS TO CLIENTS (DIRECT PAYMENTS),REDACTED,REDACTED
07.05.2020,ADULT SOCIAL CARE,REDACTED PERSONAL DATA,460.04,LD LTS 18-64,PAYMENTS TO CLIENTS (DIRECT PAYMENTS),REDACTED,REDACTED
07.05.2020,ADULT SOCIAL CARE,REDACTED PERSONAL DATA,430.8,LD LTS 18-64,PAYMENTS TO CLIENTS (DIRECT PAYMENTS),REDACTED,REDACTED
07.05.2020,ADULT SOCIAL CARE,REDACTED PERSONAL DATA,858.88,LD LTS 18-64,PAYMENTS TO CLIENTS (DIRECT PAYMENTS),REDACTED,REDACTED
07.05.2020,ADULT SOCIAL CARE,THE DRIVE CARE HOMES LTD,"-15,183.28",LD LTS 18-64,RESIDENTIAL CARE,2103088089,1000003889
07.05.2020,ADULT SOCIAL CARE,THE DRIVE CARE HOMES LTD,"9,600.00",LD LTS 18-64,RESIDENTIAL CARE,2103087877,1000003889
07.05.2020,ADULT SOCIAL CARE,GRANGE FARM COMPLEX,"1,778.36",LD LTS 18-64,SUPPORTED LIVING,2103098574,11086081
07.05.2020,ADULT SOCIAL CARE,PLUS SERVICES,"3,200.00",LD LTS 18-64,SUPPORTED LIVING,2103098342,1000021241
07.05.2020,ADULT SOCIAL CARE,PLUS SERVICES,"5,173.60",LD LTS 18-64,SUPPORTED LIVING,2103098525,1000021241
07.05.2020,ADULT SOCIAL CARE,PLUS SERVICES,"5,495.20",LD LTS 18-64,SUPPORTED LIVING,2103098777,1000021241
07.05.2020,ADULT SOCIAL CARE,CONTACT PROFESSIONALS,475,LD LTS 18-64,SUPPORTED LIVING,2103099150,1000057263
07.05.2020,ADULT SOCIAL CARE,MARCUS AND MARCUS LTD,"4,000.00",LD LTS 18-64,SUPPORTED LIVING,2103099158,1000065913
07.05.2020,ADULT SOCIAL CARE,MARCUS AND MARCUS LTD,"4,800.00",LD LTS 18-64,SUPPORTED LIVING,2103099160,1000065913
07.05.2020,ADULT SOCIAL CARE,AURORA OPTIONS,"2,855.16",LD LTS 18-64,SUPPORTED LIVING,2103098357,1000066695
07.05.2020,ADULT SOCIAL CARE,AURORA OPTIONS,"2,855.16",LD LTS 18-64,SUPPORTED LIVING,2103098452,1000066695
07.05.2020,ADULT SOCIAL CARE,AURORA OPTIONS,"3,441.16",LD LTS 18-64,SUPPORTED LIVING,2103098584,1000066695
07.05.2020,ADULT SOCIAL CARE,HEALTH PERSONNEL LTD,"3,270.00",LD LTS 18-64,SUPPORTED LIVING,2103098384,1000076377
07.05.2020,ADULT SOCIAL CARE,INSPIRE SUPPORT WORKERS LTD,486,LD LTS 18-64,SUPPORTED LIVING,2103099154,1000080725
07.05.2020,ADULT SOCIAL CARE,INSPIRE SUPPORT WORKERS LTD,"1,728.00",LD LTS 18-64,SUPPORTED LIVING,2103099156,1000080725
07.05.2020,ADULT SOCIAL CARE,INSPIRE SUPPORT WORKERS LTD,"5,775.00",LD LTS 18-64,SUPPORTED LIVING,2103099153,1000080725
07.05.2020,ADULT SOCIAL CARE,REMARK LIVING,312,LD LTS 18-64,SUPPORTED LIVING,2103097735,1000081741
07.05.2020,ADULT SOCIAL CARE,REDACTED PERSONAL DATA,"1,032.16",LD LTS 18-64,SUPPORTED LIVING,REDACTED,REDACTED
07.05.2020,ADULT SOCIAL CARE,PEOPLEPLUS ILS,482,LD LTS 65+,PAYMENTS TO CLIENTS (DIRECT PAYMENTS),2103099120,1000061886
07.05.2020,ADULT SOCIAL CARE,UNITED RESPONSE,"1,599.00",LD LTS 65+,SUPPORTED LIVING,2103099122,1022934
07.05.2020,ADULT SOCIAL CARE,PLUS SERVICES,"6,147.92",LD LTS 65+,SUPPORTED LIVING,2103098785,1000021241
07.05.2020,ADULT SOCIAL CARE,INSPIRE SUPPORT WORKERS LTD,252,LD LTS 65+,SUPPORTED LIVING,2103099149,1000080725
07.05.2020,ADULT SOCIAL CARE,PEOPLEPLUS ILS,480.76,MEM LTS 18-64,PAYMENTS TO CLIENTS (DIRECT PAYMENTS),2103098760,1000061886
07.05.2020,ADULT SOCIAL CARE,PEOPLEPLUS ILS,"1,184.00",MEM LTS 18-64,PAYMENTS TO CLIENTS (DIRECT PAYMENTS),2103099058,1000061886
07.05.2020,ADULT SOCIAL CARE,REDACTED PERSONAL DATA,256,MEM LTS 18-64,SUPPORTED LIVING,REDACTED,REDACTED
07.05.2020,ADULT SOCIAL CARE,AGE UK  LEWISHAM & SOUTHWARK,-681.43,MEM LTS 65+,DAYCARE,2103098569,1000066751
07.05.2020,ADULT SOCIAL CARE,AGE UK  LEWISHAM & SOUTHWARK,540,MEM LTS 65+,DAYCARE,2103098487,1000066751
07.05.2020,ADULT SOCIAL CARE,AGE UK  LEWISHAM & SOUTHWARK,540,MEM LTS 65+,DAYCARE,2103099028,1000066751
07.05.2020,ADULT SOCIAL CARE,AGE UK  LEWISHAM & SOUTHWARK,900,MEM LTS 65+,DAYCARE,2103098730,1000066751
07.05.2020,ADULT SOCIAL CARE,AGE UK  LEWISHAM & SOUTHWARK,900,MEM LTS 65+,DAYCARE,2103098873,1000066751
07.05.2020,ADULT SOCIAL CARE,PEOPLEPLUS ILS,-258.88,MEM LTS 65+,DISCRETIONARY FLEXIBLE FEES & INCOME,2103099001,1000061886
07.05.2020,ADULT SOCIAL CARE,REDACTED PERSONAL DATA,"-1,189.32",MEM LTS 65+,DISCRETIONARY FLEXIBLE FEES & INCOME,REDACTED,REDACTED
07.05.2020,ADULT SOCIAL CARE,SUPREME CARE SERVICES LTD,869.56,MEM LTS 65+,HOMECARE - C&V,2103097757,1000059416
07.05.2020,ADULT SOCIAL CARE,PEOPLEPLUS ILS,599.6,MEM LTS 65+,PAYMENTS TO CLIENTS (DIRECT PAYMENTS),2103098572,1000061886
07.05.2020,ADULT SOCIAL CARE,PEOPLEPLUS ILS,914,MEM LTS 65+,PAYMENTS TO CLIENTS (DIRECT PAYMENTS),2103098658,1000061886
07.05.2020,ADULT SOCIAL CARE,PEOPLEPLUS ILS,989.8,MEM LTS 65+,PAYMENTS TO CLIENTS (DIRECT PAYMENTS),2103099002,1000061886
07.05.2020,ADULT SOCIAL CARE,PEOPLEPLUS ILS,"1,221.76",MEM LTS 65+,PAYMENTS TO CLIENTS (DIRECT PAYMENTS),2103098473,1000061886
07.05.2020,ADULT SOCIAL CARE,REDACTED PERSONAL DATA,"1,345.44",MEM LTS 65+,PAYMENTS TO CLIENTS (DIRECT PAYMENTS),REDACTED,REDACTED
07.05.2020,ADULT SOCIAL CARE,REDACTED PERSONAL DATA,"1,187.76",MEM LTS 65+,PAYMENTS TO CLIENTS (DIRECT PAYMENTS),REDACTED,REDACTED
07.05.2020,ADULT SOCIAL CARE,REDACTED PERSONAL DATA,"2,282.40",MEM LTS 65+,PAYMENTS TO CLIENTS (DIRECT PAYMENTS),REDACTED,REDACTED
07.05.2020,ADULT SOCIAL CARE,AGE UK  LEWISHAM & SOUTHWARK,360,MH LTS 18-64,DAYCARE,2103098335,1000066751
07.05.2020,ADULT SOCIAL CARE,REDACTED PERSONAL DATA,253.6,MH LTS 18-64,HOMECARE - SPOT,REDACTED,REDACTED
07.05.2020,ADULT SOCIAL CARE,REDACTED PERSONAL DATA,928,MH LTS 18-64,HOMECARE - SPOT,REDACTED,REDACTED
07.05.2020,ADULT SOCIAL CARE,PEOPLEPLUS ILS,254.08,MH LTS 18-64,PAYMENTS TO CLIENTS (DIRECT PAYMENTS),2103098695,1000061886
07.05.2020,ADULT SOCIAL CARE,PEOPLEPLUS ILS,260.24,MH LTS 18-64,PAYMENTS TO CLIENTS (DIRECT PAYMENTS),2103098987,1000061886
07.05.2020,ADULT SOCIAL CARE,PEOPLEPLUS ILS,260.24,MH LTS 18-64,PAYMENTS TO CLIENTS (DIRECT PAYMENTS),2103099036,1000061886
07.05.2020,ADULT SOCIAL CARE,PEOPLEPLUS ILS,274,MH LTS 18-64,PAYMENTS TO CLIENTS (DIRECT PAYMENTS),2103098526,1000061886
07.05.2020,ADULT SOCIAL CARE,PEOPLEPLUS ILS,287.2,MH LTS 18-64,PAYMENTS TO CLIENTS (DIRECT PAYMENTS),2103098701,1000061886
07.05.2020,ADULT SOCIAL CARE,PEOPLEPLUS ILS,287.96,MH LTS 18-64,PAYMENTS TO CLIENTS (DIRECT PAYMENTS),2103098843,1000061886
07.05.2020,ADULT SOCIAL CARE,PEOPLEPLUS ILS,293.44,MH LTS 18-64,PAYMENTS TO CLIENTS (DIRECT PAYMENTS),2103098632,1000061886
07.05.2020,ADULT SOCIAL CARE,PEOPLEPLUS ILS,308,MH LTS 18-64,PAYMENTS TO CLIENTS (DIRECT PAYMENTS),2103099116,1000061886
07.05.2020,ADULT SOCIAL CARE,PEOPLEPLUS ILS,318,MH LTS 18-64,PAYMENTS TO CLIENTS (DIRECT PAYMENTS),2103098582,1000061886
07.05.2020,ADULT SOCIAL CARE,PEOPLEPLUS ILS,326,MH LTS 18-64,PAYMENTS TO CLIENTS (DIRECT PAYMENTS),2103098518,1000061886
07.05.2020,ADULT SOCIAL CARE,PEOPLEPLUS ILS,327.44,MH LTS 18-64,PAYMENTS TO CLIENTS (DIRECT PAYMENTS),2103099076,1000061886
07.05.2020,ADULT SOCIAL CARE,PEOPLEPLUS ILS,359.24,MH LTS 18-64,PAYMENTS TO CLIENTS (DIRECT PAYMENTS),2103099015,1000061886
07.05.2020,ADULT SOCIAL CARE,PEOPLEPLUS ILS,366.8,MH LTS 18-64,PAYMENTS TO CLIENTS (DIRECT PAYMENTS),2103098477,1000061886
07.05.2020,ADULT SOCIAL CARE,PEOPLEPLUS ILS,373.36,MH LTS 18-64,PAYMENTS TO CLIENTS (DIRECT PAYMENTS),2103098512,1000061886
07.05.2020,ADULT SOCIAL CARE,PEOPLEPLUS ILS,373.36,MH LTS 18-64,PAYMENTS TO CLIENTS (DIRECT PAYMENTS),2103099009,1000061886
07.05.2020,ADULT SOCIAL CARE,PEOPLEPLUS ILS,373.36,MH LTS 18-64,PAYMENTS TO CLIENTS (DIRECT PAYMENTS),2103099111,1000061886
07.05.2020,ADULT SOCIAL CARE,PEOPLEPLUS ILS,381.4,MH LTS 18-64,PAYMENTS TO CLIENTS (DIRECT PAYMENTS),2103098498,1000061886
07.05.2020,ADULT SOCIAL CARE,PEOPLEPLUS ILS,385.76,MH LTS 18-64,PAYMENTS TO CLIENTS (DIRECT PAYMENTS),2103098743,1000061886
07.05.2020,ADULT SOCIAL CARE,PEOPLEPLUS ILS,393.2,MH LTS 18-64,PAYMENTS TO CLIENTS (DIRECT PAYMENTS),2103098857,1000061886
07.05.2020,ADULT SOCIAL CARE,PEOPLEPLUS ILS,394,MH LTS 18-64,PAYMENTS TO CLIENTS (DIRECT PAYMENTS),2103099045,1000061886
07.05.2020,ADULT SOCIAL CARE,PEOPLEPLUS ILS,413.96,MH LTS 18-64,PAYMENTS TO CLIENTS (DIRECT PAYMENTS),2103098629,1000061886
07.05.2020,ADULT SOCIAL CARE,PEOPLEPLUS ILS,415.8,MH LTS 18-64,PAYMENTS TO CLIENTS (DIRECT PAYMENTS),2103098939,1000061886
07.05.2020,ADULT SOCIAL CARE,PEOPLEPLUS ILS,427.92,MH LTS 18-64,PAYMENTS TO CLIENTS (DIRECT PAYMENTS),2103098406,1000061886
07.05.2020,ADULT SOCIAL CARE,PEOPLEPLUS ILS,440.16,MH LTS 18-64,PAYMENTS TO CLIENTS (DIRECT PAYMENTS),2103098800,1000061886
07.05.2020,ADULT SOCIAL CARE,PEOPLEPLUS ILS,489.32,MH LTS 18-64,PAYMENTS TO CLIENTS (DIRECT PAYMENTS),2103098451,1000061886
07.05.2020,ADULT SOCIAL CARE,PEOPLEPLUS ILS,510.84,MH LTS 18-64,PAYMENTS TO CLIENTS (DIRECT PAYMENTS),2103098594,1000061886
07.05.2020,ADULT SOCIAL CARE,PEOPLEPLUS ILS,547.52,MH LTS 18-64,PAYMENTS TO CLIENTS (DIRECT PAYMENTS),2103098941,1000061886
07.05.2020,ADULT SOCIAL CARE,PEOPLEPLUS ILS,553,MH LTS 18-64,PAYMENTS TO CLIENTS (DIRECT PAYMENTS),2103098626,1000061886
07.05.2020,ADULT SOCIAL CARE,PEOPLEPLUS ILS,559.84,MH LTS 18-64,PAYMENTS TO CLIENTS (DIRECT PAYMENTS),2103098360,1000061886
07.05.2020,ADULT SOCIAL CARE,PEOPLEPLUS ILS,565.6,MH LTS 18-64,PAYMENTS TO CLIENTS (DIRECT PAYMENTS),2103098396,1000061886
07.05.2020,ADULT SOCIAL CARE,PEOPLEPLUS ILS,573,MH LTS 18-64,PAYMENTS TO CLIENTS (DIRECT PAYMENTS),2103098885,1000061886
07.05.2020,ADULT SOCIAL CARE,PEOPLEPLUS ILS,585.48,MH LTS 18-64,PAYMENTS TO CLIENTS (DIRECT PAYMENTS),2103098389,1000061886
07.05.2020,ADULT SOCIAL CARE,PEOPLEPLUS ILS,603.4,MH LTS 18-64,PAYMENTS TO CLIENTS (DIRECT PAYMENTS),2103099044,1000061886
07.05.2020,ADULT SOCIAL CARE,PEOPLEPLUS ILS,659.6,MH LTS 18-64,PAYMENTS TO CLIENTS (DIRECT PAYMENTS),2103098990,1000061886
07.05.2020,ADULT SOCIAL CARE,PEOPLEPLUS ILS,694.16,MH LTS 18-64,PAYMENTS TO CLIENTS (DIRECT PAYMENTS),2103098747,1000061886
07.05.2020,ADULT SOCIAL CARE,PEOPLEPLUS ILS,720.8,MH LTS 18-64,PAYMENTS TO CLIENTS (DIRECT PAYMENTS),2103098619,1000061886
07.05.2020,ADULT SOCIAL CARE,PEOPLEPLUS ILS,"1,054.00",MH LTS 18-64,PAYMENTS TO CLIENTS (DIRECT PAYMENTS),2103098961,1000061886
07.05.2020,ADULT SOCIAL CARE,PEOPLEPLUS ILS,"2,311.60",MH LTS 18-64,PAYMENTS TO CLIENTS (DIRECT PAYMENTS),2103099092,1000061886
07.05.2020,ADULT SOCIAL CARE,REDACTED PERSONAL DATA,762.88,MH LTS 18-64,PAYMENTS TO CLIENTS (DIRECT PAYMENTS),REDACTED,REDACTED
07.05.2020,ADULT SOCIAL CARE,REDACTED PERSONAL DATA,410.08,MH LTS 18-64,PAYMENTS TO CLIENTS (DIRECT PAYMENTS),REDACTED,REDACTED
07.05.2020,ADULT SOCIAL CARE,REDACTED PERSONAL DATA,328,MH LTS 18-64,PAYMENTS TO CLIENTS (DIRECT PAYMENTS),REDACTED,REDACTED
07.05.2020,ADULT SOCIAL CARE,REDACTED PERSONAL DATA,888,MH LTS 18-64,PAYMENTS TO CLIENTS (DIRECT PAYMENTS),REDACTED,REDACTED
07.05.2020,ADULT SOCIAL CARE,REDACTED PERSONAL DATA,"1,158.36",MH LTS 18-64,PAYMENTS TO CLIENTS (DIRECT PAYMENTS),REDACTED,REDACTED
07.05.2020,ADULT SOCIAL CARE,OASIS CARE AND TRAINING AGENCY,937.72,MH LTS 18-64,SUPPORTED LIVING,2103099151,1000003687
07.05.2020,ADULT SOCIAL CARE,SUPREME CARE SERVICES LTD,426.24,MH LTS 65+,HOMECARE - C&V,2103097749,1000059416
07.05.2020,ADULT SOCIAL CARE,PEOPLEPLUS ILS,321.56,MH LTS 65+,PAYMENTS TO CLIENTS (DIRECT PAYMENTS),2103098716,1000061886
07.05.2020,ADULT SOCIAL CARE,REDACTED PERSONAL DATA,"1,188.60",MH LTS 65+,PAYMENTS TO CLIENTS (DIRECT PAYMENTS),REDACTED,REDACTED
07.05.2020,ADULT SOCIAL CARE,PEOPLEPLUS ILS,"1,470.00",PHB- SOUTHWARK CCG,RECOVERABLE COSTS INCL. HEALTH,2103098600,1000061886
07.05.2020,ADULT SOCIAL CARE,PEOPLEPLUS ILS,"4,127.92",PHB- SOUTHWARK CCG,RECOVERABLE COSTS INCL. HEALTH,2103098806,1000061886
07.05.2020,ADULT SOCIAL CARE,PEOPLEPLUS ILS,"4,934.94",PHB- SOUTHWARK CCG,RECOVERABLE COSTS INCL. HEALTH,2103098607,1000061886
07.05.2020,ADULT SOCIAL CARE,PEOPLEPLUS ILS,"6,673.20",PHB- SOUTHWARK CCG,RECOVERABLE COSTS INCL. HEALTH,2103098742,1000061886
07.05.2020,ADULT SOCIAL CARE,REDACTED PERSONAL DATA,"9,079.20",PHB- SOUTHWARK CCG,RECOVERABLE COSTS INCL. HEALTH,REDACTED,REDACTED
07.05.2020,ADULT SOCIAL CARE,REDACTED PERSONAL DATA,"7,482.40",PHB- SOUTHWARK CCG,RECOVERABLE COSTS INCL. HEALTH,REDACTED,REDACTED
07.05.2020,ADULT SOCIAL CARE,REDACTED PERSONAL DATA,"2,549.52",PHB- SOUTHWARK CCG,RECOVERABLE COSTS INCL. HEALTH,REDACTED,REDACTED
07.05.2020,ADULT SOCIAL CARE,REDACTED PERSONAL DATA,"2,699.76",PHB- SOUTHWARK CCG,RECOVERABLE COSTS INCL. HEALTH,REDACTED,REDACTED
07.05.2020,ADULT SOCIAL CARE,AGE UK  LEWISHAM & SOUTHWARK,360,PHY LTS 18-64,DAYCARE,2103098703,1000066751
07.05.2020,ADULT SOCIAL CARE,AGE UK  LEWISHAM & SOUTHWARK,360,PHY LTS 18-64,DAYCARE,2103099049,1000066751
07.05.2020,ADULT SOCIAL CARE,AGE UK  LEWISHAM & SOUTHWARK,540,PHY LTS 18-64,DAYCARE,2103098851,1000066751
07.05.2020,ADULT SOCIAL CARE,SUPREME CARE SERVICES LTD,375.12,PHY LTS 18-64,HOMECARE - C&V,2103097745,1000059416
07.05.2020,ADULT SOCIAL CARE,SUPREME CARE SERVICES LTD,545.6,PHY LTS 18-64,HOMECARE - C&V,2103097743,1000059416
07.05.2020,ADULT SOCIAL CARE,SERVESOUL LTD,396.39,PHY LTS 18-64,HOMECARE - SPOT,2103099130,1000081503
07.05.2020,ADULT SOCIAL CARE,PEOPLEPLUS ILS,265.64,PHY LTS 18-64,PAYMENTS TO CLIENTS (DIRECT PAYMENTS),2103098613,1000061886
07.05.2020,ADULT SOCIAL CARE,PEOPLEPLUS ILS,295.04,PHY LTS 18-64,PAYMENTS TO CLIENTS (DIRECT PAYMENTS),2103098807,1000061886
07.05.2020,ADULT SOCIAL CARE,PEOPLEPLUS ILS,365,PHY LTS 18-64,PAYMENTS TO CLIENTS (DIRECT PAYMENTS),2103099103,1000061886
07.05.2020,ADULT SOCIAL CARE,PEOPLEPLUS ILS,388.4,PHY LTS 18-64,PAYMENTS TO CLIENTS (DIRECT PAYMENTS),2103098863,1000061886
07.05.2020,ADULT SOCIAL CARE,PEOPLEPLUS ILS,411.8,PHY LTS 18-64,PAYMENTS TO CLIENTS (DIRECT PAYMENTS),2103099060,1000061886
07.05.2020,ADULT SOCIAL CARE,PEOPLEPLUS ILS,429.92,PHY LTS 18-64,PAYMENTS TO CLIENTS (DIRECT PAYMENTS),2103098788,1000061886
07.05.2020,ADULT SOCIAL CARE,PEOPLEPLUS ILS,429.92,PHY LTS 18-64,PAYMENTS TO CLIENTS (DIRECT PAYMENTS),2103098932,1000061886
07.05.2020,ADULT SOCIAL CARE,PEOPLEPLUS ILS,444.08,PHY LTS 18-64,PAYMENTS TO CLIENTS (DIRECT PAYMENTS),2103098433,1000061886
07.05.2020,ADULT SOCIAL CARE,PEOPLEPLUS ILS,447.4,PHY LTS 18-64,PAYMENTS TO CLIENTS (DIRECT PAYMENTS),2103098456,1000061886
07.05.2020,ADULT SOCIAL CARE,PEOPLEPLUS ILS,472.36,PHY LTS 18-64,PAYMENTS TO CLIENTS (DIRECT PAYMENTS),2103098779,1000061886
07.05.2020,ADULT SOCIAL CARE,PEOPLEPLUS ILS,486.48,PHY LTS 18-64,PAYMENTS TO CLIENTS (DIRECT PAYMENTS),2103099101,1000061886
07.05.2020,ADULT SOCIAL CARE,PEOPLEPLUS ILS,504,PHY LTS 18-64,PAYMENTS TO CLIENTS (DIRECT PAYMENTS),2103098546,1000061886
07.05.2020,ADULT SOCIAL CARE,PEOPLEPLUS ILS,505.4,PHY LTS 18-64,PAYMENTS TO CLIENTS (DIRECT PAYMENTS),2103099046,1000061886
07.05.2020,ADULT SOCIAL CARE,PEOPLEPLUS ILS,509.12,PHY LTS 18-64,PAYMENTS TO CLIENTS (DIRECT PAYMENTS),2103098983,1000061886
07.05.2020,ADULT SOCIAL CARE,PEOPLEPLUS ILS,543.04,PHY LTS 18-64,PAYMENTS TO CLIENTS (DIRECT PAYMENTS),2103098999,1000061886
07.05.2020,ADULT SOCIAL CARE,PEOPLEPLUS ILS,579.6,PHY LTS 18-64,PAYMENTS TO CLIENTS (DIRECT PAYMENTS),2103098866,1000061886
07.05.2020,ADULT SOCIAL CARE,PEOPLEPLUS ILS,587.32,PHY LTS 18-64,PAYMENTS TO CLIENTS (DIRECT PAYMENTS),2103098445,1000061886
07.05.2020,ADULT SOCIAL CARE,PEOPLEPLUS ILS,598.4,PHY LTS 18-64,PAYMENTS TO CLIENTS (DIRECT PAYMENTS),2103099023,1000061886
07.05.2020,ADULT SOCIAL CARE,PEOPLEPLUS ILS,608.04,PHY LTS 18-64,PAYMENTS TO CLIENTS (DIRECT PAYMENTS),2103098462,1000061886
07.05.2020,ADULT SOCIAL CARE,PEOPLEPLUS ILS,613.76,PHY LTS 18-64,PAYMENTS TO CLIENTS (DIRECT PAYMENTS),2103098680,1000061886
07.05.2020,ADULT SOCIAL CARE,PEOPLEPLUS ILS,613.76,PHY LTS 18-64,PAYMENTS TO CLIENTS (DIRECT PAYMENTS),2103098761,1000061886
07.05.2020,ADULT SOCIAL CARE,PEOPLEPLUS ILS,613.76,PHY LTS 18-64,PAYMENTS TO CLIENTS (DIRECT PAYMENTS),2103098906,1000061886
07.05.2020,ADULT SOCIAL CARE,PEOPLEPLUS ILS,627.88,PHY LTS 18-64,PAYMENTS TO CLIENTS (DIRECT PAYMENTS),2103098506,1000061886
07.05.2020,ADULT SOCIAL CARE,PEOPLEPLUS ILS,636.32,PHY LTS 18-64,PAYMENTS TO CLIENTS (DIRECT PAYMENTS),2103098749,1000061886
07.05.2020,ADULT SOCIAL CARE,PEOPLEPLUS ILS,642.04,PHY LTS 18-64,PAYMENTS TO CLIENTS (DIRECT PAYMENTS),2103098930,1000061886
07.05.2020,ADULT SOCIAL CARE,PEOPLEPLUS ILS,670.32,PHY LTS 18-64,PAYMENTS TO CLIENTS (DIRECT PAYMENTS),2103099117,1000061886
07.05.2020,ADULT SOCIAL CARE,PEOPLEPLUS ILS,678.72,PHY LTS 18-64,PAYMENTS TO CLIENTS (DIRECT PAYMENTS),2103098471,1000061886
07.05.2020,ADULT SOCIAL CARE,PEOPLEPLUS ILS,678.72,PHY LTS 18-64,PAYMENTS TO CLIENTS (DIRECT PAYMENTS),2103098549,1000061886
07.05.2020,ADULT SOCIAL CARE,PEOPLEPLUS ILS,707,PHY LTS 18-64,PAYMENTS TO CLIENTS (DIRECT PAYMENTS),2103098340,1000061886
07.05.2020,ADULT SOCIAL CARE,PEOPLEPLUS ILS,724.24,PHY LTS 18-64,PAYMENTS TO CLIENTS (DIRECT PAYMENTS),2103098854,1000061886
07.05.2020,ADULT SOCIAL CARE,PEOPLEPLUS ILS,741,PHY LTS 18-64,PAYMENTS TO CLIENTS (DIRECT PAYMENTS),2103098535,1000061886
07.05.2020,ADULT SOCIAL CARE,PEOPLEPLUS ILS,741,PHY LTS 18-64,PAYMENTS TO CLIENTS (DIRECT PAYMENTS),2103098818,1000061886
07.05.2020,ADULT SOCIAL CARE,PEOPLEPLUS ILS,769.28,PHY LTS 18-64,PAYMENTS TO CLIENTS (DIRECT PAYMENTS),2103098782,1000061886
07.05.2020,ADULT SOCIAL CARE,PEOPLEPLUS ILS,769.28,PHY LTS 18-64,PAYMENTS TO CLIENTS (DIRECT PAYMENTS),2103099075,1000061886
07.05.2020,ADULT SOCIAL CARE,PEOPLEPLUS ILS,786.2,PHY LTS 18-64,PAYMENTS TO CLIENTS (DIRECT PAYMENTS),2103098979,1000061886
07.05.2020,ADULT SOCIAL CARE,PEOPLEPLUS ILS,791.84,PHY LTS 18-64,PAYMENTS TO CLIENTS (DIRECT PAYMENTS),2103098768,1000061886
07.05.2020,ADULT SOCIAL CARE,PEOPLEPLUS ILS,796.88,PHY LTS 18-64,PAYMENTS TO CLIENTS (DIRECT PAYMENTS),2103098909,1000061886
07.05.2020,ADULT SOCIAL CARE,PEOPLEPLUS ILS,840,PHY LTS 18-64,PAYMENTS TO CLIENTS (DIRECT PAYMENTS),2103098596,1000061886
07.05.2020,ADULT SOCIAL CARE,PEOPLEPLUS ILS,840,PHY LTS 18-64,PAYMENTS TO CLIENTS (DIRECT PAYMENTS),2103098964,1000061886
07.05.2020,ADULT SOCIAL CARE,PEOPLEPLUS ILS,840,PHY LTS 18-64,PAYMENTS TO CLIENTS (DIRECT PAYMENTS),2103098966,1000061886
07.05.2020,ADULT SOCIAL CARE,PEOPLEPLUS ILS,863,PHY LTS 18-64,PAYMENTS TO CLIENTS (DIRECT PAYMENTS),2103098844,1000061886
07.05.2020,ADULT SOCIAL CARE,PEOPLEPLUS ILS,870.02,PHY LTS 18-64,PAYMENTS TO CLIENTS (DIRECT PAYMENTS),2103098965,1000061886
07.05.2020,ADULT SOCIAL CARE,PEOPLEPLUS ILS,877.8,PHY LTS 18-64,PAYMENTS TO CLIENTS (DIRECT PAYMENTS),2103098745,1000061886
07.05.2020,ADULT SOCIAL CARE,PEOPLEPLUS ILS,894.76,PHY LTS 18-64,PAYMENTS TO CLIENTS (DIRECT PAYMENTS),2103098653,1000061886
07.05.2020,ADULT SOCIAL CARE,PEOPLEPLUS ILS,932.8,PHY LTS 18-64,PAYMENTS TO CLIENTS (DIRECT PAYMENTS),2103099062,1000061886
07.05.2020,ADULT SOCIAL CARE,PEOPLEPLUS ILS,938.96,PHY LTS 18-64,PAYMENTS TO CLIENTS (DIRECT PAYMENTS),2103098565,1000061886
07.05.2020,ADULT SOCIAL CARE,PEOPLEPLUS ILS,947.24,PHY LTS 18-64,PAYMENTS TO CLIENTS (DIRECT PAYMENTS),2103098921,1000061886
07.05.2020,ADULT SOCIAL CARE,PEOPLEPLUS ILS,978.32,PHY LTS 18-64,PAYMENTS TO CLIENTS (DIRECT PAYMENTS),2103099008,1000061886
07.05.2020,ADULT SOCIAL CARE,PEOPLEPLUS ILS,989.8,PHY LTS 18-64,PAYMENTS TO CLIENTS (DIRECT PAYMENTS),2103098577,1000061886
07.05.2020,ADULT SOCIAL CARE,PEOPLEPLUS ILS,995.52,PHY LTS 18-64,PAYMENTS TO CLIENTS (DIRECT PAYMENTS),2103098907,1000061886
07.05.2020,ADULT SOCIAL CARE,PEOPLEPLUS ILS,"1,009.68",PHY LTS 18-64,PAYMENTS TO CLIENTS (DIRECT PAYMENTS),2103098508,1000061886
07.05.2020,ADULT SOCIAL CARE,PEOPLEPLUS ILS,"1,023.80",PHY LTS 18-64,PAYMENTS TO CLIENTS (DIRECT PAYMENTS),2103098899,1000061886
07.05.2020,ADULT SOCIAL CARE,PEOPLEPLUS ILS,"1,023.80",PHY LTS 18-64,PAYMENTS TO CLIENTS (DIRECT PAYMENTS),2103098985,1000061886
07.05.2020,ADULT SOCIAL CARE,PEOPLEPLUS ILS,"1,052.64",PHY LTS 18-64,PAYMENTS TO CLIENTS (DIRECT PAYMENTS),2103098826,1000061886
07.05.2020,ADULT SOCIAL CARE,PEOPLEPLUS ILS,"1,122.80",PHY LTS 18-64,PAYMENTS TO CLIENTS (DIRECT PAYMENTS),2103098385,1000061886
07.05.2020,ADULT SOCIAL CARE,PEOPLEPLUS ILS,"1,146.40",PHY LTS 18-64,PAYMENTS TO CLIENTS (DIRECT PAYMENTS),2103098708,1000061886
07.05.2020,ADULT SOCIAL CARE,PEOPLEPLUS ILS,"1,150.52",PHY LTS 18-64,PAYMENTS TO CLIENTS (DIRECT PAYMENTS),2103098405,1000061886
07.05.2020,ADULT SOCIAL CARE,PEOPLEPLUS ILS,"1,165.20",PHY LTS 18-64,PAYMENTS TO CLIENTS (DIRECT PAYMENTS),2103098812,1000061886
07.05.2020,ADULT SOCIAL CARE,PEOPLEPLUS ILS,"1,187.76",PHY LTS 18-64,PAYMENTS TO CLIENTS (DIRECT PAYMENTS),2103098416,1000061886
07.05.2020,ADULT SOCIAL CARE,PEOPLEPLUS ILS,"1,193.48",PHY LTS 18-64,PAYMENTS TO CLIENTS (DIRECT PAYMENTS),2103099000,1000061886
07.05.2020,ADULT SOCIAL CARE,PEOPLEPLUS ILS,"1,250.04",PHY LTS 18-64,PAYMENTS TO CLIENTS (DIRECT PAYMENTS),2103098606,1000061886
07.05.2020,ADULT SOCIAL CARE,PEOPLEPLUS ILS,"1,330.00",PHY LTS 18-64,PAYMENTS TO CLIENTS (DIRECT PAYMENTS),2103098538,1000061886
07.05.2020,ADULT SOCIAL CARE,PEOPLEPLUS ILS,"1,371.44",PHY LTS 18-64,PAYMENTS TO CLIENTS (DIRECT PAYMENTS),2103099067,1000061886
07.05.2020,ADULT SOCIAL CARE,PEOPLEPLUS ILS,"1,377.32",PHY LTS 18-64,PAYMENTS TO CLIENTS (DIRECT PAYMENTS),2103098402,1000061886
07.05.2020,ADULT SOCIAL CARE,PEOPLEPLUS ILS,"1,426.00",PHY LTS 18-64,PAYMENTS TO CLIENTS (DIRECT PAYMENTS),2103098625,1000061886
07.05.2020,ADULT SOCIAL CARE,PEOPLEPLUS ILS,"1,616.52",PHY LTS 18-64,PAYMENTS TO CLIENTS (DIRECT PAYMENTS),2103098639,1000061886
07.05.2020,ADULT SOCIAL CARE,PEOPLEPLUS ILS,"1,624.00",PHY LTS 18-64,PAYMENTS TO CLIENTS (DIRECT PAYMENTS),2103099099,1000061886
07.05.2020,ADULT SOCIAL CARE,PEOPLEPLUS ILS,"1,733.56",PHY LTS 18-64,PAYMENTS TO CLIENTS (DIRECT PAYMENTS),2103098359,1000061886
07.05.2020,ADULT SOCIAL CARE,PEOPLEPLUS ILS,"1,909.40",PHY LTS 18-64,PAYMENTS TO CLIENTS (DIRECT PAYMENTS),2103098547,1000061886
07.05.2020,ADULT SOCIAL CARE,PEOPLEPLUS ILS,"2,013.60",PHY LTS 18-64,PAYMENTS TO CLIENTS (DIRECT PAYMENTS),2103098638,1000061886
07.05.2020,ADULT SOCIAL CARE,PEOPLEPLUS ILS,"2,036.16",PHY LTS 18-64,PAYMENTS TO CLIENTS (DIRECT PAYMENTS),2103098354,1000061886
07.05.2020,ADULT SOCIAL CARE,PEOPLEPLUS ILS,"2,646.80",PHY LTS 18-64,PAYMENTS TO CLIENTS (DIRECT PAYMENTS),2103098691,1000061886
07.05.2020,ADULT SOCIAL CARE,PEOPLEPLUS ILS,"3,307.52",PHY LTS 18-64,PAYMENTS TO CLIENTS (DIRECT PAYMENTS),2103098460,1000061886
07.05.2020,ADULT SOCIAL CARE,PEOPLEPLUS ILS,"3,675.40",PHY LTS 18-64,PAYMENTS TO CLIENTS (DIRECT PAYMENTS),2103098721,1000061886
07.05.2020,ADULT SOCIAL CARE,PEOPLEPLUS ILS,"4,118.92",PHY LTS 18-64,PAYMENTS TO CLIENTS (DIRECT PAYMENTS),2103099055,1000061886
07.05.2020,ADULT SOCIAL CARE,PEOPLEPLUS ILS,"7,698.60",PHY LTS 18-64,PAYMENTS TO CLIENTS (DIRECT PAYMENTS),2103098431,1000061886
07.05.2020,ADULT SOCIAL CARE,FRESH IDEAS & SOLUTIONS SERVICES CIC,712.72,PHY LTS 18-64,PAYMENTS TO CLIENTS (DIRECT PAYMENTS),2103098532,1000070832
07.05.2020,ADULT SOCIAL CARE,FRESH IDEAS & SOLUTIONS SERVICES CIC,870,PHY LTS 18-64,PAYMENTS TO CLIENTS (DIRECT PAYMENTS),2103098551,1000070832
07.05.2020,ADULT SOCIAL CARE,FRESH IDEAS & SOLUTIONS SERVICES CIC,"1,108.64",PHY LTS 18-64,PAYMENTS TO CLIENTS (DIRECT PAYMENTS),2103099102,1000070832
07.05.2020,ADULT SOCIAL CARE,REDACTED PERSONAL DATA,"1,583.68",PHY LTS 18-64,PAYMENTS TO CLIENTS (DIRECT PAYMENTS),REDACTED,REDACTED
07.05.2020,ADULT SOCIAL CARE,REDACTED PERSONAL DATA,258.08,PHY LTS 18-64,PAYMENTS TO CLIENTS (DIRECT PAYMENTS),REDACTED,REDACTED
07.05.2020,ADULT SOCIAL CARE,REDACTED PERSONAL DATA,904.96,PHY LTS 18-64,PAYMENTS TO CLIENTS (DIRECT PAYMENTS),REDACTED,REDACTED
07.05.2020,ADULT SOCIAL CARE,REDACTED PERSONAL DATA,"2,395.52",PHY LTS 18-64,PAYMENTS TO CLIENTS (DIRECT PAYMENTS),REDACTED,REDACTED
07.05.2020,ADULT SOCIAL CARE,REDACTED PERSONAL DATA,"1,074.64",PHY LTS 18-64,PAYMENTS TO CLIENTS (DIRECT PAYMENTS),REDACTED,REDACTED
07.05.2020,ADULT SOCIAL CARE,REDACTED PERSONAL DATA,602.48,PHY LTS 18-64,PAYMENTS TO CLIENTS (DIRECT PAYMENTS),REDACTED,REDACTED
07.05.2020,ADULT SOCIAL CARE,REDACTED PERSONAL DATA,806,PHY LTS 18-64,PAYMENTS TO CLIENTS (DIRECT PAYMENTS),REDACTED,REDACTED
07.05.2020,ADULT SOCIAL CARE,REDACTED PERSONAL DATA,254.52,PHY LTS 18-64,PAYMENTS TO CLIENTS (DIRECT PAYMENTS),REDACTED,REDACTED
07.05.2020,ADULT SOCIAL CARE,REDACTED PERSONAL DATA,395.92,PHY LTS 18-64,PAYMENTS TO CLIENTS (DIRECT PAYMENTS),REDACTED,REDACTED
07.05.2020,ADULT SOCIAL CARE,REDACTED PERSONAL DATA,"3,973.84",PHY LTS 18-64,PAYMENTS TO CLIENTS (DIRECT PAYMENTS),REDACTED,REDACTED
07.05.2020,ADULT SOCIAL CARE,REDACTED PERSONAL DATA,"1,131.20",PHY LTS 18-64,PAYMENTS TO CLIENTS (DIRECT PAYMENTS),REDACTED,REDACTED
07.05.2020,ADULT SOCIAL CARE,REDACTED PERSONAL DATA,"1,874.72",PHY LTS 18-64,PAYMENTS TO CLIENTS (DIRECT PAYMENTS),REDACTED,REDACTED
07.05.2020,ADULT SOCIAL CARE,REDACTED PERSONAL DATA,760.76,PHY LTS 18-64,PAYMENTS TO CLIENTS (DIRECT PAYMENTS),REDACTED,REDACTED
07.05.2020,ADULT SOCIAL CARE,REDACTED PERSONAL DATA,593.88,PHY LTS 18-64,PAYMENTS TO CLIENTS (DIRECT PAYMENTS),REDACTED,REDACTED
07.05.2020,ADULT SOCIAL CARE,REDACTED PERSONAL DATA,579.76,PHY LTS 18-64,PAYMENTS TO CLIENTS (DIRECT PAYMENTS),REDACTED,REDACTED
07.05.2020,ADULT SOCIAL CARE,REDACTED PERSONAL DATA,"1,371.60",PHY LTS 18-64,PAYMENTS TO CLIENTS (DIRECT PAYMENTS),REDACTED,REDACTED
07.05.2020,ADULT SOCIAL CARE,REDACTED PERSONAL DATA,"1,204.16",PHY LTS 18-64,PAYMENTS TO CLIENTS (DIRECT PAYMENTS),REDACTED,REDACTED
07.05.2020,ADULT SOCIAL CARE,REDACTED PERSONAL DATA,"1,258.48",PHY LTS 18-64,PAYMENTS TO CLIENTS (DIRECT PAYMENTS),REDACTED,REDACTED
07.05.2020,ADULT SOCIAL CARE,REDACTED PERSONAL DATA,"1,481.20",PHY LTS 18-64,PAYMENTS TO CLIENTS (DIRECT PAYMENTS),REDACTED,REDACTED
07.05.2020,ADULT SOCIAL CARE,REDACTED PERSONAL DATA,"3,535.00",PHY LTS 18-64,PAYMENTS TO CLIENTS (DIRECT PAYMENTS),REDACTED,REDACTED
07.05.2020,ADULT SOCIAL CARE,REDACTED PERSONAL DATA,"1,979.60",PHY LTS 18-64,PAYMENTS TO CLIENTS (DIRECT PAYMENTS),REDACTED,REDACTED
07.05.2020,ADULT SOCIAL CARE,REDACTED PERSONAL DATA,585.6,PHY LTS 18-64,PAYMENTS TO CLIENTS (DIRECT PAYMENTS),REDACTED,REDACTED
07.05.2020,ADULT SOCIAL CARE,REDACTED PERSONAL DATA,403.44,PHY LTS 18-64,PAYMENTS TO CLIENTS (DIRECT PAYMENTS),REDACTED,REDACTED
07.05.2020,ADULT SOCIAL CARE,REDACTED PERSONAL DATA,961.52,PHY LTS 18-64,PAYMENTS TO CLIENTS (DIRECT PAYMENTS),REDACTED,REDACTED
07.05.2020,ADULT SOCIAL CARE,REDACTED PERSONAL DATA,"1,024.88",PHY LTS 18-64,PAYMENTS TO CLIENTS (DIRECT PAYMENTS),REDACTED,REDACTED
07.05.2020,ADULT SOCIAL CARE,REDACTED PERSONAL DATA,"1,088.80",PHY LTS 18-64,PAYMENTS TO CLIENTS (DIRECT PAYMENTS),REDACTED,REDACTED
07.05.2020,ADULT SOCIAL CARE,REDACTED PERSONAL DATA,400,PHY LTS 18-64,PAYMENTS TO CLIENTS (DIRECT PAYMENTS),REDACTED,REDACTED
07.05.2020,ADULT SOCIAL CARE,REDACTED PERSONAL DATA,"2,739.80",PHY LTS 18-64,PAYMENTS TO CLIENTS (DIRECT PAYMENTS),REDACTED,REDACTED
07.05.2020,ADULT SOCIAL CARE,REDACTED PERSONAL DATA,296.96,PHY LTS 18-64,PAYMENTS TO CLIENTS (DIRECT PAYMENTS),REDACTED,REDACTED
07.05.2020,ADULT SOCIAL CARE,REDACTED PERSONAL DATA,848.4,PHY LTS 18-64,PAYMENTS TO CLIENTS (DIRECT PAYMENTS),REDACTED,REDACTED
07.05.2020,ADULT SOCIAL CARE,REDACTED PERSONAL DATA,777.72,PHY LTS 18-64,PAYMENTS TO CLIENTS (DIRECT PAYMENTS),REDACTED,REDACTED
07.05.2020,ADULT SOCIAL CARE,REDACTED PERSONAL DATA,707,PHY LTS 18-64,PAYMENTS TO CLIENTS (DIRECT PAYMENTS),REDACTED,REDACTED
07.05.2020,ADULT SOCIAL CARE,REDACTED PERSONAL DATA,933.24,PHY LTS 18-64,PAYMENTS TO CLIENTS (DIRECT PAYMENTS),REDACTED,REDACTED
07.05.2020,ADULT SOCIAL CARE,REDACTED PERSONAL DATA,"2,163.44",PHY LTS 18-64,PAYMENTS TO CLIENTS (DIRECT PAYMENTS),REDACTED,REDACTED
07.05.2020,ADULT SOCIAL CARE,REDACTED PERSONAL DATA,"1,583.68",PHY LTS 18-64,PAYMENTS TO CLIENTS (DIRECT PAYMENTS),REDACTED,REDACTED
07.05.2020,ADULT SOCIAL CARE,REDACTED PERSONAL DATA,751.96,PHY LTS 18-64,PAYMENTS TO CLIENTS (DIRECT PAYMENTS),REDACTED,REDACTED
07.05.2020,ADULT SOCIAL CARE,REDACTED PERSONAL DATA,"1,009.80",PHY LTS 18-64,PAYMENTS TO CLIENTS (DIRECT PAYMENTS),REDACTED,REDACTED
07.05.2020,ADULT SOCIAL CARE,REDACTED PERSONAL DATA,"1,583.68",PHY LTS 18-64,PAYMENTS TO CLIENTS (DIRECT PAYMENTS),REDACTED,REDACTED
07.05.2020,ADULT SOCIAL CARE,REDACTED PERSONAL DATA,"1,199.76",PHY LTS 18-64,PAYMENTS TO CLIENTS (DIRECT PAYMENTS),REDACTED,REDACTED
07.05.2020,ADULT SOCIAL CARE,REDACTED PERSONAL DATA,706.88,PHY LTS 18-64,PAYMENTS TO CLIENTS (DIRECT PAYMENTS),REDACTED,REDACTED
07.05.2020,ADULT SOCIAL CARE,REDACTED PERSONAL DATA,"2,088.48",PHY LTS 18-64,PAYMENTS TO CLIENTS (DIRECT PAYMENTS),REDACTED,REDACTED
07.05.2020,ADULT SOCIAL CARE,REDACTED PERSONAL DATA,791.84,PHY LTS 18-64,PAYMENTS TO CLIENTS (DIRECT PAYMENTS),REDACTED,REDACTED
07.05.2020,ADULT SOCIAL CARE,REDACTED PERSONAL DATA,565.6,PHY LTS 18-64,PAYMENTS TO CLIENTS (DIRECT PAYMENTS),REDACTED,REDACTED
07.05.2020,ADULT SOCIAL CARE,REDACTED PERSONAL DATA,769.44,PHY LTS 18-64,PAYMENTS TO CLIENTS (DIRECT PAYMENTS),REDACTED,REDACTED
07.05.2020,ADULT SOCIAL CARE,REDACTED PERSONAL DATA,981.52,PHY LTS 18-64,PAYMENTS TO CLIENTS (DIRECT PAYMENTS),REDACTED,REDACTED
07.05.2020,ADULT SOCIAL CARE,REDACTED PERSONAL DATA,430.08,PHY LTS 18-64,PAYMENTS TO CLIENTS (DIRECT PAYMENTS),REDACTED,REDACTED
07.05.2020,ADULT SOCIAL CARE,REDACTED PERSONAL DATA,"2,651.36",PHY LTS 18-64,PAYMENTS TO CLIENTS (DIRECT PAYMENTS),REDACTED,REDACTED
07.05.2020,ADULT SOCIAL CARE,AGE CONCERN LEWISHAM & SOUTHWARK,540,PHY LTS 65+,DAYCARE,2103098587,1000057586
07.05.2020,ADULT SOCIAL CARE,AGE UK  LEWISHAM & SOUTHWARK,"-1,311.43",PHY LTS 65+,DAYCARE,2103098637,1000066751
07.05.2020,ADULT SOCIAL CARE,AGE UK  LEWISHAM & SOUTHWARK,-334.29,PHY LTS 65+,DAYCARE,2103098575,1000066751
07.05.2020,ADULT SOCIAL CARE,AGE UK  LEWISHAM & SOUTHWARK,360,PHY LTS 65+,DAYCARE,2103098403,1000066751
07.05.2020,ADULT SOCIAL CARE,AGE UK  LEWISHAM & SOUTHWARK,360,PHY LTS 65+,DAYCARE,2103098414,1000066751
07.05.2020,ADULT SOCIAL CARE,AGE UK  LEWISHAM & SOUTHWARK,360,PHY LTS 65+,DAYCARE,2103098458,1000066751
07.05.2020,ADULT SOCIAL CARE,AGE UK  LEWISHAM & SOUTHWARK,360,PHY LTS 65+,DAYCARE,2103098566,1000066751
07.05.2020,ADULT SOCIAL CARE,AGE UK  LEWISHAM & SOUTHWARK,360,PHY LTS 65+,DAYCARE,2103098669,1000066751
07.05.2020,ADULT SOCIAL CARE,AGE UK  LEWISHAM & SOUTHWARK,360,PHY LTS 65+,DAYCARE,2103098867,1000066751
07.05.2020,ADULT SOCIAL CARE,AGE UK  LEWISHAM & SOUTHWARK,360,PHY LTS 65+,DAYCARE,2103098894,1000066751
07.05.2020,ADULT SOCIAL CARE,AGE UK  LEWISHAM & SOUTHWARK,360,PHY LTS 65+,DAYCARE,2103098924,1000066751
07.05.2020,ADULT SOCIAL CARE,AGE UK  LEWISHAM & SOUTHWARK,360,PHY LTS 65+,DAYCARE,2103098956,1000066751
07.05.2020,ADULT SOCIAL CARE,AGE UK  LEWISHAM & SOUTHWARK,360,PHY LTS 65+,DAYCARE,2103098984,1000066751
07.05.2020,ADULT SOCIAL CARE,AGE UK  LEWISHAM & SOUTHWARK,540,PHY LTS 65+,DAYCARE,2103098713,1000066751
07.05.2020,ADULT SOCIAL CARE,AGE UK  LEWISHAM & SOUTHWARK,540,PHY LTS 65+,DAYCARE,2103098869,1000066751
07.05.2020,ADULT SOCIAL CARE,AGE UK  LEWISHAM & SOUTHWARK,540,PHY LTS 65+,DAYCARE,2103098996,1000066751
07.05.2020,ADULT SOCIAL CARE,AGE UK  LEWISHAM & SOUTHWARK,720,PHY LTS 65+,DAYCARE,2103098400,1000066751
07.05.2020,ADULT SOCIAL CARE,BLACK ELDER GROUP SWK,540,PHY LTS 65+,DAYCARE,2103098560,1000067369
07.05.2020,ADULT SOCIAL CARE,SOUTHWARK CYPRIOT DAY CENTRE LTD,288,PHY LTS 65+,DAYCARE,2103098459,1000067736
07.05.2020,ADULT SOCIAL CARE,PEOPLEPLUS ILS,-290.4,PHY LTS 65+,DISCRETIONARY FLEXIBLE FEES & INCOME,2103098434,1000061886
07.05.2020,ADULT SOCIAL CARE,PEOPLEPLUS ILS,-259.44,PHY LTS 65+,DISCRETIONARY FLEXIBLE FEES & INCOME,2103098418,1000061886
07.05.2020,ADULT SOCIAL CARE,SUPREME CARE SERVICES LTD,409.2,PHY LTS 65+,HOMECARE - C&V,2103097761,1000059416
07.05.2020,ADULT SOCIAL CARE,SUPREME CARE SERVICES LTD,426.24,PHY LTS 65+,HOMECARE - C&V,2103097737,1000059416
07.05.2020,ADULT SOCIAL CARE,SUPREME CARE SERVICES LTD,579.72,PHY LTS 65+,HOMECARE - C&V,2103097755,1000059416
07.05.2020,ADULT SOCIAL CARE,SUPREME CARE SERVICES LTD,"1,023.00",PHY LTS 65+,HOMECARE - C&V,2103097741,1000059416
07.05.2020,ADULT SOCIAL CARE,SUPREME CARE SERVICES LTD,"1,057.12",PHY LTS 65+,HOMECARE - C&V,2103097739,1000059416
07.05.2020,ADULT SOCIAL CARE,SUPREME CARE SERVICES LTD,"1,176.44",PHY LTS 65+,HOMECARE - C&V,2103097767,1000059416
07.05.2020,ADULT SOCIAL CARE,SUPREME CARE SERVICES LTD,"326,437.94",PHY LTS 65+,HOMECARE - C&V,5902415813,1000059416
07.05.2020,ADULT SOCIAL CARE,SERVESOUL LTD,262.87,PHY LTS 65+,HOMECARE - SPOT,2103098115,1000081503
07.05.2020,ADULT SOCIAL CARE,SERVESOUL LTD,262.87,PHY LTS 65+,HOMECARE - SPOT,2103099132,1000081503
07.05.2020,ADULT SOCIAL CARE,SERVESOUL LTD,346.32,PHY LTS 65+,HOMECARE - SPOT,2103098119,1000081503
07.05.2020,ADULT SOCIAL CARE,SERVESOUL LTD,346.32,PHY LTS 65+,HOMECARE - SPOT,2103099139,1000081503
07.05.2020,ADULT SOCIAL CARE,SERVESOUL LTD,425.6,PHY LTS 65+,HOMECARE - SPOT,2103098122,1000081503
07.05.2020,ADULT SOCIAL CARE,SERVESOUL LTD,425.6,PHY LTS 65+,HOMECARE - SPOT,2103099143,1000081503
07.05.2020,ADULT SOCIAL CARE,SERVESOUL LTD,517.39,PHY LTS 65+,HOMECARE - SPOT,2103098116,1000081503
07.05.2020,ADULT SOCIAL CARE,SERVESOUL LTD,517.39,PHY LTS 65+,HOMECARE - SPOT,2103099126,1000081503
07.05.2020,ADULT SOCIAL CARE,SERVESOUL LTD,534.08,PHY LTS 65+,HOMECARE - SPOT,2103098106,1000081503
07.05.2020,ADULT SOCIAL CARE,SERVESOUL LTD,534.08,PHY LTS 65+,HOMECARE - SPOT,2103099135,1000081503
07.05.2020,ADULT SOCIAL CARE,SERVESOUL LTD,559.12,PHY LTS 65+,HOMECARE - SPOT,2103098121,1000081503
07.05.2020,ADULT SOCIAL CARE,SERVESOUL LTD,559.12,PHY LTS 65+,HOMECARE - SPOT,2103099129,1000081503
07.05.2020,ADULT SOCIAL CARE,SERVESOUL LTD,671.77,PHY LTS 65+,HOMECARE - SPOT,2103098113,1000081503
07.05.2020,ADULT SOCIAL CARE,SERVESOUL LTD,671.77,PHY LTS 65+,HOMECARE - SPOT,2103099140,1000081503
07.05.2020,ADULT SOCIAL CARE,AGE CONCERN LEWISHAM & SOUTHWARK,900,PHY LTS 65+,PAYMENTS TO CLIENTS (DIRECT PAYMENTS),2103098349,1000057586
07.05.2020,ADULT SOCIAL CARE,PEOPLEPLUS ILS,310.96,PHY LTS 65+,PAYMENTS TO CLIENTS (DIRECT PAYMENTS),2103098848,1000061886
07.05.2020,ADULT SOCIAL CARE,PEOPLEPLUS ILS,311.08,PHY LTS 65+,PAYMENTS TO CLIENTS (DIRECT PAYMENTS),2103098341,1000061886
07.05.2020,ADULT SOCIAL CARE,PEOPLEPLUS ILS,316.8,PHY LTS 65+,PAYMENTS TO CLIENTS (DIRECT PAYMENTS),2103098410,1000061886
07.05.2020,ADULT SOCIAL CARE,PEOPLEPLUS ILS,365,PHY LTS 65+,PAYMENTS TO CLIENTS (DIRECT PAYMENTS),2103098889,1000061886
07.05.2020,ADULT SOCIAL CARE,PEOPLEPLUS ILS,365.76,PHY LTS 65+,PAYMENTS TO CLIENTS (DIRECT PAYMENTS),2103098346,1000061886
07.05.2020,ADULT SOCIAL CARE,PEOPLEPLUS ILS,421.56,PHY LTS 65+,PAYMENTS TO CLIENTS (DIRECT PAYMENTS),2103098772,1000061886
07.05.2020,ADULT SOCIAL CARE,PEOPLEPLUS ILS,423.52,PHY LTS 65+,PAYMENTS TO CLIENTS (DIRECT PAYMENTS),2103098803,1000061886
07.05.2020,ADULT SOCIAL CARE,PEOPLEPLUS ILS,444.08,PHY LTS 65+,PAYMENTS TO CLIENTS (DIRECT PAYMENTS),2103098975,1000061886
07.05.2020,ADULT SOCIAL CARE,PEOPLEPLUS ILS,456.32,PHY LTS 65+,PAYMENTS TO CLIENTS (DIRECT PAYMENTS),2103099016,1000061886
07.05.2020,ADULT SOCIAL CARE,PEOPLEPLUS ILS,509.04,PHY LTS 65+,PAYMENTS TO CLIENTS (DIRECT PAYMENTS),2103098699,1000061886
07.05.2020,ADULT SOCIAL CARE,PEOPLEPLUS ILS,552.2,PHY LTS 65+,PAYMENTS TO CLIENTS (DIRECT PAYMENTS),2103098756,1000061886
07.05.2020,ADULT SOCIAL CARE,PEOPLEPLUS ILS,573.2,PHY LTS 65+,PAYMENTS TO CLIENTS (DIRECT PAYMENTS),2103099043,1000061886
07.05.2020,ADULT SOCIAL CARE,PEOPLEPLUS ILS,587.32,PHY LTS 65+,PAYMENTS TO CLIENTS (DIRECT PAYMENTS),2103098881,1000061886
07.05.2020,ADULT SOCIAL CARE,PEOPLEPLUS ILS,599.6,PHY LTS 65+,PAYMENTS TO CLIENTS (DIRECT PAYMENTS),2103099114,1000061886
07.05.2020,ADULT SOCIAL CARE,PEOPLEPLUS ILS,622.16,PHY LTS 65+,PAYMENTS TO CLIENTS (DIRECT PAYMENTS),2103098706,1000061886
07.05.2020,ADULT SOCIAL CARE,PEOPLEPLUS ILS,692.6,PHY LTS 65+,PAYMENTS TO CLIENTS (DIRECT PAYMENTS),2103098378,1000061886
07.05.2020,ADULT SOCIAL CARE,PEOPLEPLUS ILS,707,PHY LTS 65+,PAYMENTS TO CLIENTS (DIRECT PAYMENTS),2103098522,1000061886
07.05.2020,ADULT SOCIAL CARE,PEOPLEPLUS ILS,726.88,PHY LTS 65+,PAYMENTS TO CLIENTS (DIRECT PAYMENTS),2103098496,1000061886
07.05.2020,ADULT SOCIAL CARE,PEOPLEPLUS ILS,726.88,PHY LTS 65+,PAYMENTS TO CLIENTS (DIRECT PAYMENTS),2103098557,1000061886
07.05.2020,ADULT SOCIAL CARE,PEOPLEPLUS ILS,739.4,PHY LTS 65+,PAYMENTS TO CLIENTS (DIRECT PAYMENTS),2103098725,1000061886
07.05.2020,ADULT SOCIAL CARE,PEOPLEPLUS ILS,741,PHY LTS 65+,PAYMENTS TO CLIENTS (DIRECT PAYMENTS),2103099073,1000061886
07.05.2020,ADULT SOCIAL CARE,PEOPLEPLUS ILS,763.56,PHY LTS 65+,PAYMENTS TO CLIENTS (DIRECT PAYMENTS),2103098624,1000061886
07.05.2020,ADULT SOCIAL CARE,PEOPLEPLUS ILS,769.28,PHY LTS 65+,PAYMENTS TO CLIENTS (DIRECT PAYMENTS),2103098780,1000061886
07.05.2020,ADULT SOCIAL CARE,PEOPLEPLUS ILS,774.52,PHY LTS 65+,PAYMENTS TO CLIENTS (DIRECT PAYMENTS),2103098684,1000061886
07.05.2020,ADULT SOCIAL CARE,PEOPLEPLUS ILS,777.72,PHY LTS 65+,PAYMENTS TO CLIENTS (DIRECT PAYMENTS),2103099039,1000061886
07.05.2020,ADULT SOCIAL CARE,PEOPLEPLUS ILS,782.92,PHY LTS 65+,PAYMENTS TO CLIENTS (DIRECT PAYMENTS),2103098830,1000061886
07.05.2020,ADULT SOCIAL CARE,PEOPLEPLUS ILS,783.44,PHY LTS 65+,PAYMENTS TO CLIENTS (DIRECT PAYMENTS),2103098908,1000061886
07.05.2020,ADULT SOCIAL CARE,PEOPLEPLUS ILS,791.84,PHY LTS 65+,PAYMENTS TO CLIENTS (DIRECT PAYMENTS),2103098771,1000061886
07.05.2020,ADULT SOCIAL CARE,PEOPLEPLUS ILS,797.56,PHY LTS 65+,PAYMENTS TO CLIENTS (DIRECT PAYMENTS),2103099037,1000061886
07.05.2020,ADULT SOCIAL CARE,PEOPLEPLUS ILS,811.72,PHY LTS 65+,PAYMENTS TO CLIENTS (DIRECT PAYMENTS),2103098754,1000061886
07.05.2020,ADULT SOCIAL CARE,PEOPLEPLUS ILS,811.72,PHY LTS 65+,PAYMENTS TO CLIENTS (DIRECT PAYMENTS),2103098948,1000061886
07.05.2020,ADULT SOCIAL CARE,PEOPLEPLUS ILS,825.84,PHY LTS 65+,PAYMENTS TO CLIENTS (DIRECT PAYMENTS),2103098567,1000061886
07.05.2020,ADULT SOCIAL CARE,PEOPLEPLUS ILS,868.28,PHY LTS 65+,PAYMENTS TO CLIENTS (DIRECT PAYMENTS),2103099051,1000061886
07.05.2020,ADULT SOCIAL CARE,PEOPLEPLUS ILS,914,PHY LTS 65+,PAYMENTS TO CLIENTS (DIRECT PAYMENTS),2103098494,1000061886
07.05.2020,ADULT SOCIAL CARE,PEOPLEPLUS ILS,933.24,PHY LTS 65+,PAYMENTS TO CLIENTS (DIRECT PAYMENTS),2103098824,1000061886
07.05.2020,ADULT SOCIAL CARE,PEOPLEPLUS ILS,938.96,PHY LTS 65+,PAYMENTS TO CLIENTS (DIRECT PAYMENTS),2103098581,1000061886
07.05.2020,ADULT SOCIAL CARE,PEOPLEPLUS ILS,"1,074.52",PHY LTS 65+,PAYMENTS TO CLIENTS (DIRECT PAYMENTS),2103098361,1000061886
07.05.2020,ADULT SOCIAL CARE,PEOPLEPLUS ILS,"1,136.96",PHY LTS 65+,PAYMENTS TO CLIENTS (DIRECT PAYMENTS),2103098852,1000061886
07.05.2020,ADULT SOCIAL CARE,PEOPLEPLUS ILS,"1,136.96",PHY LTS 65+,PAYMENTS TO CLIENTS (DIRECT PAYMENTS),2103099108,1000061886
07.05.2020,ADULT SOCIAL CARE,PEOPLEPLUS ILS,"1,159.36",PHY LTS 65+,PAYMENTS TO CLIENTS (DIRECT PAYMENTS),2103098971,1000061886
07.05.2020,ADULT SOCIAL CARE,PEOPLEPLUS ILS,"1,165.20",PHY LTS 65+,PAYMENTS TO CLIENTS (DIRECT PAYMENTS),2103098776,1000061886
07.05.2020,ADULT SOCIAL CARE,PEOPLEPLUS ILS,"1,193.48",PHY LTS 65+,PAYMENTS TO CLIENTS (DIRECT PAYMENTS),2103098994,1000061886
07.05.2020,ADULT SOCIAL CARE,PEOPLEPLUS ILS,"1,207.64",PHY LTS 65+,PAYMENTS TO CLIENTS (DIRECT PAYMENTS),2103098488,1000061886
07.05.2020,ADULT SOCIAL CARE,PEOPLEPLUS ILS,"1,258.48",PHY LTS 65+,PAYMENTS TO CLIENTS (DIRECT PAYMENTS),2103098892,1000061886
07.05.2020,ADULT SOCIAL CARE,PEOPLEPLUS ILS,"1,288.00",PHY LTS 65+,PAYMENTS TO CLIENTS (DIRECT PAYMENTS),2103098634,1000061886
07.05.2020,ADULT SOCIAL CARE,PEOPLEPLUS ILS,"1,343.32",PHY LTS 65+,PAYMENTS TO CLIENTS (DIRECT PAYMENTS),2103098350,1000061886
07.05.2020,ADULT SOCIAL CARE,PEOPLEPLUS ILS,"1,347.80",PHY LTS 65+,PAYMENTS TO CLIENTS (DIRECT PAYMENTS),2103098681,1000061886
07.05.2020,ADULT SOCIAL CARE,PEOPLEPLUS ILS,"1,524.72",PHY LTS 65+,PAYMENTS TO CLIENTS (DIRECT PAYMENTS),2103098523,1000061886
07.05.2020,ADULT SOCIAL CARE,PEOPLEPLUS ILS,"1,532.84",PHY LTS 65+,PAYMENTS TO CLIENTS (DIRECT PAYMENTS),2103098485,1000061886
07.05.2020,ADULT SOCIAL CARE,PEOPLEPLUS ILS,"1,668.52",PHY LTS 65+,PAYMENTS TO CLIENTS (DIRECT PAYMENTS),2103098887,1000061886
07.05.2020,ADULT SOCIAL CARE,PEOPLEPLUS ILS,"1,733.92",PHY LTS 65+,PAYMENTS TO CLIENTS (DIRECT PAYMENTS),2103098978,1000061886
07.05.2020,ADULT SOCIAL CARE,PEOPLEPLUS ILS,"1,886.00",PHY LTS 65+,PAYMENTS TO CLIENTS (DIRECT PAYMENTS),2103098865,1000061886
07.05.2020,ADULT SOCIAL CARE,PEOPLEPLUS ILS,"1,900.48",PHY LTS 65+,PAYMENTS TO CLIENTS (DIRECT PAYMENTS),2103098778,1000061886
07.05.2020,ADULT SOCIAL CARE,PEOPLEPLUS ILS,"2,014.48",PHY LTS 65+,PAYMENTS TO CLIENTS (DIRECT PAYMENTS),2103098734,1000061886
07.05.2020,ADULT SOCIAL CARE,PEOPLEPLUS ILS,"2,041.88",PHY LTS 65+,PAYMENTS TO CLIENTS (DIRECT PAYMENTS),2103098717,1000061886
07.05.2020,ADULT SOCIAL CARE,PEOPLEPLUS ILS,"2,201.00",PHY LTS 65+,PAYMENTS TO CLIENTS (DIRECT PAYMENTS),2103098891,1000061886
07.05.2020,ADULT SOCIAL CARE,PEOPLEPLUS ILS,"3,383.60",PHY LTS 65+,PAYMENTS TO CLIENTS (DIRECT PAYMENTS),2103098675,1000061886
07.05.2020,ADULT SOCIAL CARE,PEOPLEPLUS ILS,"3,597.28",PHY LTS 65+,PAYMENTS TO CLIENTS (DIRECT PAYMENTS),2103098489,1000061886
07.05.2020,ADULT SOCIAL CARE,FRESH IDEAS & SOLUTIONS SERVICES CIC,890.84,PHY LTS 65+,PAYMENTS TO CLIENTS (DIRECT PAYMENTS),2103098616,1000070832
07.05.2020,ADULT SOCIAL CARE,REDACTED PERSONAL DATA,707,PHY LTS 65+,PAYMENTS TO CLIENTS (DIRECT PAYMENTS),REDACTED,REDACTED
07.05.2020,ADULT SOCIAL CARE,REDACTED PERSONAL DATA,494.92,PHY LTS 65+,PAYMENTS TO CLIENTS (DIRECT PAYMENTS),REDACTED,REDACTED
07.05.2020,ADULT SOCIAL CARE,REDACTED PERSONAL DATA,"1,555.40",PHY LTS 65+,PAYMENTS TO CLIENTS (DIRECT PAYMENTS),REDACTED,REDACTED
07.05.2020,ADULT SOCIAL CARE,REDACTED PERSONAL DATA,494.92,PHY LTS 65+,PAYMENTS TO CLIENTS (DIRECT PAYMENTS),REDACTED,REDACTED
07.05.2020,ADULT SOCIAL CARE,REDACTED PERSONAL DATA,791.84,PHY LTS 65+,PAYMENTS TO CLIENTS (DIRECT PAYMENTS),REDACTED,REDACTED
07.05.2020,ADULT SOCIAL CARE,REDACTED PERSONAL DATA,"1,201.92",PHY LTS 65+,PAYMENTS TO CLIENTS (DIRECT PAYMENTS),REDACTED,REDACTED
07.05.2020,ADULT SOCIAL CARE,REDACTED PERSONAL DATA,888.4,PHY LTS 65+,PAYMENTS TO CLIENTS (DIRECT PAYMENTS),REDACTED,REDACTED
07.05.2020,ADULT SOCIAL CARE,REDACTED PERSONAL DATA,"1,498.84",PHY LTS 65+,PAYMENTS TO CLIENTS (DIRECT PAYMENTS),REDACTED,REDACTED
07.05.2020,ADULT SOCIAL CARE,REDACTED PERSONAL DATA,608.04,PHY LTS 65+,PAYMENTS TO CLIENTS (DIRECT PAYMENTS),REDACTED,REDACTED
07.05.2020,ADULT SOCIAL CARE,REDACTED PERSONAL DATA,"2,132.72",PHY LTS 65+,PAYMENTS TO CLIENTS (DIRECT PAYMENTS),REDACTED,REDACTED
07.05.2020,ADULT SOCIAL CARE,REDACTED PERSONAL DATA,"1,357.44",PHY LTS 65+,PAYMENTS TO CLIENTS (DIRECT PAYMENTS),REDACTED,REDACTED
07.05.2020,ADULT SOCIAL CARE,REDACTED PERSONAL DATA,"1,717.00",PHY LTS 65+,PAYMENTS TO CLIENTS (DIRECT PAYMENTS),REDACTED,REDACTED
07.05.2020,ADULT SOCIAL CARE,REDACTED PERSONAL DATA,994,PHY LTS 65+,PAYMENTS TO CLIENTS (DIRECT PAYMENTS),REDACTED,REDACTED
07.05.2020,ADULT SOCIAL CARE,REDACTED PERSONAL DATA,868.4,PHY LTS 65+,PAYMENTS TO CLIENTS (DIRECT PAYMENTS),REDACTED,REDACTED
07.05.2020,ADULT SOCIAL CARE,REDACTED PERSONAL DATA,395.92,PHY LTS 65+,PAYMENTS TO CLIENTS (DIRECT PAYMENTS),REDACTED,REDACTED
07.05.2020,ADULT SOCIAL CARE,REDACTED PERSONAL DATA,642.16,PHY LTS 65+,PAYMENTS TO CLIENTS (DIRECT PAYMENTS),REDACTED,REDACTED
07.05.2020,ADULT SOCIAL CARE,REDACTED PERSONAL DATA,883.48,PHY LTS 65+,PAYMENTS TO CLIENTS (DIRECT PAYMENTS),REDACTED,REDACTED
07.05.2020,ADULT SOCIAL CARE,REDACTED PERSONAL DATA,"1,315.04",PHY LTS 65+,PAYMENTS TO CLIENTS (DIRECT PAYMENTS),REDACTED,REDACTED
07.05.2020,ADULT SOCIAL CARE,REDACTED PERSONAL DATA,"1,708.52",PHY LTS 65+,PAYMENTS TO CLIENTS (DIRECT PAYMENTS),REDACTED,REDACTED
07.05.2020,ADULT SOCIAL CARE,REDACTED PERSONAL DATA,551.48,PHY LTS 65+,PAYMENTS TO CLIENTS (DIRECT PAYMENTS),REDACTED,REDACTED
07.05.2020,ADULT SOCIAL CARE,REDACTED PERSONAL DATA,"1,278.48",PHY LTS 65+,PAYMENTS TO CLIENTS (DIRECT PAYMENTS),REDACTED,REDACTED
07.05.2020,ADULT SOCIAL CARE,REDACTED PERSONAL DATA,"1,781.64",PHY LTS 65+,PAYMENTS TO CLIENTS (DIRECT PAYMENTS),REDACTED,REDACTED
07.05.2020,ADULT SOCIAL CARE,REDACTED PERSONAL DATA,"2,282.40",PHY LTS 65+,PAYMENTS TO CLIENTS (DIRECT PAYMENTS),REDACTED,REDACTED
07.05.2020,ADULT SOCIAL CARE,SUPREME CARE SERVICES LTD,852.51,PHY STS 65+,HOMECARE - IC,2103097751,1000059416
07.05.2020,ADULT SOCIAL CARE,SUPREME CARE SERVICES LTD,"1,074.16",PHY STS 65+,HOMECARE - IC,2103097747,1000059416
07.05.2020,ADULT SOCIAL CARE,LEWISHAM INDO CHINESE COMMUNITY,280,SEN LTS 65+,DAYCARE,2103098986,1000076593
07.05.2020,ADULT SOCIAL CARE,AGE UK  LEWISHAM & SOUTHWARK,360,SOCIAL ISOLATION,DAYCARE,2103098429,1000066751
07.05.2020,ADULT SOCIAL CARE,AGE UK  LEWISHAM & SOUTHWARK,540,SOCIAL ISOLATION,DAYCARE,2103098661,1000066751
07.05.2020,ADULT SOCIAL CARE,AGE UK  LEWISHAM & SOUTHWARK,540,SOCIAL ISOLATION,DAYCARE,2103098748,1000066751
07.05.2020,ADULT SOCIAL CARE,AGE UK  LEWISHAM & SOUTHWARK,540,SOCIAL ISOLATION,DAYCARE,2103099061,1000066751
07.05.2020,ADULT SOCIAL CARE,PEOPLEPLUS ILS,"-1,812.82",SOCIAL ISOLATION,PAYMENTS TO CLIENTS (DIRECT PAYMENTS),2103098969,1000061886
07.05.2020,ADULT SOCIAL CARE,PEOPLEPLUS ILS,367.64,SOCIAL ISOLATION,PAYMENTS TO CLIENTS (DIRECT PAYMENTS),2103098531,1000061886
07.05.2020,ADULT SOCIAL CARE,PEOPLEPLUS ILS,475.12,SOCIAL ISOLATION,PAYMENTS TO CLIENTS (DIRECT PAYMENTS),2103098925,1000061886
07.05.2020,ADULT SOCIAL CARE,PEOPLEPLUS ILS,622.16,SOCIAL ISOLATION,PAYMENTS TO CLIENTS (DIRECT PAYMENTS),2103098648,1000061886
07.05.2020,ADULT SOCIAL CARE,PEOPLEPLUS ILS,642.04,SOCIAL ISOLATION,PAYMENTS TO CLIENTS (DIRECT PAYMENTS),2103098940,1000061886
07.05.2020,ADULT SOCIAL CARE,PEOPLEPLUS ILS,"1,787.36",SOCIAL ISOLATION,PAYMENTS TO CLIENTS (DIRECT PAYMENTS),2103098886,1000061886
07.05.2020,ADULT SOCIAL CARE,PEOPLEPLUS ILS,"2,027.12",SOCIAL ISOLATION,PAYMENTS TO CLIENTS (DIRECT PAYMENTS),2103099052,1000061886
07.05.2020,ADULT SOCIAL CARE,FRESH IDEAS & SOLUTIONS SERVICES CIC,260.24,SOCIAL ISOLATION,PAYMENTS TO CLIENTS (DIRECT PAYMENTS),2103099029,1000070832
07.05.2020,ADULT SOCIAL CARE,REDACTED PERSONAL DATA,614.4,SOCIAL ISOLATION,PAYMENTS TO CLIENTS (DIRECT PAYMENTS),REDACTED,REDACTED
07.05.2020,ADULT SOCIAL CARE,PEOPLEPLUS ILS,260.24,SPEC NEEDS CHILDREN,PAYMENTS TO CLIENTS (DIRECT PAYMENTS),2103098190,1000061886
07.05.2020,ADULT SOCIAL CARE,PEOPLEPLUS ILS,273.68,SPEC NEEDS CHILDREN,PAYMENTS TO CLIENTS (DIRECT PAYMENTS),2103098145,1000061886
07.05.2020,ADULT SOCIAL CARE,PEOPLEPLUS ILS,273.68,SPEC NEEDS CHILDREN,PAYMENTS TO CLIENTS (DIRECT PAYMENTS),2103098173,1000061886
07.05.2020,ADULT SOCIAL CARE,PEOPLEPLUS ILS,"1,849.00",SPEC NEEDS CHILDREN,PAYMENTS TO CLIENTS (DIRECT PAYMENTS),2103098310,1000061886
07.05.2020,ADULT SOCIAL CARE,REDACTED PERSONAL DATA,"4,722.92",SPEC NEEDS CHILDREN,PAYMENTS TO CLIENTS (DIRECT PAYMENTS),REDACTED,REDACTED
07.05.2020,ADULT SOCIAL CARE,REDACTED PERSONAL DATA,"3,662.20",SPEC NEEDS CHILDREN,PAYMENTS TO CLIENTS (DIRECT PAYMENTS),REDACTED,REDACTED
07.05.2020,ADULT SOCIAL CARE,REDACTED PERSONAL DATA,430.8,SPEC NEEDS CHILDREN,PERSONALISATION PAYMENTS,REDACTED,REDACTED
07.05.2020,ADULT SOCIAL CARE,PEOPLEPLUS ILS,253.68,SPECIALIST CARE,PAYMENTS TO CLIENTS (DIRECT PAYMENTS),2103098231,1000061886
07.05.2020,ADULT SOCIAL CARE,PEOPLEPLUS ILS,253.68,SPECIALIST CARE,PAYMENTS TO CLIENTS (DIRECT PAYMENTS),2103098287,1000061886
07.05.2020,ADULT SOCIAL CARE,PEOPLEPLUS ILS,260.24,SPECIALIST CARE,PAYMENTS TO CLIENTS (DIRECT PAYMENTS),2103098163,1000061886
07.05.2020,ADULT SOCIAL CARE,PEOPLEPLUS ILS,260.24,SPECIALIST CARE,PAYMENTS TO CLIENTS (DIRECT PAYMENTS),2103098219,1000061886
07.05.2020,ADULT SOCIAL CARE,PEOPLEPLUS ILS,273.68,SPECIALIST CARE,PAYMENTS TO CLIENTS (DIRECT PAYMENTS),2103098137,1000061886
07.05.2020,ADULT SOCIAL CARE,PEOPLEPLUS ILS,273.68,SPECIALIST CARE,PAYMENTS TO CLIENTS (DIRECT PAYMENTS),2103098149,1000061886
07.05.2020,ADULT SOCIAL CARE,PEOPLEPLUS ILS,273.68,SPECIALIST CARE,PAYMENTS TO CLIENTS (DIRECT PAYMENTS),2103098155,1000061886
07.05.2020,ADULT SOCIAL CARE,PEOPLEPLUS ILS,273.68,SPECIALIST CARE,PAYMENTS TO CLIENTS (DIRECT PAYMENTS),2103098164,1000061886
07.05.2020,ADULT SOCIAL CARE,PEOPLEPLUS ILS,273.68,SPECIALIST CARE,PAYMENTS TO CLIENTS (DIRECT PAYMENTS),2103098176,1000061886
07.05.2020,ADULT SOCIAL CARE,PEOPLEPLUS ILS,273.68,SPECIALIST CARE,PAYMENTS TO CLIENTS (DIRECT PAYMENTS),2103098178,1000061886
07.05.2020,ADULT SOCIAL CARE,PEOPLEPLUS ILS,273.68,SPECIALIST CARE,PAYMENTS TO CLIENTS (DIRECT PAYMENTS),2103098183,1000061886
07.05.2020,ADULT SOCIAL CARE,PEOPLEPLUS ILS,273.68,SPECIALIST CARE,PAYMENTS TO CLIENTS (DIRECT PAYMENTS),2103098196,1000061886
07.05.2020,ADULT SOCIAL CARE,PEOPLEPLUS ILS,273.68,SPECIALIST CARE,PAYMENTS TO CLIENTS (DIRECT PAYMENTS),2103098222,1000061886
07.05.2020,ADULT SOCIAL CARE,PEOPLEPLUS ILS,273.68,SPECIALIST CARE,PAYMENTS TO CLIENTS (DIRECT PAYMENTS),2103098243,1000061886
07.05.2020,ADULT SOCIAL CARE,PEOPLEPLUS ILS,273.68,SPECIALIST CARE,PAYMENTS TO CLIENTS (DIRECT PAYMENTS),2103098244,1000061886
07.05.2020,ADULT SOCIAL CARE,PEOPLEPLUS ILS,273.68,SPECIALIST CARE,PAYMENTS TO CLIENTS (DIRECT PAYMENTS),2103098246,1000061886
07.05.2020,ADULT SOCIAL CARE,PEOPLEPLUS ILS,273.68,SPECIALIST CARE,PAYMENTS TO CLIENTS (DIRECT PAYMENTS),2103098247,1000061886
07.05.2020,ADULT SOCIAL CARE,PEOPLEPLUS ILS,273.68,SPECIALIST CARE,PAYMENTS TO CLIENTS (DIRECT PAYMENTS),2103098295,1000061886
07.05.2020,ADULT SOCIAL CARE,PEOPLEPLUS ILS,273.68,SPECIALIST CARE,PAYMENTS TO CLIENTS (DIRECT PAYMENTS),2103098327,1000061886
07.05.2020,ADULT SOCIAL CARE,PEOPLEPLUS ILS,293.96,SPECIALIST CARE,PAYMENTS TO CLIENTS (DIRECT PAYMENTS),2103098306,1000061886
07.05.2020,ADULT SOCIAL CARE,PEOPLEPLUS ILS,299.6,SPECIALIST CARE,PAYMENTS TO CLIENTS (DIRECT PAYMENTS),2103098220,1000061886
07.05.2020,ADULT SOCIAL CARE,PEOPLEPLUS ILS,312.76,SPECIALIST CARE,PAYMENTS TO CLIENTS (DIRECT PAYMENTS),2103098276,1000061886
07.05.2020,ADULT SOCIAL CARE,PEOPLEPLUS ILS,321.2,SPECIALIST CARE,PAYMENTS TO CLIENTS (DIRECT PAYMENTS),2103098277,1000061886
07.05.2020,ADULT SOCIAL CARE,PEOPLEPLUS ILS,333.6,SPECIALIST CARE,PAYMENTS TO CLIENTS (DIRECT PAYMENTS),2103098237,1000061886
07.05.2020,ADULT SOCIAL CARE,PEOPLEPLUS ILS,333.6,SPECIALIST CARE,PAYMENTS TO CLIENTS (DIRECT PAYMENTS),2103098259,1000061886
07.05.2020,ADULT SOCIAL CARE,PEOPLEPLUS ILS,333.6,SPECIALIST CARE,PAYMENTS TO CLIENTS (DIRECT PAYMENTS),2103098264,1000061886
07.05.2020,ADULT SOCIAL CARE,PEOPLEPLUS ILS,333.6,SPECIALIST CARE,PAYMENTS TO CLIENTS (DIRECT PAYMENTS),2103098294,1000061886
07.05.2020,ADULT SOCIAL CARE,PEOPLEPLUS ILS,348.6,SPECIALIST CARE,PAYMENTS TO CLIENTS (DIRECT PAYMENTS),2103098280,1000061886
07.05.2020,ADULT SOCIAL CARE,PEOPLEPLUS ILS,348.6,SPECIALIST CARE,PAYMENTS TO CLIENTS (DIRECT PAYMENTS),2103098300,1000061886
07.05.2020,ADULT SOCIAL CARE,PEOPLEPLUS ILS,359.52,SPECIALIST CARE,PAYMENTS TO CLIENTS (DIRECT PAYMENTS),2103098200,1000061886
07.05.2020,ADULT SOCIAL CARE,PEOPLEPLUS ILS,363.56,SPECIALIST CARE,PAYMENTS TO CLIENTS (DIRECT PAYMENTS),2103098272,1000061886
07.05.2020,ADULT SOCIAL CARE,PEOPLEPLUS ILS,363.56,SPECIALIST CARE,PAYMENTS TO CLIENTS (DIRECT PAYMENTS),2103098309,1000061886
07.05.2020,ADULT SOCIAL CARE,PEOPLEPLUS ILS,372.68,SPECIALIST CARE,PAYMENTS TO CLIENTS (DIRECT PAYMENTS),2103098175,1000061886
07.05.2020,ADULT SOCIAL CARE,PEOPLEPLUS ILS,372.68,SPECIALIST CARE,PAYMENTS TO CLIENTS (DIRECT PAYMENTS),2103098216,1000061886
07.05.2020,ADULT SOCIAL CARE,PEOPLEPLUS ILS,372.68,SPECIALIST CARE,PAYMENTS TO CLIENTS (DIRECT PAYMENTS),2103098249,1000061886
07.05.2020,ADULT SOCIAL CARE,PEOPLEPLUS ILS,372.68,SPECIALIST CARE,PAYMENTS TO CLIENTS (DIRECT PAYMENTS),2103098314,1000061886
07.05.2020,ADULT SOCIAL CARE,PEOPLEPLUS ILS,387.52,SPECIALIST CARE,PAYMENTS TO CLIENTS (DIRECT PAYMENTS),2103098271,1000061886
07.05.2020,ADULT SOCIAL CARE,PEOPLEPLUS ILS,393.52,SPECIALIST CARE,PAYMENTS TO CLIENTS (DIRECT PAYMENTS),2103098158,1000061886
07.05.2020,ADULT SOCIAL CARE,PEOPLEPLUS ILS,393.52,SPECIALIST CARE,PAYMENTS TO CLIENTS (DIRECT PAYMENTS),2103098180,1000061886
07.05.2020,ADULT SOCIAL CARE,PEOPLEPLUS ILS,393.52,SPECIALIST CARE,PAYMENTS TO CLIENTS (DIRECT PAYMENTS),2103098186,1000061886
07.05.2020,ADULT SOCIAL CARE,PEOPLEPLUS ILS,393.52,SPECIALIST CARE,PAYMENTS TO CLIENTS (DIRECT PAYMENTS),2103098238,1000061886
07.05.2020,ADULT SOCIAL CARE,PEOPLEPLUS ILS,393.52,SPECIALIST CARE,PAYMENTS TO CLIENTS (DIRECT PAYMENTS),2103098274,1000061886
07.05.2020,ADULT SOCIAL CARE,PEOPLEPLUS ILS,393.52,SPECIALIST CARE,PAYMENTS TO CLIENTS (DIRECT PAYMENTS),2103098304,1000061886
07.05.2020,ADULT SOCIAL CARE,PEOPLEPLUS ILS,393.52,SPECIALIST CARE,PAYMENTS TO CLIENTS (DIRECT PAYMENTS),2103098315,1000061886
07.05.2020,ADULT SOCIAL CARE,PEOPLEPLUS ILS,423.48,SPECIALIST CARE,PAYMENTS TO CLIENTS (DIRECT PAYMENTS),2103098252,1000061886
07.05.2020,ADULT SOCIAL CARE,PEOPLEPLUS ILS,425.76,SPECIALIST CARE,PAYMENTS TO CLIENTS (DIRECT PAYMENTS),2103098210,1000061886
07.05.2020,ADULT SOCIAL CARE,PEOPLEPLUS ILS,427.2,SPECIALIST CARE,PAYMENTS TO CLIENTS (DIRECT PAYMENTS),2103098202,1000061886
07.05.2020,ADULT SOCIAL CARE,PEOPLEPLUS ILS,453.44,SPECIALIST CARE,PAYMENTS TO CLIENTS (DIRECT PAYMENTS),2103098146,1000061886
07.05.2020,ADULT SOCIAL CARE,PEOPLEPLUS ILS,453.44,SPECIALIST CARE,PAYMENTS TO CLIENTS (DIRECT PAYMENTS),2103098227,1000061886
07.05.2020,ADULT SOCIAL CARE,PEOPLEPLUS ILS,483.4,SPECIALIST CARE,PAYMENTS TO CLIENTS (DIRECT PAYMENTS),2103098162,1000061886
07.05.2020,ADULT SOCIAL CARE,PEOPLEPLUS ILS,486.48,SPECIALIST CARE,PAYMENTS TO CLIENTS (DIRECT PAYMENTS),2103098234,1000061886
07.05.2020,ADULT SOCIAL CARE,PEOPLEPLUS ILS,486.48,SPECIALIST CARE,PAYMENTS TO CLIENTS (DIRECT PAYMENTS),2103098240,1000061886
07.05.2020,ADULT SOCIAL CARE,PEOPLEPLUS ILS,493.36,SPECIALIST CARE,PAYMENTS TO CLIENTS (DIRECT PAYMENTS),2103098268,1000061886
07.05.2020,ADULT SOCIAL CARE,PEOPLEPLUS ILS,498.4,SPECIALIST CARE,PAYMENTS TO CLIENTS (DIRECT PAYMENTS),2103098250,1000061886
07.05.2020,ADULT SOCIAL CARE,PEOPLEPLUS ILS,513.32,SPECIALIST CARE,PAYMENTS TO CLIENTS (DIRECT PAYMENTS),2103098328,1000061886
07.05.2020,ADULT SOCIAL CARE,PEOPLEPLUS ILS,513.36,SPECIALIST CARE,PAYMENTS TO CLIENTS (DIRECT PAYMENTS),2103098169,1000061886
07.05.2020,ADULT SOCIAL CARE,PEOPLEPLUS ILS,513.36,SPECIALIST CARE,PAYMENTS TO CLIENTS (DIRECT PAYMENTS),2103098192,1000061886
07.05.2020,ADULT SOCIAL CARE,PEOPLEPLUS ILS,513.36,SPECIALIST CARE,PAYMENTS TO CLIENTS (DIRECT PAYMENTS),2103098199,1000061886
07.05.2020,ADULT SOCIAL CARE,PEOPLEPLUS ILS,513.36,SPECIALIST CARE,PAYMENTS TO CLIENTS (DIRECT PAYMENTS),2103098251,1000061886
07.05.2020,ADULT SOCIAL CARE,PEOPLEPLUS ILS,563.2,SPECIALIST CARE,PAYMENTS TO CLIENTS (DIRECT PAYMENTS),2103098156,1000061886
07.05.2020,ADULT SOCIAL CARE,PEOPLEPLUS ILS,573.28,SPECIALIST CARE,PAYMENTS TO CLIENTS (DIRECT PAYMENTS),2103098184,1000061886
07.05.2020,ADULT SOCIAL CARE,PEOPLEPLUS ILS,599.6,SPECIALIST CARE,PAYMENTS TO CLIENTS (DIRECT PAYMENTS),2103098188,1000061886
07.05.2020,ADULT SOCIAL CARE,PEOPLEPLUS ILS,603.24,SPECIALIST CARE,PAYMENTS TO CLIENTS (DIRECT PAYMENTS),2103098292,1000061886
07.05.2020,ADULT SOCIAL CARE,PEOPLEPLUS ILS,603.28,SPECIALIST CARE,PAYMENTS TO CLIENTS (DIRECT PAYMENTS),2103098139,1000061886
07.05.2020,ADULT SOCIAL CARE,PEOPLEPLUS ILS,618.24,SPECIALIST CARE,PAYMENTS TO CLIENTS (DIRECT PAYMENTS),2103098329,1000061886
07.05.2020,ADULT SOCIAL CARE,PEOPLEPLUS ILS,633.2,SPECIALIST CARE,PAYMENTS TO CLIENTS (DIRECT PAYMENTS),2103098140,1000061886
07.05.2020,ADULT SOCIAL CARE,PEOPLEPLUS ILS,633.2,SPECIALIST CARE,PAYMENTS TO CLIENTS (DIRECT PAYMENTS),2103098217,1000061886
07.05.2020,ADULT SOCIAL CARE,PEOPLEPLUS ILS,656.16,SPECIALIST CARE,PAYMENTS TO CLIENTS (DIRECT PAYMENTS),2103098203,1000061886
07.05.2020,ADULT SOCIAL CARE,PEOPLEPLUS ILS,680.2,SPECIALIST CARE,PAYMENTS TO CLIENTS (DIRECT PAYMENTS),2103098236,1000061886
07.05.2020,ADULT SOCIAL CARE,PEOPLEPLUS ILS,693.2,SPECIALIST CARE,PAYMENTS TO CLIENTS (DIRECT PAYMENTS),2103098221,1000061886
07.05.2020,ADULT SOCIAL CARE,PEOPLEPLUS ILS,715.96,SPECIALIST CARE,PAYMENTS TO CLIENTS (DIRECT PAYMENTS),2103098171,1000061886
07.05.2020,ADULT SOCIAL CARE,PEOPLEPLUS ILS,723.08,SPECIALIST CARE,PAYMENTS TO CLIENTS (DIRECT PAYMENTS),2103098157,1000061886
07.05.2020,ADULT SOCIAL CARE,PEOPLEPLUS ILS,723.08,SPECIALIST CARE,PAYMENTS TO CLIENTS (DIRECT PAYMENTS),2103098161,1000061886
07.05.2020,ADULT SOCIAL CARE,PEOPLEPLUS ILS,723.08,SPECIALIST CARE,PAYMENTS TO CLIENTS (DIRECT PAYMENTS),2103098242,1000061886
07.05.2020,ADULT SOCIAL CARE,PEOPLEPLUS ILS,753.04,SPECIALIST CARE,PAYMENTS TO CLIENTS (DIRECT PAYMENTS),2103098226,1000061886
07.05.2020,ADULT SOCIAL CARE,PEOPLEPLUS ILS,753.04,SPECIALIST CARE,PAYMENTS TO CLIENTS (DIRECT PAYMENTS),2103098248,1000061886
07.05.2020,ADULT SOCIAL CARE,PEOPLEPLUS ILS,768.48,SPECIALIST CARE,PAYMENTS TO CLIENTS (DIRECT PAYMENTS),2103098201,1000061886
07.05.2020,ADULT SOCIAL CARE,PEOPLEPLUS ILS,842.92,SPECIALIST CARE,PAYMENTS TO CLIENTS (DIRECT PAYMENTS),2103098267,1000061886
07.05.2020,ADULT SOCIAL CARE,PEOPLEPLUS ILS,858.88,SPECIALIST CARE,PAYMENTS TO CLIENTS (DIRECT PAYMENTS),2103098301,1000061886
07.05.2020,ADULT SOCIAL CARE,PEOPLEPLUS ILS,931.52,SPECIALIST CARE,PAYMENTS TO CLIENTS (DIRECT PAYMENTS),2103098166,1000061886
07.05.2020,ADULT SOCIAL CARE,PEOPLEPLUS ILS,932.8,SPECIALIST CARE,PAYMENTS TO CLIENTS (DIRECT PAYMENTS),2103098193,1000061886
07.05.2020,ADULT SOCIAL CARE,PEOPLEPLUS ILS,967.4,SPECIALIST CARE,PAYMENTS TO CLIENTS (DIRECT PAYMENTS),2103098262,1000061886
07.05.2020,ADULT SOCIAL CARE,PEOPLEPLUS ILS,992.72,SPECIALIST CARE,PAYMENTS TO CLIENTS (DIRECT PAYMENTS),2103098144,1000061886
07.05.2020,ADULT SOCIAL CARE,PEOPLEPLUS ILS,"1,111.00",SPECIALIST CARE,PAYMENTS TO CLIENTS (DIRECT PAYMENTS),2103098143,1000061886
07.05.2020,ADULT SOCIAL CARE,PEOPLEPLUS ILS,"1,112.56",SPECIALIST CARE,PAYMENTS TO CLIENTS (DIRECT PAYMENTS),2103098289,1000061886
07.05.2020,ADULT SOCIAL CARE,PEOPLEPLUS ILS,"1,182.80",SPECIALIST CARE,PAYMENTS TO CLIENTS (DIRECT PAYMENTS),2103098214,1000061886
07.05.2020,ADULT SOCIAL CARE,PEOPLEPLUS ILS,"1,326.40",SPECIALIST CARE,PAYMENTS TO CLIENTS (DIRECT PAYMENTS),2103098185,1000061886
07.05.2020,ADULT SOCIAL CARE,PEOPLEPLUS ILS,"1,326.40",SPECIALIST CARE,PAYMENTS TO CLIENTS (DIRECT PAYMENTS),2103098284,1000061886
07.05.2020,ADULT SOCIAL CARE,PEOPLEPLUS ILS,"1,334.00",SPECIALIST CARE,PAYMENTS TO CLIENTS (DIRECT PAYMENTS),2103098160,1000061886
07.05.2020,ADULT SOCIAL CARE,PEOPLEPLUS ILS,"1,472.08",SPECIALIST CARE,PAYMENTS TO CLIENTS (DIRECT PAYMENTS),2103098228,1000061886
07.05.2020,ADULT SOCIAL CARE,PEOPLEPLUS ILS,"1,541.80",SPECIALIST CARE,PAYMENTS TO CLIENTS (DIRECT PAYMENTS),2103098215,1000061886
07.05.2020,ADULT SOCIAL CARE,PEOPLEPLUS ILS,"1,649.52",SPECIALIST CARE,PAYMENTS TO CLIENTS (DIRECT PAYMENTS),2103098320,1000061886
07.05.2020,ADULT SOCIAL CARE,PEOPLEPLUS ILS,"1,759.12",SPECIALIST CARE,PAYMENTS TO CLIENTS (DIRECT PAYMENTS),2103098321,1000061886
07.05.2020,ADULT SOCIAL CARE,PEOPLEPLUS ILS,"1,900.80",SPECIALIST CARE,PAYMENTS TO CLIENTS (DIRECT PAYMENTS),2103098282,1000061886
07.05.2020,ADULT SOCIAL CARE,PEOPLEPLUS ILS,"3,244.52",SPECIALIST CARE,PAYMENTS TO CLIENTS (DIRECT PAYMENTS),2103098326,1000061886
07.05.2020,ADULT SOCIAL CARE,PEOPLEPLUS ILS,"5,151.80",SPECIALIST CARE,PAYMENTS TO CLIENTS (DIRECT PAYMENTS),2103098245,1000061886
07.05.2020,ADULT SOCIAL CARE,REDACTED PERSONAL DATA,380.28,SPECIALIST CARE,PAYMENTS TO CLIENTS (DIRECT PAYMENTS),REDACTED,REDACTED
07.05.2020,ADULT SOCIAL CARE,REDACTED PERSONAL DATA,716,SPECIALIST CARE,PAYMENTS TO CLIENTS (DIRECT PAYMENTS),REDACTED,REDACTED
07.05.2020,ADULT SOCIAL CARE,REDACTED PERSONAL DATA,"1,137.00",SPECIALIST CARE,PAYMENTS TO CLIENTS (DIRECT PAYMENTS),REDACTED,REDACTED
07.05.2020,ADULT SOCIAL CARE,REDACTED PERSONAL DATA,992.08,SPECIALIST CARE,PAYMENTS TO CLIENTS (DIRECT PAYMENTS),REDACTED,REDACTED
07.05.2020,ADULT SOCIAL CARE,REDACTED PERSONAL DATA,719.04,SPECIALIST CARE,PAYMENTS TO CLIENTS (DIRECT PAYMENTS),REDACTED,REDACTED
07.05.2020,ADULT SOCIAL CARE,REDACTED PERSONAL DATA,"1,814.00",SPECIALIST CARE,PAYMENTS TO CLIENTS (DIRECT PAYMENTS),REDACTED,REDACTED
07.05.2020,ADULT SOCIAL CARE,REDACTED PERSONAL DATA,"1,133.56",SPECIALIST CARE,PAYMENTS TO CLIENTS (DIRECT PAYMENTS),REDACTED,REDACTED
07.05.2020,ADULT SOCIAL CARE,REDACTED PERSONAL DATA,307.2,SPECIALIST CARE,PAYMENTS TO CLIENTS (DIRECT PAYMENTS),REDACTED,REDACTED
07.05.2020,ADULT SOCIAL CARE,REDACTED PERSONAL DATA,618.2,SPECIALIST CARE,PAYMENTS TO CLIENTS (DIRECT PAYMENTS),REDACTED,REDACTED
07.05.2020,ADULT SOCIAL CARE,REDACTED PERSONAL DATA,359.52,SPECIALIST CARE,PAYMENTS TO CLIENTS (DIRECT PAYMENTS),REDACTED,REDACTED
07.05.2020,ADULT SOCIAL CARE,REDACTED PERSONAL DATA,307.2,SPECIALIST CARE,PAYMENTS TO CLIENTS (DIRECT PAYMENTS),REDACTED,REDACTED
07.05.2020,ADULT SOCIAL CARE,REDACTED PERSONAL DATA,579.28,SPECIALIST CARE,PAYMENTS TO CLIENTS (DIRECT PAYMENTS),REDACTED,REDACTED
07.05.2020,ADULT SOCIAL CARE,REDACTED PERSONAL DATA,868.44,SPECIALIST CARE,PAYMENTS TO CLIENTS (DIRECT PAYMENTS),REDACTED,REDACTED
07.05.2020,ADULT SOCIAL CARE,REDACTED PERSONAL DATA,369.56,SPECIALIST CARE,PAYMENTS TO CLIENTS (DIRECT PAYMENTS),REDACTED,REDACTED
07.05.2020,ADULT SOCIAL CARE,REDACTED PERSONAL DATA,"1,696.80",SPECIALIST CARE,PAYMENTS TO CLIENTS (DIRECT PAYMENTS),REDACTED,REDACTED
07.05.2020,ADULT SOCIAL CARE,REDACTED PERSONAL DATA,888.84,SPECIALIST CARE,PAYMENTS TO CLIENTS (DIRECT PAYMENTS),REDACTED,REDACTED
07.05.2020,ADULT SOCIAL CARE,REDACTED PERSONAL DATA,259.68,SPECIALIST CARE,PAYMENTS TO CLIENTS (DIRECT PAYMENTS),REDACTED,REDACTED
07.05.2020,ADULT SOCIAL CARE,REDACTED PERSONAL DATA,349.56,SPECIALIST CARE,PAYMENTS TO CLIENTS (DIRECT PAYMENTS),REDACTED,REDACTED
07.05.2020,ADULT SOCIAL CARE,REDACTED PERSONAL DATA,"1,384.20",SPECIALIST CARE,PAYMENTS TO CLIENTS (DIRECT PAYMENTS),REDACTED,REDACTED
07.05.2020,ADULT SOCIAL CARE,REDACTED PERSONAL DATA,379.52,SPECIALIST CARE,PAYMENTS TO CLIENTS (DIRECT PAYMENTS),REDACTED,REDACTED
07.05.2020,ADULT SOCIAL CARE,REDACTED PERSONAL DATA,404.8,SPECIALIST CARE,PAYMENTS TO CLIENTS (DIRECT PAYMENTS),REDACTED,REDACTED
07.05.2020,ADULT SOCIAL CARE,REDACTED PERSONAL DATA,509.6,SPECIALIST CARE,PAYMENTS TO CLIENTS (DIRECT PAYMENTS),REDACTED,REDACTED
07.05.2020,ADULT SOCIAL CARE,REDACTED PERSONAL DATA,319.6,SPECIALIST CARE,PAYMENTS TO CLIENTS (DIRECT PAYMENTS),REDACTED,REDACTED
07.05.2020,ADULT SOCIAL CARE,REDACTED PERSONAL DATA,459.44,SPECIALIST CARE,PAYMENTS TO CLIENTS (DIRECT PAYMENTS),REDACTED,REDACTED
07.05.2020,ADULT SOCIAL CARE,REDACTED PERSONAL DATA,399.52,SPECIALIST CARE,PAYMENTS TO CLIENTS (DIRECT PAYMENTS),REDACTED,REDACTED
07.05.2020,ADULT SOCIAL CARE,REDACTED PERSONAL DATA,"1,218.40",SPECIALIST CARE,PAYMENTS TO CLIENTS (DIRECT PAYMENTS),REDACTED,REDACTED
07.05.2020,ADULT SOCIAL CARE,REDACTED PERSONAL DATA,881.64,SPECIALIST CARE,PAYMENTS TO CLIENTS (DIRECT PAYMENTS),REDACTED,REDACTED
07.05.2020,ADULT SOCIAL CARE,REDACTED PERSONAL DATA,"1,025.20",SPECIALIST CARE,PAYMENTS TO CLIENTS (DIRECT PAYMENTS),REDACTED,REDACTED
07.05.2020,ADULT SOCIAL CARE,REDACTED PERSONAL DATA,754.04,SPECIALIST CARE,PAYMENTS TO CLIENTS (DIRECT PAYMENTS),REDACTED,REDACTED
07.05.2020,ADULT SOCIAL CARE,REDACTED PERSONAL DATA,734.04,SPECIALIST CARE,PAYMENTS TO CLIENTS (DIRECT PAYMENTS),REDACTED,REDACTED
07.05.2020,ADULT SOCIAL CARE,REDACTED PERSONAL DATA,861.6,SPECIALIST CARE,PAYMENTS TO CLIENTS (DIRECT PAYMENTS),REDACTED,REDACTED
07.05.2020,ADULT SOCIAL CARE,REDACTED PERSONAL DATA,589.24,SPECIALIST CARE,PAYMENTS TO CLIENTS (DIRECT PAYMENTS),REDACTED,REDACTED
07.05.2020,ADULT SOCIAL CARE,REDACTED PERSONAL DATA,514.36,SPECIALIST CARE,PAYMENTS TO CLIENTS (DIRECT PAYMENTS),REDACTED,REDACTED
07.05.2020,ADULT SOCIAL CARE,REDACTED PERSONAL DATA,783.76,SPECIALIST CARE,PAYMENTS TO CLIENTS (DIRECT PAYMENTS),REDACTED,REDACTED
07.05.2020,ADULT SOCIAL CARE,REDACTED PERSONAL DATA,"10,928.00",SPECIALIST CARE,PAYMENTS TO CLIENTS (DIRECT PAYMENTS),REDACTED,REDACTED
07.05.2020,ADULT SOCIAL CARE,REDACTED PERSONAL DATA,522.64,SPECIALIST CARE,PAYMENTS TO CLIENTS (DIRECT PAYMENTS),REDACTED,REDACTED
07.05.2020,ADULT SOCIAL CARE,REDACTED PERSONAL DATA,828.92,SPECIALIST CARE,PAYMENTS TO CLIENTS (DIRECT PAYMENTS),REDACTED,REDACTED
07.05.2020,ADULT SOCIAL CARE,REDACTED PERSONAL DATA,858.88,SPECIALIST CARE,PAYMENTS TO CLIENTS (DIRECT PAYMENTS),REDACTED,REDACTED
07.05.2020,ADULT SOCIAL CARE,REDACTED PERSONAL DATA,"1,637.88",SPECIALIST CARE,PAYMENTS TO CLIENTS (DIRECT PAYMENTS),REDACTED,REDACTED
07.05.2020,ADULT SOCIAL CARE,REDACTED PERSONAL DATA,268.32,SPECIALIST CARE,PAYMENTS TO CLIENTS (DIRECT PAYMENTS),REDACTED,REDACTED
07.05.2020,ADULT SOCIAL CARE,REDACTED PERSONAL DATA,539.32,SPECIALIST CARE,PAYMENTS TO CLIENTS (DIRECT PAYMENTS),REDACTED,REDACTED
07.05.2020,ADULT SOCIAL CARE,REDACTED PERSONAL DATA,499.36,SPECIALIST CARE,PAYMENTS TO CLIENTS (DIRECT PAYMENTS),REDACTED,REDACTED
07.05.2020,ADULT SOCIAL CARE,REDACTED PERSONAL DATA,"3,744.28",SPECIALIST CARE,PAYMENTS TO CLIENTS (DIRECT PAYMENTS),REDACTED,REDACTED
07.05.2020,ADULT SOCIAL CARE,REDACTED PERSONAL DATA,"1,076.80",SPECIALIST CARE,PAYMENTS TO CLIENTS (DIRECT PAYMENTS),REDACTED,REDACTED
07.05.2020,ADULT SOCIAL CARE,REDACTED PERSONAL DATA,409.48,SPECIALIST CARE,PAYMENTS TO CLIENTS (DIRECT PAYMENTS),REDACTED,REDACTED
07.05.2020,ADULT SOCIAL CARE,REDACTED PERSONAL DATA,259.68,SPECIALIST CARE,PAYMENTS TO CLIENTS (DIRECT PAYMENTS),REDACTED,REDACTED
07.05.2020,ADULT SOCIAL CARE,REDACTED PERSONAL DATA,307.2,SPECIALIST CARE,PAYMENTS TO CLIENTS (DIRECT PAYMENTS),REDACTED,REDACTED
07.05.2020,ADULT SOCIAL CARE,REDACTED PERSONAL DATA,259.68,SPECIALIST CARE,PAYMENTS TO CLIENTS (DIRECT PAYMENTS),REDACTED,REDACTED
07.05.2020,ADULT SOCIAL CARE,REDACTED PERSONAL DATA,287.2,SPECIALIST CARE,PAYMENTS TO CLIENTS (DIRECT PAYMENTS),REDACTED,REDACTED
07.05.2020,ADULT SOCIAL CARE,REDACTED PERSONAL DATA,379.52,SPECIALIST CARE,PAYMENTS TO CLIENTS (DIRECT PAYMENTS),REDACTED,REDACTED
07.05.2020,ADULT SOCIAL CARE,REDACTED PERSONAL DATA,259.68,SPECIALIST CARE,PAYMENTS TO CLIENTS (DIRECT PAYMENTS),REDACTED,REDACTED
07.05.2020,ADULT SOCIAL CARE,REDACTED PERSONAL DATA,379.52,SPECIALIST CARE,PAYMENTS TO CLIENTS (DIRECT PAYMENTS),REDACTED,REDACTED
07.05.2020,ADULT SOCIAL CARE,REDACTED PERSONAL DATA,499.36,SPECIALIST CARE,PAYMENTS TO CLIENTS (DIRECT PAYMENTS),REDACTED,REDACTED
07.05.2020,ADULT SOCIAL CARE,REDACTED PERSONAL DATA,469.4,SPECIALIST CARE,PAYMENTS TO CLIENTS (DIRECT PAYMENTS),REDACTED,REDACTED
07.05.2020,ADULT SOCIAL CARE,REDACTED PERSONAL DATA,499.36,SPECIALIST CARE,PAYMENTS TO CLIENTS (DIRECT PAYMENTS),REDACTED,REDACTED
07.05.2020,ADULT SOCIAL CARE,REDACTED PERSONAL DATA,259.68,SPECIALIST CARE,PAYMENTS TO CLIENTS (DIRECT PAYMENTS),REDACTED,REDACTED
07.05.2020,ADULT SOCIAL CARE,REDACTED PERSONAL DATA,599.2,SPECIALIST CARE,PAYMENTS TO CLIENTS (DIRECT PAYMENTS),REDACTED,REDACTED
07.05.2020,ADULT SOCIAL CARE,INTERSERVE HEALTHCARE,"1,944.40",SPECIALIST CARE,SECTION 17 PAYMENTS TO AGENCIES/CARERS,2103097769,1000049612
07.05.2020,ADULT SOCIAL CARE,CONTACT PROFESSIONALS,285,SPECIALIST CARE,SECTION 17 PAYMENTS TO AGENCIES/CARERS,2103098053,1000057263
07.05.2020,ADULT SOCIAL CARE,CONTACT PROFESSIONALS,304,SPECIALIST CARE,SECTION 17 PAYMENTS TO AGENCIES/CARERS,2103098034,1000057263
07.05.2020,ADULT SOCIAL CARE,CONTACT PROFESSIONALS,323,SPECIALIST CARE,SECTION 17 PAYMENTS TO AGENCIES/CARERS,2103098033,1000057263
07.05.2020,ADULT SOCIAL CARE,CONTACT PROFESSIONALS,342,SPECIALIST CARE,SECTION 17 PAYMENTS TO AGENCIES/CARERS,2103098047,1000057263
07.05.2020,ADULT SOCIAL CARE,CONTACT PROFESSIONALS,380,SPECIALIST CARE,SECTION 17 PAYMENTS TO AGENCIES/CARERS,2103098050,1000057263
07.05.2020,ADULT SOCIAL CARE,CONTACT PROFESSIONALS,399,SPECIALIST CARE,SECTION 17 PAYMENTS TO AGENCIES/CARERS,2103098037,1000057263
07.05.2020,ADULT SOCIAL CARE,PECULIAR CARE HOMES LTD,287.2,SPECIALIST CARE,SECTION 17 PAYMENTS TO AGENCIES/CARERS,2103097771,1000076991
07.05.2020,ADULT SOCIAL CARE,PECULIAR CARE HOMES LTD,359,SPECIALIST CARE,SECTION 17 PAYMENTS TO AGENCIES/CARERS,2103097781,1000076991
07.05.2020,ADULT SOCIAL CARE,PECULIAR CARE HOMES LTD,538.5,SPECIALIST CARE,SECTION 17 PAYMENTS TO AGENCIES/CARERS,2103097783,1000076991
07.05.2020,ADULT SOCIAL CARE,POTTON KARE SERVICES LTD,678.3,SPECIALIST CARE,SECTION 17 PAYMENTS TO AGENCIES/CARERS,2103097793,1000080630
07.05.2020,ADULT SOCIAL CARE,SERVESOUL LTD,375.53,SUB LTS 18-64,HOMECARE - SPOT,2103098107,1000081503
07.05.2020,ADULT SOCIAL CARE,SERVESOUL LTD,375.53,SUB LTS 18-64,HOMECARE - SPOT,2103099133,1000081503
07.05.2020,ADULT SOCIAL CARE,MOUNT CARMEL LTD,"3,150.00",SUB LTS 18-64,PLACEMENTS - REHAB,2103099159,11184946
07.05.2020,ADULT SOCIAL CARE,PEOPLEPLUS ILS,273.68,TRANSITIONS 14-18YRS,PAYMENTS TO CLIENTS (DIRECT PAYMENTS),2103098293,1000061886
07.05.2020,ADULT SOCIAL CARE,PEOPLEPLUS ILS,313.6,TRANSITIONS 14-18YRS,PAYMENTS TO CLIENTS (DIRECT PAYMENTS),2103098312,1000061886
07.05.2020,ADULT SOCIAL CARE,PEOPLEPLUS ILS,393.52,TRANSITIONS 14-18YRS,PAYMENTS TO CLIENTS (DIRECT PAYMENTS),2103098263,1000061886
07.05.2020,ADULT SOCIAL CARE,PEOPLEPLUS ILS,429.92,TRANSITIONS 14-18YRS,PAYMENTS TO CLIENTS (DIRECT PAYMENTS),2103098270,1000061886
07.05.2020,ADULT SOCIAL CARE,PEOPLEPLUS ILS,544.6,TRANSITIONS 14-18YRS,PAYMENTS TO CLIENTS (DIRECT PAYMENTS),2103098205,1000061886
07.05.2020,ADULT SOCIAL CARE,PEOPLEPLUS ILS,895.6,TRANSITIONS 14-18YRS,PAYMENTS TO CLIENTS (DIRECT PAYMENTS),2103098285,1000061886
07.05.2020,ADULT SOCIAL CARE,PEOPLEPLUS ILS,986.44,TRANSITIONS 14-18YRS,PAYMENTS TO CLIENTS (DIRECT PAYMENTS),2103098288,1000061886
07.05.2020,ADULT SOCIAL CARE,PEOPLEPLUS ILS,"1,039.20",TRANSITIONS 14-18YRS,PAYMENTS TO CLIENTS (DIRECT PAYMENTS),2103098141,1000061886
07.05.2020,ADULT SOCIAL CARE,PEOPLEPLUS ILS,"1,591.92",TRANSITIONS 14-18YRS,PAYMENTS TO CLIENTS (DIRECT PAYMENTS),2103098318,1000061886
07.05.2020,ADULT SOCIAL CARE,PEOPLEPLUS ILS,"3,044.08",TRANSITIONS 14-18YRS,PAYMENTS TO CLIENTS (DIRECT PAYMENTS),2103098332,1000061886
07.05.2020,ADULT SOCIAL CARE,REDACTED PERSONAL DATA,718,TRANSITIONS 14-18YRS,PAYMENTS TO CLIENTS (DIRECT PAYMENTS),REDACTED,REDACTED
07.05.2020,ADULT SOCIAL CARE,REDACTED PERSONAL DATA,"1,456.00",TRANSITIONS 14-18YRS,PAYMENTS TO CLIENTS (DIRECT PAYMENTS),REDACTED,REDACTED
07.05.2020,ADULT SOCIAL CARE,REDACTED PERSONAL DATA,522.6,TRANSITIONS 14-18YRS,PAYMENTS TO CLIENTS (DIRECT PAYMENTS),REDACTED,REDACTED
07.05.2020,ADULT SOCIAL CARE,REDACTED PERSONAL DATA,917.52,TRANSITIONS 14-18YRS,PAYMENTS TO CLIENTS (DIRECT PAYMENTS),REDACTED,REDACTED
07.05.2020,ADULT SOCIAL CARE,REDACTED PERSONAL DATA,648.96,TRANSITIONS 14-18YRS,PAYMENTS TO CLIENTS (DIRECT PAYMENTS),REDACTED,REDACTED
07.05.2020,ADULT SOCIAL CARE,REDACTED PERSONAL DATA,"3,302.80",TRANSITIONS 14-18YRS,PAYMENTS TO CLIENTS (DIRECT PAYMENTS),REDACTED,REDACTED
07.05.2020,ADULT SOCIAL CARE,REDACTED PERSONAL DATA,958.8,TRANSITIONS 14-18YRS,PAYMENTS TO CLIENTS (DIRECT PAYMENTS),REDACTED,REDACTED
07.05.2020,ADULT SOCIAL CARE,REDACTED PERSONAL DATA,259.68,TRANSITIONS 14-18YRS,PAYMENTS TO CLIENTS (DIRECT PAYMENTS),REDACTED,REDACTED
07.05.2020,ADULT SOCIAL CARE,REDACTED PERSONAL DATA,738,TRANSITIONS 14-18YRS,PAYMENTS TO CLIENTS (DIRECT PAYMENTS),REDACTED,REDACTED
07.05.2020,ADULT SOCIAL CARE,REDACTED PERSONAL DATA,269.6,TRANSITIONS 14-18YRS,PAYMENTS TO CLIENTS (DIRECT PAYMENTS),REDACTED,REDACTED
07.05.2020,ADULT SOCIAL CARE,REDACTED PERSONAL DATA,529.04,TRANSITIONS 14-18YRS,PAYMENTS TO CLIENTS (DIRECT PAYMENTS),REDACTED,REDACTED
07.05.2020,ADULT SOCIAL CARE,REDACTED PERSONAL DATA,619.2,TRANSITIONS 14-18YRS,PAYMENTS TO CLIENTS (DIRECT PAYMENTS),REDACTED,REDACTED
07.05.2020,ADULT SOCIAL CARE,PECULIAR CARE HOMES LTD,"1,830.90",TRANSITIONS 14-18YRS,SECTION 17 PAYMENTS TO AGENCIES/CARERS,2103097791,1000076991
07.05.2020,ADULT SOCIAL CARE,POTTON KARE SERVICES LTD,280.5,TRANSITIONS 14-18YRS,SECTION 17 PAYMENTS TO AGENCIES/CARERS,2103097777,1000080630
07.05.2020,ADULT SOCIAL CARE,POTTON KARE SERVICES LTD,408.9,TRANSITIONS 14-18YRS,SECTION 17 PAYMENTS TO AGENCIES/CARERS,2103097785,1000080630
07.05.2020,ADULT SOCIAL CARE,POTTON KARE SERVICES LTD,570.75,TRANSITIONS 14-18YRS,SECTION 17 PAYMENTS TO AGENCIES/CARERS,2103097775,1000080630
07.05.2020,ADULT SOCIAL CARE,POTTON KARE SERVICES LTD,653.5,TRANSITIONS 14-18YRS,SECTION 17 PAYMENTS TO AGENCIES/CARERS,2103097779,1000080630
07.05.2020,ASSET MANAGEMENT,STANNAH LIFT SERVICES LTD,"2,399.00",ADAPTATIONS,BUILDING R&M,5902416037,1063595
07.05.2020,ASSET MANAGEMENT,ANTONY HODARI  SOLICITORS,500,DISREPAIR,LEGAL FEES & COURT COSTS,5902416604,1000031040
07.05.2020,ASSET MANAGEMENT,ANTONY HODARI  SOLICITORS,650,DISREPAIR,PAYMENTS FOR LEGAL SERVICES,2103099167,1000031040
07.05.2020,ASSET MANAGEMENT,P E WILSON & CO SOLICITORS,"3,500.00",DISREPAIR,PAYMENTS FOR LEGAL SERVICES,2103099163,1000049068
07.05.2020,ASSET MANAGEMENT,ANTHONY GOLD SOLICITORS,"2,386.38",DISREPAIR,PAYMENTS FOR LEGAL SERVICES,2103099165,1000050198
07.05.2020,ASSET MANAGEMENT,ANTHONY GOLD SOLICITORS,"10,000.00",DISREPAIR,PAYMENTS FOR LEGAL SERVICES,2103099164,1000050198
07.05.2020,ASSET MANAGEMENT,MALONE & WHITE SOLICITORS LTD,"1,650.00",DISREPAIR,PAYMENTS FOR LEGAL SERVICES,2103099161,1000083893
07.05.2020,ASSET MANAGEMENT,MALONE & WHITE SOLICITORS LTD,"3,300.00",DISREPAIR,PAYMENTS FOR LEGAL SERVICES,2103099162,1000083893
07.05.2020,CENTRAL FUNCTIONS,SHERCURITY LTD,"3,360.00",COMMERCIAL PROPERTIES,LEGAL FEES & COURT COSTS,2103099230,1000067090
